BODY,BODY NAME,SERVICE CODE,ORGANISATIONAL UNIT,ORGANISATIONAL UNIT CODE,EXPENDITURE CATEGORY,EXPENDITURE CODE,DATE (POSTING DATE),TRANSACTION NUMBER,AMOUNT,SUPPLIER NAME,SUPPLIER ID
WARRINGTON BOROUGH COUNCIL,http://opendatacommunities.org/id/unitary-authority/warrington ,FWB,Contracts - SM Health Protection,55930,Public Health Contribution Payments,540010,21-Dec-15,1900189523,998.00,2 Co Ltd,101952
WARRINGTON BOROUGH COUNCIL,http://opendatacommunities.org/id/unitary-authority/warrington ,FWB,DSG 2 Year Old Fund,31601,Payment of Grants,470050,18-Dec-15,1900189337,873.00,A & J Tots to Teens Childcare,113264
WARRINGTON BOROUGH COUNCIL,http://opendatacommunities.org/id/unitary-authority/warrington ,FWB,DSG 2 Year Old Fund,31601,Payment of Grants,470050,18-Dec-15,1900189368,1964.00,A & J Tots to Teens Childcare,113264
WARRINGTON BOROUGH COUNCIL,http://opendatacommunities.org/id/unitary-authority/warrington ,FWB,Care Purchase - PD,54440,CP-Nursing Care-External,441200,16-Dec-15,1900188808,4136.00,Abbey Lawns Care Home Ltd,101816
WARRINGTON BOROUGH COUNCIL,http://opendatacommunities.org/id/unitary-authority/warrington ,FWB,Older Peoples North Team,54422,CP-LongStayExternal,441150,02-Dec-15,1900187765,1540.00,Abbeydale Residential Home,104446
WARRINGTON BOROUGH COUNCIL,http://opendatacommunities.org/id/unitary-authority/warrington ,FWB,Older Peoples North Team,54422,CP-LongStayExternal,441150,24-Dec-15,1900189757,1540.00,Abbeydale Residential Home,104446
WARRINGTON BOROUGH COUNCIL,http://opendatacommunities.org/id/unitary-authority/warrington ,FWB,DSG 2 Year Old Fund,31601,Payment of Grants,470050,18-Dec-15,1900189334,9779.00,Abc 123 Day Nursery Ltd,400152
WARRINGTON BOROUGH COUNCIL,http://opendatacommunities.org/id/unitary-authority/warrington ,FWB,DSG Early Years PVI Settings,32417,Private & Voluntary 3 Year Olds,470100,18-Dec-15,1900189141,10524.00,Abc 123 Day Nursery Ltd,400152
WARRINGTON BOROUGH COUNCIL,http://opendatacommunities.org/id/unitary-authority/warrington ,FWB,DSG Early Years PVI Settings,32417,Private & Voluntary 4 Year Olds,470150,18-Dec-15,1900189248,1809.00,Abc 123 Day Nursery Ltd,400152
WARRINGTON BOROUGH COUNCIL,http://opendatacommunities.org/id/unitary-authority/warrington ,FWB,DSG Early Years PVI Settings,32417,Payment of Grants,470050,21-Dec-15,1900189429,1500.00,Abc 123 Day Nursery Ltd,400152
WARRINGTON BOROUGH COUNCIL,http://opendatacommunities.org/id/unitary-authority/warrington ,FWB,DSG 2 Year Old Fund,31601,Payment of Grants,470050,18-Dec-15,1900189335,839.00,Abc Pre-School Limited,400009
WARRINGTON BOROUGH COUNCIL,http://opendatacommunities.org/id/unitary-authority/warrington ,FWB,DSG Early Years PVI Settings,32417,Private & Voluntary 3 Year Olds,470100,18-Dec-15,1900189142,12760.00,Abc Pre-School Limited,400009
WARRINGTON BOROUGH COUNCIL,http://opendatacommunities.org/id/unitary-authority/warrington ,FWB,DSG Early Years PVI Settings,32417,Private & Voluntary 4 Year Olds,470150,18-Dec-15,1900189249,2683.00,Abc Pre-School Limited,400009
WARRINGTON BOROUGH COUNCIL,http://opendatacommunities.org/id/unitary-authority/warrington ,FWB,EIG Funding - Dallam Childrens Centre,31511,Servicing Contracts,200150,11-Dec-15,1900188665,858.00,Abel Alarm Company Ltd,101027
WARRINGTON BOROUGH COUNCIL,http://opendatacommunities.org/id/unitary-authority/warrington ,FWB,Contracts - SM Health Protection,55930,Public Health Contribution Payments,540010,04-Dec-15,1900187855,2668.00,Active Documents Ltd,114114
WARRINGTON BOROUGH COUNCIL,http://opendatacommunities.org/id/unitary-authority/warrington ,FWB,Older Peoples South Team,54421,CP-LongStayExternal,441150,16-Dec-15,1900188809,1540.00,Alexandra Care Home,100708
WARRINGTON BOROUGH COUNCIL,http://opendatacommunities.org/id/unitary-authority/warrington ,FWB,Foster Allowances,31106,Fostering Allowance,550050,16-Dec-15,1900188872,1187.00,Alford Sports & Social Club,104463
WARRINGTON BOROUGH COUNCIL,http://opendatacommunities.org/id/unitary-authority/warrington ,FWB,Care Purchase - PD,54440,CP-Domicil.External,440950,09-Dec-15,1900188449,5859.00,Allied Healthcare Group Ltd,100796
WARRINGTON BOROUGH COUNCIL,http://opendatacommunities.org/id/unitary-authority/warrington ,FWB,Care Purchase - PD,54440,Supporting People - External,441250,09-Dec-15,1900188449,733.00,Allied Healthcare Group Ltd,100796
WARRINGTON BOROUGH COUNCIL,http://opendatacommunities.org/id/unitary-authority/warrington ,FWB,Older Peoples South Team,54421,CP-Domicil.External,440950,09-Dec-15,1900188448,15893.00,Allied Healthcare Group Ltd,100796
WARRINGTON BOROUGH COUNCIL,http://opendatacommunities.org/id/unitary-authority/warrington ,FWB,Older Peoples North Team,54422,CP-Domicil.External,440950,09-Dec-15,1900188448,6163.00,Allied Healthcare Group Ltd,100796
WARRINGTON BOROUGH COUNCIL,http://opendatacommunities.org/id/unitary-authority/warrington ,FWB,Care Purchase AMH,54135,CP-Domicil.External,440950,09-Dec-15,1900188448,1313.00,Allied Healthcare Group Ltd,100796
WARRINGTON BOROUGH COUNCIL,http://opendatacommunities.org/id/unitary-authority/warrington ,FWB,Care Purchase - Learning Disability,54450,CP-Domicil.External,440950,09-Dec-15,1900188448,870.00,Allied Healthcare Group Ltd,100796
WARRINGTON BOROUGH COUNCIL,http://opendatacommunities.org/id/unitary-authority/warrington ,FWB,Care Purchase - PD,54440,CP-Domicil.External,440950,09-Dec-15,1900188448,5360.00,Allied Healthcare Group Ltd,100796
WARRINGTON BOROUGH COUNCIL,http://opendatacommunities.org/id/unitary-authority/warrington ,FWB,Care Purchase AMH,54135,CP-Domicil.External,440950,10-Dec-15,1900188529,3140.00,Alternative Futures Group,104468
WARRINGTON BOROUGH COUNCIL,http://opendatacommunities.org/id/unitary-authority/warrington ,FWB,Care Purchase - Learning Disability,54450,CP-Domicil.External,440950,10-Dec-15,1900188573,63166.00,Alternative Futures Group,104468
WARRINGTON BOROUGH COUNCIL,http://opendatacommunities.org/id/unitary-authority/warrington ,FWB,Care Purchase - Learning Disability,54450,Supporting People - External,441250,10-Dec-15,1900188573,6850.00,Alternative Futures Group,104468
WARRINGTON BOROUGH COUNCIL,http://opendatacommunities.org/id/unitary-authority/warrington ,FWB,Care Purchase Budget,54490,Voids,515150,10-Dec-15,1900188573,8635.00,Alternative Futures Group,104468
WARRINGTON BOROUGH COUNCIL,http://opendatacommunities.org/id/unitary-authority/warrington ,FWB,Older Peoples South Team,54421,CP-Domicil.External,440950,10-Dec-15,1900188531,6280.00,Alternative Futures Group,104468
WARRINGTON BOROUGH COUNCIL,http://opendatacommunities.org/id/unitary-authority/warrington ,FWB,Care Purchase AMH,54135,CP-Domicil.External,440950,10-Dec-15,1900188545,5523.00,Alternative Futures Group,104468
WARRINGTON BOROUGH COUNCIL,http://opendatacommunities.org/id/unitary-authority/warrington ,FWB,Care Purchase AMH,54135,CP-Domicil.External,440950,10-Dec-15,1900188537,5025.00,Alternative Futures Group,104468
WARRINGTON BOROUGH COUNCIL,http://opendatacommunities.org/id/unitary-authority/warrington ,FWB,Care Purchase AMH,54135,CP-Domicil.External,440950,10-Dec-15,1900188535,5323.00,Alternative Futures Group,104468
WARRINGTON BOROUGH COUNCIL,http://opendatacommunities.org/id/unitary-authority/warrington ,FWB,Care Purchase AMH,54135,CP-Domicil.External,440950,10-Dec-15,1900188532,3140.00,Alternative Futures Group,104468
WARRINGTON BOROUGH COUNCIL,http://opendatacommunities.org/id/unitary-authority/warrington ,FWB,Care Purchase AMH,54135,CP-Domicil.External,440950,10-Dec-15,1900188543,3140.00,Alternative Futures Group,104468
WARRINGTON BOROUGH COUNCIL,http://opendatacommunities.org/id/unitary-authority/warrington ,FWB,Care Purchase AMH,54135,CP-Domicil.External,440950,10-Dec-15,1900188542,1080.00,Alternative Futures Group,104468
WARRINGTON BOROUGH COUNCIL,http://opendatacommunities.org/id/unitary-authority/warrington ,FWB,Care Purchase - Learning Disability,54450,CP-Domicil.External,440950,10-Dec-15,1900188540,1765.00,Alternative Futures Group,104468
WARRINGTON BOROUGH COUNCIL,http://opendatacommunities.org/id/unitary-authority/warrington ,FWB,Care Purchase - Learning Disability,54450,CP-Domicil.External,440950,10-Dec-15,1900188533,2090.00,Alternative Futures Group,104468
WARRINGTON BOROUGH COUNCIL,http://opendatacommunities.org/id/unitary-authority/warrington ,FWB,Care Purchase - Learning Disability,54450,CP-Domicil.External,440950,10-Dec-15,1900188539,4990.00,Alternative Futures Group,104468
WARRINGTON BOROUGH COUNCIL,http://opendatacommunities.org/id/unitary-authority/warrington ,FWB,Care Purchase - Learning Disability,54450,CP-Domicil.External,440950,16-Dec-15,1900188810,5918.00,Alternative Futures Group,104468
WARRINGTON BOROUGH COUNCIL,http://opendatacommunities.org/id/unitary-authority/warrington ,FWB,Care Purchase AMH,54135,CP-Domicil.External,440950,10-Dec-15,1900188544,3140.00,Alternative Futures Group,104468
WARRINGTON BOROUGH COUNCIL,http://opendatacommunities.org/id/unitary-authority/warrington ,FWB,SLA - Grant Account,53920,Payment of Grants,470050,17-Dec-15,1900188947,9389.00,Alzheimers Society,106508
WARRINGTON BOROUGH COUNCIL,http://opendatacommunities.org/id/unitary-authority/warrington ,FWB,Padgate House,54760,Agency Supply - GF,180000,04-Dec-15,1900187835,890.00,AMBITION 24 HOURS,112600
WARRINGTON BOROUGH COUNCIL,http://opendatacommunities.org/id/unitary-authority/warrington ,EE0,Estates & Valuation,43520,Agency Supply - GF,180000,09-Dec-15,1900188527,663.00,Anderselite,100563
WARRINGTON BOROUGH COUNCIL,http://opendatacommunities.org/id/unitary-authority/warrington ,RSC,Coroners Service,11100,Removal Bodies & Exc,440350,18-Dec-15,1900189114,711.00,Anderson Independant Funeral Direct,111174
WARRINGTON BOROUGH COUNCIL,http://opendatacommunities.org/id/unitary-authority/warrington ,HOL,Insurance Fund,91100,Insurance Premium,443350,24-Dec-15,1900189793,10500.00,Aon Ltd,102117
WARRINGTON BOROUGH COUNCIL,http://opendatacommunities.org/id/unitary-authority/warrington ,FWB,DSG Early Years PVI Settings,32417,Private & Voluntary 3 Year Olds,470100,18-Dec-15,1900189147,3933.00,Appleton Thorn Pre School,400111
WARRINGTON BOROUGH COUNCIL,http://opendatacommunities.org/id/unitary-authority/warrington ,FWB,DSG Early Years PVI Settings,32417,Payment of Grants,470050,21-Dec-15,1900189430,1500.00,Appleton Thorn Pre School,400111
WARRINGTON BOROUGH COUNCIL,http://opendatacommunities.org/id/unitary-authority/warrington ,FWB,P.F.I.,43630,PFI,480000,01-Dec-15,1900187609,76125.00,Arena Housing,102199
WARRINGTON BOROUGH COUNCIL,http://opendatacommunities.org/id/unitary-authority/warrington ,FWB,P.F.I.,43630,PFI,480000,02-Dec-15,1900187776,76125.00,Arena Options,101746
WARRINGTON BOROUGH COUNCIL,http://opendatacommunities.org/id/unitary-authority/warrington ,FWB,Care Purchase Budget,54490,CP ExternalOther Exp,440800,08-Dec-15,1900187956,51000.00,Ashberry Healthcare,101061
WARRINGTON BOROUGH COUNCIL,http://opendatacommunities.org/id/unitary-authority/warrington ,FWB,Care Purchase Budget,54490,CP ExternalOther Exp,440800,18-Dec-15,1900189064,12696.00,Ashberry Healthcare,101061
WARRINGTON BOROUGH COUNCIL,http://opendatacommunities.org/id/unitary-authority/warrington ,FWB,Care Purchase Budget,54490,CP ExternalOther Exp,440800,08-Dec-15,1900187955,114000.00,Ashberry Healthcare Ltd,104776
WARRINGTON BOROUGH COUNCIL,http://opendatacommunities.org/id/unitary-authority/warrington ,FWB,Care Purchase Budget,54490,CP ExternalOther Exp,440800,18-Dec-15,1900189053,12003.00,Ashberry Healthcare Ltd,104776
WARRINGTON BOROUGH COUNCIL,http://opendatacommunities.org/id/unitary-authority/warrington ,FWB,Care Purchase Budget,54490,CP ExternalOther Exp,440800,02-Dec-15,1900187639,3663.00,Ashberry Healthcare Ltd,104776
WARRINGTON BOROUGH COUNCIL,http://opendatacommunities.org/id/unitary-authority/warrington ,FWB,Older Peoples South Team,54421,CP-LongStayExternal,441150,24-Dec-15,1900189698,4197.00,Ashley House Residential Home,103045
WARRINGTON BOROUGH COUNCIL,http://opendatacommunities.org/id/unitary-authority/warrington ,FWB,Care Purchase - ABI,54260,CP-Domicil.External,440950,18-Dec-15,1900189054,18242.00,Aspirations Care Limited,113707
WARRINGTON BOROUGH COUNCIL,http://opendatacommunities.org/id/unitary-authority/warrington ,FWB,Care Purchase - ABI,54260,CP-Domicil.External,440950,14-Dec-15,1900188666,18242.00,Aspirations Care Limited,113707
WARRINGTON BOROUGH COUNCIL,http://opendatacommunities.org/id/unitary-authority/warrington ,FWB,Care Purchase AMH,54135,CP-Domicil.External,440950,10-Dec-15,1900188541,1868.00,Autism Initiatives,104503
WARRINGTON BOROUGH COUNCIL,http://opendatacommunities.org/id/unitary-authority/warrington ,FWB,Care Purchase - Learning Disability,54450,CP-LongStayExternal,441150,24-Dec-15,1900189701,4496.00,Autism Initiatives,104503
WARRINGTON BOROUGH COUNCIL,http://opendatacommunities.org/id/unitary-authority/warrington ,FWB,Care Purchase - Learning Disability,54450,CP-Domicil.External,440950,24-Dec-15,1900189703,4316.00,Autism Initiatives,104503
WARRINGTON BOROUGH COUNCIL,http://opendatacommunities.org/id/unitary-authority/warrington ,FWB,Care Purchase - Learning Disability,54450,CP-Domicil.External,440950,24-Dec-15,1900189699,6623.00,Autism Initiatives,104503
WARRINGTON BOROUGH COUNCIL,http://opendatacommunities.org/id/unitary-authority/warrington ,FWB,Care Purchase - Learning Disability,54450,CP-Domicil.External,440950,24-Dec-15,1900189700,6926.00,Autism Initiatives,104503
WARRINGTON BOROUGH COUNCIL,http://opendatacommunities.org/id/unitary-authority/warrington ,FWB,Care Purchase - Learning Disability,54450,CP-Domicil.External,440950,24-Dec-15,1900189702,5685.00,Autism Initiatives,104503
WARRINGTON BOROUGH COUNCIL,http://opendatacommunities.org/id/unitary-authority/warrington ,FWB,Care Purchase - Learning Disability,54450,CP-Domicil.External,440950,24-Dec-15,1900189704,8450.00,Autism Initiatives,104503
WARRINGTON BOROUGH COUNCIL,http://opendatacommunities.org/id/unitary-authority/warrington ,FWB,Service Manager - Intermediate Care,53200,Agency Supply - GF,180000,18-Dec-15,1900189119,2250.00,Baltimore Consulting Ltd,113735
WARRINGTON BOROUGH COUNCIL,http://opendatacommunities.org/id/unitary-authority/warrington ,FWB,Assets & Capital Team,33200,Agency Supply - GF,180000,18-Dec-15,1900189118,1800.00,Baltimore Consulting Ltd,113735
WARRINGTON BOROUGH COUNCIL,http://opendatacommunities.org/id/unitary-authority/warrington ,FWB,Service Manager - Intermediate Care,53200,Agency Supply - GF,180000,01-Dec-15,1900187618,1350.00,Baltimore Consulting Ltd,113735
WARRINGTON BOROUGH COUNCIL,http://opendatacommunities.org/id/unitary-authority/warrington ,FWB,Care Purchase - Learning Disability,54450,CP-Day Care-External,441100,23-Dec-15,1900189603,720.00,Great Opportunities Together CIC,110076
WARRINGTON BOROUGH COUNCIL,http://opendatacommunities.org/id/unitary-authority/warrington ,FWB,Care Purchase - Learning Disability,54450,CP-Day Care-External,441100,02-Dec-15,1900187768,720.00,Great Opportunities Together CIC,110076
WARRINGTON BOROUGH COUNCIL,http://opendatacommunities.org/id/unitary-authority/warrington ,FWB,Contracts - SM Commissioning Team 2,55920,Public Health Contract Payments,540000,21-Dec-15,1900189500,2311.00,Green Bank Surgery,101004
WARRINGTON BOROUGH COUNCIL,http://opendatacommunities.org/id/unitary-authority/warrington ,FWB,Contracts - SM Commissioning Team 2,55920,Public Health Contract Payments,540000,21-Dec-15,1900189500,963.00,Green Bank Surgery,101004
WARRINGTON BOROUGH COUNCIL,http://opendatacommunities.org/id/unitary-authority/warrington ,FWB,Contracts - SM Commissioning Team 2,55920,Public Health Contract Payments,540000,21-Dec-15,1900189500,576.00,Green Bank Surgery,101004
WARRINGTON BOROUGH COUNCIL,http://opendatacommunities.org/id/unitary-authority/warrington ,FWB,DSG Early Years PVI Settings,32417,Private & Voluntary 3 Year Olds,470100,18-Dec-15,1900189174,14472.00,Green Park Nursery,400089
WARRINGTON BOROUGH COUNCIL,http://opendatacommunities.org/id/unitary-authority/warrington ,FWB,DSG Early Years PVI Settings,32417,Private & Voluntary 4 Year Olds,470150,18-Dec-15,1900189275,4975.00,Green Park Nursery,400089
WARRINGTON BOROUGH COUNCIL,http://opendatacommunities.org/id/unitary-authority/warrington ,FWB,DSG Early Years PVI Settings,32417,Payment of Grants,470050,21-Dec-15,1900189436,1500.00,Green Park Nursery,400089
WARRINGTON BOROUGH COUNCIL,http://opendatacommunities.org/id/unitary-authority/warrington ,FWB,Care Purchase - Learning Disability,54450,CP-LongStayExternal,441150,16-Dec-15,1900188877,12348.00,Griffin Care Ltd,101672
WARRINGTON BOROUGH COUNCIL,http://opendatacommunities.org/id/unitary-authority/warrington ,FWB,Care Purchase - Learning Disability,54450,CP-LongStayExternal,441150,16-Dec-15,1900188876,12348.00,Griffin Care Ltd,101672
WARRINGTON BOROUGH COUNCIL,http://opendatacommunities.org/id/unitary-authority/warrington ,FWB,Contracts - SM Commissioning Team 2,55920,Public Health Contract Payments,540000,21-Dec-15,1900189502,1728.00,Guardian Medical Centre,101534
WARRINGTON BOROUGH COUNCIL,http://opendatacommunities.org/id/unitary-authority/warrington ,FWB,Contracts - SM Commissioning Team 2,55920,Public Health Contract Payments,540000,21-Dec-15,1900189502,1369.00,Guardian Medical Centre,101534
WARRINGTON BOROUGH COUNCIL,http://opendatacommunities.org/id/unitary-authority/warrington ,FWB,Contracts - SM Commissioning Team 2,55920,Public Health Contract Payments,540000,21-Dec-15,1900189502,963.00,Guardian Medical Centre,101534
WARRINGTON BOROUGH COUNCIL,http://opendatacommunities.org/id/unitary-authority/warrington ,ENO,Highways LTP,82004,Consult.& Prof. Serv,440000,24-Dec-15,1900189711,10398.00,Halcrow Group Ltd,107352
WARRINGTON BOROUGH COUNCIL,http://opendatacommunities.org/id/unitary-authority/warrington ,COR,C2W Salary Sacrfice,59995,Response Maintenance,200000,17-Dec-15,1900188940,18917.00,Halfords Ltd,104764
WARRINGTON BOROUGH COUNCIL,http://opendatacommunities.org/id/unitary-authority/warrington ,COR,C2W Salary Sacrfice,59995,Response Maintenance,200000,17-Dec-15,1900188941,4600.00,Halfords Ltd,104764
WARRINGTON BOROUGH COUNCIL,http://opendatacommunities.org/id/unitary-authority/warrington ,FWB,Head of Integrated Commissioning,53500,Consult.& Prof. Serv,440000,15-Dec-15,1900188767,4000.00,Halton Borough Council,410008
WARRINGTON BOROUGH COUNCIL,http://opendatacommunities.org/id/unitary-authority/warrington ,RSC,Training & Development,22440,Training,190150,11-Dec-15,1900188628,6690.00,Halton Borough Council,410008
WARRINGTON BOROUGH COUNCIL,http://opendatacommunities.org/id/unitary-authority/warrington ,FWB,Older Peoples North Team,54422,CP-Domicil.External,440950,18-Dec-15,1900189066,9262.00,Hannahs Homecare Ltd,114443
WARRINGTON BOROUGH COUNCIL,http://opendatacommunities.org/id/unitary-authority/warrington ,FWB,Older Peoples South Team,54421,CP-Domicil.External,440950,18-Dec-15,1900189066,2006.00,Hannahs Homecare Ltd,114443
WARRINGTON BOROUGH COUNCIL,http://opendatacommunities.org/id/unitary-authority/warrington ,FWB,Care Purchase - PD,54440,CP-Domicil.External,440950,18-Dec-15,1900189066,4460.00,Hannahs Homecare Ltd,114443
WARRINGTON BOROUGH COUNCIL,http://opendatacommunities.org/id/unitary-authority/warrington ,FWB,Care Purchase Budget,54490,CP ExternalOther Exp,440800,07-Dec-15,1900187939,40000.00,Harbour Healthcare 1 Ltd,110527
WARRINGTON BOROUGH COUNCIL,http://opendatacommunities.org/id/unitary-authority/warrington ,FWB,Care Purchase Budget,54490,CP ExternalOther Exp,440800,24-Dec-15,1900189773,12049.00,Harbour Healthcare 1 Ltd,110527
WARRINGTON BOROUGH COUNCIL,http://opendatacommunities.org/id/unitary-authority/warrington ,FWB,Care Purchase Budget,54490,CP ExternalOther Exp,440800,14-Dec-15,1900188692,32021.00,Harbour Healthcare 1 Ltd,110527
WARRINGTON BOROUGH COUNCIL,http://opendatacommunities.org/id/unitary-authority/warrington ,HOL,Single Billing Holding Account,91130,Agency Supply - GF,180000,08-Dec-15,1900187953,56917.00,Hays Specialist Recruitment Ltd,107512
WARRINGTON BOROUGH COUNCIL,http://opendatacommunities.org/id/unitary-authority/warrington ,HOL,Single Billing Holding Account,91130,Agency Supply - GF,180000,22-Dec-15,1900189546,51837.00,Hays Specialist Recruitment Ltd,107512
WARRINGTON BOROUGH COUNCIL,http://opendatacommunities.org/id/unitary-authority/warrington ,HOL,Single Billing Holding Account,91130,Agency Supply - GF,180000,22-Dec-15,1900189547,36132.00,Hays Specialist Recruitment Ltd,107512
WARRINGTON BOROUGH COUNCIL,http://opendatacommunities.org/id/unitary-authority/warrington ,FWB,Care Purchase Budget,54490,CP ExternalOther Exp,440800,08-Dec-15,1900187958,120000.00,HC-One Limited Callands,109640
WARRINGTON BOROUGH COUNCIL,http://opendatacommunities.org/id/unitary-authority/warrington ,FWB,Care Purchase Budget,54490,CP ExternalOther Exp,440800,14-Dec-15,1900188689,19250.00,HC-One Limited Callands,109640
WARRINGTON BOROUGH COUNCIL,http://opendatacommunities.org/id/unitary-authority/warrington ,FWB,DSG 2 Year Old Fund,31601,Payment of Grants,470050,18-Dec-15,1900189365,2110.00,Heathfield House Day Nursery,400138
WARRINGTON BOROUGH COUNCIL,http://opendatacommunities.org/id/unitary-authority/warrington ,FWB,DSG Early Years PVI Settings,32417,Private & Voluntary 3 Year Olds,470100,18-Dec-15,1900189176,7029.00,Heathfield House Day Nursery,400138
WARRINGTON BOROUGH COUNCIL,http://opendatacommunities.org/id/unitary-authority/warrington ,FWB,DSG Early Years PVI Settings,32417,Private & Voluntary 4 Year Olds,470150,18-Dec-15,1900189276,3166.00,Heathfield House Day Nursery,400138
WARRINGTON BOROUGH COUNCIL,http://opendatacommunities.org/id/unitary-authority/warrington ,FWB,Care Purchase Budget,54490,CP ExternalOther Exp,440800,07-Dec-15,1900187932,12000.00,Heathfield Residental Home,100059
WARRINGTON BOROUGH COUNCIL,http://opendatacommunities.org/id/unitary-authority/warrington ,FWB,Care Purchase Budget,54490,CP ExternalOther Exp,440800,16-Dec-15,1900188892,1121.00,Heathfield Residental Home,100059
WARRINGTON BOROUGH COUNCIL,http://opendatacommunities.org/id/unitary-authority/warrington ,FWB,Care Purchase Budget,54490,CP ExternalOther Exp,440800,09-Dec-15,1900188447,30000.00,Heathside Elderly Persons Home,104777
WARRINGTON BOROUGH COUNCIL,http://opendatacommunities.org/id/unitary-authority/warrington ,EE0,C'WayResurface/ Treatment,44212,Other Advertising & Publicity,450050,09-Dec-15,1900188483,675.00,Hemming Group Ltd,104779
WARRINGTON BOROUGH COUNCIL,http://opendatacommunities.org/id/unitary-authority/warrington ,FWB,Neighbourhood Co-o Central,51309,Payment of Grants,470050,11-Dec-15,1900188590,920.00,Heritage Family Support Group,115009
WARRINGTON BOROUGH COUNCIL,http://opendatacommunities.org/id/unitary-authority/warrington ,RSC,Parish Elections,11580,Elections - Clerical,159300,21-Dec-15,1900189508,588.00,HM Revenue & Customs,113822
WARRINGTON BOROUGH COUNCIL,http://opendatacommunities.org/id/unitary-authority/warrington ,RSC,Council Tax & Recovery,10320,Court Costs,460100,08-Dec-15,1900187988,1890.00,Hmcs North Cheshire Collections,102261
WARRINGTON BOROUGH COUNCIL,http://opendatacommunities.org/id/unitary-authority/warrington ,FWB,DSG 2 Year Old Fund,31601,Payment of Grants,470050,18-Dec-15,1900189366,1310.00,Holly Grange Montessori Nursery Ltd,400236
WARRINGTON BOROUGH COUNCIL,http://opendatacommunities.org/id/unitary-authority/warrington ,FWB,DSG Early Years PVI Settings,32417,Private & Voluntary 3 Year Olds,470100,18-Dec-15,1900189178,4070.00,Holly Grange Montessori Nursery Ltd,400236
WARRINGTON BOROUGH COUNCIL,http://opendatacommunities.org/id/unitary-authority/warrington ,FWB,DSG Early Years PVI Settings,32417,Private & Voluntary 4 Year Olds,470150,18-Dec-15,1900189278,1809.00,Holly Grange Montessori Nursery Ltd,400236
WARRINGTON BOROUGH COUNCIL,http://opendatacommunities.org/id/unitary-authority/warrington ,FWB,Care Purchase - PD,54440,CP-Domicil.External,440950,02-Dec-15,1900187769,2524.00,Homelife Leeds Ltd,101794
WARRINGTON BOROUGH COUNCIL,http://opendatacommunities.org/id/unitary-authority/warrington ,FWB,Care Purchase - PD,54440,CP-Domicil.External,440950,24-Dec-15,1900189772,2524.00,Homelife Leeds Ltd,101794
WARRINGTON BOROUGH COUNCIL,http://opendatacommunities.org/id/unitary-authority/warrington ,FWB,SCM St Thomas Primary School,33123,Response Maintenance,200000,01-Dec-15,1900187625,528.00,Hoult Group Services,111129
WARRINGTON BOROUGH COUNCIL,http://opendatacommunities.org/id/unitary-authority/warrington ,FWB,SCM Ravenbank Primary School,33130,Response Maintenance,200000,18-Dec-15,1900189060,966.00,Hoult Group Services,111129
WARRINGTON BOROUGH COUNCIL,http://opendatacommunities.org/id/unitary-authority/warrington ,FWB,SCM St Helen's Primary School,33158,Response Maintenance,200000,18-Dec-15,1900189047,642.00,Hoult Group Services,111129
WARRINGTON BOROUGH COUNCIL,http://opendatacommunities.org/id/unitary-authority/warrington ,FWB,DAT Pooled Budget,53860,Drug Action,443600,04-Dec-15,1900187853,867.00,Hub Pharmacy Ltd,104278
WARRINGTON BOROUGH COUNCIL,http://opendatacommunities.org/id/unitary-authority/warrington ,FWB,Care Purchase - Learning Disability,54450,CP-Domicil.External,440950,02-Dec-15,1900187668,3480.00,Icare Service Limited,110435
WARRINGTON BOROUGH COUNCIL,http://opendatacommunities.org/id/unitary-authority/warrington ,FWB,Care Purchase - Learning Disability,54450,CP-Day Care-External,441100,02-Dec-15,1900187668,5133.00,Icare Service Limited,110435
WARRINGTON BOROUGH COUNCIL,http://opendatacommunities.org/id/unitary-authority/warrington ,FWB,Care Purchase - Learning Disability,54450,CP-Domicil.External,440950,16-Dec-15,1900188901,3480.00,Icare Service Limited,110435
WARRINGTON BOROUGH COUNCIL,http://opendatacommunities.org/id/unitary-authority/warrington ,FWB,Care Purchase - Learning Disability,54450,CP-Day Care-External,441100,16-Dec-15,1900188901,5133.00,Icare Service Limited,110435
WARRINGTON BOROUGH COUNCIL,http://opendatacommunities.org/id/unitary-authority/warrington ,FWB,Care Purchase - Learning Disability,54450,CP-Domicil.External,440950,16-Dec-15,1900188914,1197.00,Icare Service Limited,110435
WARRINGTON BOROUGH COUNCIL,http://opendatacommunities.org/id/unitary-authority/warrington ,FWB,Care Purchase - Learning Disability,54450,CP-LongStayExternal,441150,02-Dec-15,1900187741,8520.00,Icare Service Limited,110435
WARRINGTON BOROUGH COUNCIL,http://opendatacommunities.org/id/unitary-authority/warrington ,FWB,Care Purchase - Learning Disability,54450,CP-LongStayExternal,441150,16-Dec-15,1900188880,8528.00,Icare Service Limited,110435
WARRINGTON BOROUGH COUNCIL,http://opendatacommunities.org/id/unitary-authority/warrington ,FWB,Care Purchase - Learning Disability,54450,CP-LongStayExternal,441150,02-Dec-15,1900187667,9091.00,Icare Service Limited,110435
WARRINGTON BOROUGH COUNCIL,http://opendatacommunities.org/id/unitary-authority/warrington ,FWB,Care Purchase - Learning Disability,54450,CP-LongStayExternal,441150,02-Dec-15,1900187742,11071.00,Icare Service Limited,110435
WARRINGTON BOROUGH COUNCIL,http://opendatacommunities.org/id/unitary-authority/warrington ,FWB,Care Purchase - Learning Disability,54450,CP-LongStayExternal,441150,02-Dec-15,1900187665,9207.00,Icare Service Limited,110435
WARRINGTON BOROUGH COUNCIL,http://opendatacommunities.org/id/unitary-authority/warrington ,FWB,Care Purchase - Learning Disability,54450,CP-LongStayExternal,441150,16-Dec-15,1900188894,9091.00,Icare Service Limited,110435
WARRINGTON BOROUGH COUNCIL,http://opendatacommunities.org/id/unitary-authority/warrington ,FWB,Care Purchase - Learning Disability,54450,CP-LongStayExternal,441150,16-Dec-15,1900188904,11071.00,Icare Service Limited,110435
WARRINGTON BOROUGH COUNCIL,http://opendatacommunities.org/id/unitary-authority/warrington ,FWB,Care Purchase - Learning Disability,54450,CP-LongStayExternal,441150,16-Dec-15,1900188903,9207.00,Icare Service Limited,110435
WARRINGTON BOROUGH COUNCIL,http://opendatacommunities.org/id/unitary-authority/warrington ,FWB,Child Disability,32212,CP-Domicil.External,440950,14-Dec-15,1900188746,1764.00,Icare Service Limited,110435
WARRINGTON BOROUGH COUNCIL,http://opendatacommunities.org/id/unitary-authority/warrington ,FWB,Care Purchase - Learning Disability,54450,CP-Domicil.External,440950,02-Dec-15,1900187744,3240.00,Icare Service Limited,110435
WARRINGTON BOROUGH COUNCIL,http://opendatacommunities.org/id/unitary-authority/warrington ,FWB,Care Purchase - Learning Disability,54450,CP-Day Care-External,441100,02-Dec-15,1900187744,4125.00,Icare Service Limited,110435
WARRINGTON BOROUGH COUNCIL,http://opendatacommunities.org/id/unitary-authority/warrington ,FWB,Care Purchase - Learning Disability,54450,CP-Domicil.External,440950,16-Dec-15,1900188898,3240.00,Icare Service Limited,110435
WARRINGTON BOROUGH COUNCIL,http://opendatacommunities.org/id/unitary-authority/warrington ,FWB,Care Purchase - Learning Disability,54450,CP-Day Care-External,441100,16-Dec-15,1900188898,4125.00,Icare Service Limited,110435
WARRINGTON BOROUGH COUNCIL,http://opendatacommunities.org/id/unitary-authority/warrington ,FWB,Care Purchase - Learning Disability,54450,CP-Day Care-External,441100,02-Dec-15,1900187669,1980.00,Icare Service Limited,110435
WARRINGTON BOROUGH COUNCIL,http://opendatacommunities.org/id/unitary-authority/warrington ,FWB,Care Purchase - Learning Disability,54450,CP-Domicil.External,440950,02-Dec-15,1900187761,924.00,Icare Service Limited,110435
WARRINGTON BOROUGH COUNCIL,http://opendatacommunities.org/id/unitary-authority/warrington ,FWB,Care Purchase - Learning Disability,54450,CP-Domicil.External,440950,02-Dec-15,1900187672,3551.00,Icare Service Limited,110435
WARRINGTON BOROUGH COUNCIL,http://opendatacommunities.org/id/unitary-authority/warrington ,FWB,Care Purchase - Learning Disability,54450,CP-LongStayExternal,441150,16-Dec-15,1900188906,984.00,Icare Service Limited,110435
WARRINGTON BOROUGH COUNCIL,http://opendatacommunities.org/id/unitary-authority/warrington ,FWB,Care Purchase - Learning Disability,54450,CP-Day Care-External,441100,16-Dec-15,1900188896,1980.00,Icare Service Limited,110435
WARRINGTON BOROUGH COUNCIL,http://opendatacommunities.org/id/unitary-authority/warrington ,FWB,Care Purchase - Learning Disability,54450,CP-LongStayExternal,441150,02-Dec-15,1900187674,5420.00,Icare Service Limited,110435
WARRINGTON BOROUGH COUNCIL,http://opendatacommunities.org/id/unitary-authority/warrington ,FWB,Care Purchase - Learning Disability,54450,CP-LongStayExternal,441150,16-Dec-15,1900188915,5420.00,Icare Service Limited,110435
WARRINGTON BOROUGH COUNCIL,http://opendatacommunities.org/id/unitary-authority/warrington ,FWB,Care Purchase - Learning Disability,54450,CP-Domicil.External,440950,02-Dec-15,1900187666,1227.00,Icare Service Limited,110435
WARRINGTON BOROUGH COUNCIL,http://opendatacommunities.org/id/unitary-authority/warrington ,FWB,Care Purchase - Learning Disability,54450,CP-Day Care-External,441100,02-Dec-15,1900187666,1027.00,Icare Service Limited,110435
WARRINGTON BOROUGH COUNCIL,http://opendatacommunities.org/id/unitary-authority/warrington ,FWB,Care Purchase - Learning Disability,54450,CP-Domicil.External,440950,16-Dec-15,1900188911,1227.00,Icare Service Limited,110435
WARRINGTON BOROUGH COUNCIL,http://opendatacommunities.org/id/unitary-authority/warrington ,FWB,Care Purchase - Learning Disability,54450,CP-Day Care-External,441100,16-Dec-15,1900188911,1027.00,Icare Service Limited,110435
WARRINGTON BOROUGH COUNCIL,http://opendatacommunities.org/id/unitary-authority/warrington ,FWB,Care Purchase - Learning Disability,54450,CP-Domicil.External,440950,02-Dec-15,1900187664,924.00,Icare Service Limited,110435
WARRINGTON BOROUGH COUNCIL,http://opendatacommunities.org/id/unitary-authority/warrington ,FWB,Care Purchase - Learning Disability,54450,CP-Day Care-External,441100,02-Dec-15,1900187664,2310.00,Icare Service Limited,110435
WARRINGTON BOROUGH COUNCIL,http://opendatacommunities.org/id/unitary-authority/warrington ,FWB,Care Purchase - Learning Disability,54450,CP-Domicil.External,440950,16-Dec-15,1900188913,924.00,Icare Service Limited,110435
WARRINGTON BOROUGH COUNCIL,http://opendatacommunities.org/id/unitary-authority/warrington ,FWB,Care Purchase - Learning Disability,54450,CP-Day Care-External,441100,16-Dec-15,1900188913,2310.00,Icare Service Limited,110435
WARRINGTON BOROUGH COUNCIL,http://opendatacommunities.org/id/unitary-authority/warrington ,FWB,Older Peoples South Team,54421,CP-LongStayExternal,441150,02-Dec-15,1900187745,1640.00,Ideal Carehomes (Number One) Ltd,108328
WARRINGTON BOROUGH COUNCIL,http://opendatacommunities.org/id/unitary-authority/warrington ,FWB,Older Peoples South Team,54421,CP-LongStayExternal,441150,22-Dec-15,1900189566,1640.00,Ideal Carehomes (Number One) Ltd,108328
WARRINGTON BOROUGH COUNCIL,http://opendatacommunities.org/id/unitary-authority/warrington ,FWB,Care Purchase - Learning Disability,54450,CP-LongStayExternal,441150,23-Dec-15,1900189612,12744.00,Inclusive Lifestyles Ltd,101840
WARRINGTON BOROUGH COUNCIL,http://opendatacommunities.org/id/unitary-authority/warrington ,FWB,Care Purchase - Learning Disability,54450,CP-LongStayExternal,441150,23-Dec-15,1900189609,12613.00,Inclusive Lifestyles Ltd,101840
WARRINGTON BOROUGH COUNCIL,http://opendatacommunities.org/id/unitary-authority/warrington ,FWB,Care Purchase - Learning Disability,54450,CP-LongStayExternal,441150,23-Dec-15,1900189613,1482.00,Inclusive Lifestyles Ltd,101840
WARRINGTON BOROUGH COUNCIL,http://opendatacommunities.org/id/unitary-authority/warrington ,FWB,Care Purchase - Learning Disability,54450,CP-Domicil.External,440950,02-Dec-15,1900187673,4538.00,Independent Living Alliance,100726
WARRINGTON BOROUGH COUNCIL,http://opendatacommunities.org/id/unitary-authority/warrington ,FWB,Care Purchase AMH,54135,CP-Domicil.External,440950,02-Dec-15,1900187670,1843.00,Independent Living Alliance,100726
WARRINGTON BOROUGH COUNCIL,http://opendatacommunities.org/id/unitary-authority/warrington ,FWB,Care Purchase AMH,54135,CP-Domicil.External,440950,02-Dec-15,1900187675,3514.00,Independent Living Alliance,100726
WARRINGTON BOROUGH COUNCIL,http://opendatacommunities.org/id/unitary-authority/warrington ,FWB,Care Purchase - ABI,54260,CP-Domicil.External,440950,02-Dec-15,1900187675,2357.00,Independent Living Alliance,100726
WARRINGTON BOROUGH COUNCIL,http://opendatacommunities.org/id/unitary-authority/warrington ,FWB,Care Purchase AMH,54135,CP-Domicil.External,440950,02-Dec-15,1900187746,13779.00,Independent Living Alliance,100726
WARRINGTON BOROUGH COUNCIL,http://opendatacommunities.org/id/unitary-authority/warrington ,FWB,Care Purchase AMH,54135,CP-Domicil.External,440950,02-Dec-15,1900187681,14755.00,Independent Living Alliance,100726
WARRINGTON BOROUGH COUNCIL,http://opendatacommunities.org/id/unitary-authority/warrington ,FWB,Care Purchase AMH,54135,Supporting People - External,441250,02-Dec-15,1900187681,5453.00,Independent Living Alliance,100726
WARRINGTON BOROUGH COUNCIL,http://opendatacommunities.org/id/unitary-authority/warrington ,FWB,Care Purchase AMH,54135,CP-Domicil.External,440950,02-Dec-15,1900187677,9356.00,Independent Living Alliance,100726
WARRINGTON BOROUGH COUNCIL,http://opendatacommunities.org/id/unitary-authority/warrington ,FWB,Care Purchase AMH,54135,Supporting People - External,441250,02-Dec-15,1900187677,5329.00,Independent Living Alliance,100726
WARRINGTON BOROUGH COUNCIL,http://opendatacommunities.org/id/unitary-authority/warrington ,FWB,Care Purchase AMH,54135,CP-Domicil.External,440950,02-Dec-15,1900187679,2357.00,Independent Living Alliance,100726
WARRINGTON BOROUGH COUNCIL,http://opendatacommunities.org/id/unitary-authority/warrington ,FWB,Care Purchase AMH,54135,CP-Domicil.External,440950,02-Dec-15,1900187671,2227.00,Independent Living Alliance,100726
WARRINGTON BOROUGH COUNCIL,http://opendatacommunities.org/id/unitary-authority/warrington ,FWB,Care Purchase - ABI,54260,CP-Domicil.External,440950,02-Dec-15,1900187671,1605.00,Independent Living Alliance,100726
WARRINGTON BOROUGH COUNCIL,http://opendatacommunities.org/id/unitary-authority/warrington ,FWB,Care Purchase AMH,54135,CP-Domicil.External,440950,02-Dec-15,1900187676,12143.00,Independent Living Alliance,100726
WARRINGTON BOROUGH COUNCIL,http://opendatacommunities.org/id/unitary-authority/warrington ,FWB,Care Purchase AMH,54135,Supporting People - External,441250,02-Dec-15,1900187676,1853.00,Independent Living Alliance,100726
WARRINGTON BOROUGH COUNCIL,http://opendatacommunities.org/id/unitary-authority/warrington ,RSC,ICT Networks,23400,ICT Comms - Line Rental,450200,24-Dec-15,1900189776,1653.00,Intrinsic Technology Limited,108170
WARRINGTON BOROUGH COUNCIL,http://opendatacommunities.org/id/unitary-authority/warrington ,RSC,ICT Networks,23400,ICT Comms - Line Usage,450300,24-Dec-15,1900189776,1162.00,Intrinsic Technology Limited,108170
WARRINGTON BOROUGH COUNCIL,http://opendatacommunities.org/id/unitary-authority/warrington ,EE0,Taxi and Private Hire Licensing,44450,Consult.& Prof. Serv,440000,22-Dec-15,1900189591,1092.00,IOS International Security Agency,112729
WARRINGTON BOROUGH COUNCIL,http://opendatacommunities.org/id/unitary-authority/warrington ,ENO,Housing Projects,82008,Disabled Persons Grant 1996,554000,16-Dec-15,1900188819,13825.00,J Barton Building Plumbing & Electr,111201
WARRINGTON BOROUGH COUNCIL,http://opendatacommunities.org/id/unitary-authority/warrington ,FWB,DSG Early Years PVI Settings,32417,Private & Voluntary 3 Year Olds,470100,18-Dec-15,1900189179,7805.00,Jack & Jill Pre School,400014
WARRINGTON BOROUGH COUNCIL,http://opendatacommunities.org/id/unitary-authority/warrington ,FWB,DSG Early Years PVI Settings,32417,Private & Voluntary 4 Year Olds,470150,18-Dec-15,1900189279,1316.00,Jack & Jill Pre School,400014
WARRINGTON BOROUGH COUNCIL,http://opendatacommunities.org/id/unitary-authority/warrington ,CYP,Childrens Other,81004,Furniture & Fittings,400150,11-Dec-15,1900188595,1931.00,Jacob Interiors UK Ltd,115006
WARRINGTON BOROUGH COUNCIL,http://opendatacommunities.org/id/unitary-authority/warrington ,RSC,IT - Contracts,23600,Computer Software - Maintenance,450850,09-Dec-15,1900188452,2096.00,Jadu Ltd,109457
WARRINGTON BOROUGH COUNCIL,http://opendatacommunities.org/id/unitary-authority/warrington ,FWB,DSG 2 Year Old Fund,31601,Payment of Grants,470050,18-Dec-15,1900189367,655.00,Janet Griffiths- Happy House Childc,108803
WARRINGTON BOROUGH COUNCIL,http://opendatacommunities.org/id/unitary-authority/warrington ,FWB,DSG Early Years PVI Settings,32417,Private & Voluntary 3 Year Olds,470100,18-Dec-15,1900189181,543.00,Janet Griffiths- Happy House Childc,108803
WARRINGTON BOROUGH COUNCIL,http://opendatacommunities.org/id/unitary-authority/warrington ,COR,Debt Management Expenses,62080,Consult.& Prof. Serv,440000,18-Dec-15,1900189000,12500.00,K&L Gates LLP,114762
WARRINGTON BOROUGH COUNCIL,http://opendatacommunities.org/id/unitary-authority/warrington ,COR,Debt Management Expenses,62080,Consult.& Prof. Serv,440000,18-Dec-15,1900189005,12500.00,K&L Gates LLP,114762
WARRINGTON BOROUGH COUNCIL,http://opendatacommunities.org/id/unitary-authority/warrington ,COR,Debt Management Expenses,62080,Consult.& Prof. Serv,440000,18-Dec-15,1900189004,4167.00,K&L Gates LLP,114762
WARRINGTON BOROUGH COUNCIL,http://opendatacommunities.org/id/unitary-authority/warrington ,COR,Debt Management Expenses,62080,Consult.& Prof. Serv,440000,18-Dec-15,1900188999,4167.00,K&L Gates LLP,114762
WARRINGTON BOROUGH COUNCIL,http://opendatacommunities.org/id/unitary-authority/warrington ,FWB,DSG 2 Year Old Fund,31601,Payment of Grants,470050,18-Dec-15,1900189369,3274.00,Kalgarth Grange Nursery,400096
WARRINGTON BOROUGH COUNCIL,http://opendatacommunities.org/id/unitary-authority/warrington ,FWB,DSG Early Years PVI Settings,32417,Private & Voluntary 3 Year Olds,470100,18-Dec-15,1900189183,13377.00,Kalgarth Grange Nursery,400096
WARRINGTON BOROUGH COUNCIL,http://opendatacommunities.org/id/unitary-authority/warrington ,FWB,DSG Early Years PVI Settings,32417,Private & Voluntary 4 Year Olds,470150,18-Dec-15,1900189280,3618.00,Kalgarth Grange Nursery,400096
WARRINGTON BOROUGH COUNCIL,http://opendatacommunities.org/id/unitary-authority/warrington ,FWB,Care Purchase Budget,54490,CP ExternalOther Exp,440800,07-Dec-15,1900187934,30000.00,Keate House Residential Home,104849
WARRINGTON BOROUGH COUNCIL,http://opendatacommunities.org/id/unitary-authority/warrington ,FWB,Care Purchase Budget,54490,CP ExternalOther Exp,440800,24-Dec-15,1900189770,1767.00,Keate House Residential Home,104849
WARRINGTON BOROUGH COUNCIL,http://opendatacommunities.org/id/unitary-authority/warrington ,FWB,DSG 2 Year Old Fund,31601,Payment of Grants,470050,18-Dec-15,1900189357,6548.00,Kids on top t/a Cotton Tails Nurser,400137
WARRINGTON BOROUGH COUNCIL,http://opendatacommunities.org/id/unitary-authority/warrington ,FWB,DSG Early Years PVI Settings,32417,Private & Voluntary 3 Year Olds,470100,18-Dec-15,1900189163,19602.00,Kids on top t/a Cotton Tails Nurser,400137
WARRINGTON BOROUGH COUNCIL,http://opendatacommunities.org/id/unitary-authority/warrington ,FWB,DSG Early Years PVI Settings,32417,Private & Voluntary 4 Year Olds,470150,18-Dec-15,1900189264,6633.00,Kids on top t/a Cotton Tails Nurser,400137
WARRINGTON BOROUGH COUNCIL,http://opendatacommunities.org/id/unitary-authority/warrington ,FWB,DSG 2 Year Old Fund,31601,Payment of Grants,470050,18-Dec-15,1900189370,14957.00,Kids Planet Warrington,105710
WARRINGTON BOROUGH COUNCIL,http://opendatacommunities.org/id/unitary-authority/warrington ,FWB,DSG 2 Year Old Fund,31601,Payment of Grants,470050,18-Dec-15,1900189371,1964.00,Kids Planet Warrington,105710
WARRINGTON BOROUGH COUNCIL,http://opendatacommunities.org/id/unitary-authority/warrington ,FWB,DSG 2 Year Old Fund,31601,Payment of Grants,470050,18-Dec-15,1900189372,12586.00,Kids Planet Warrington,105710
WARRINGTON BOROUGH COUNCIL,http://opendatacommunities.org/id/unitary-authority/warrington ,FWB,DSG Early Years PVI Settings,32417,Private & Voluntary 3 Year Olds,470100,18-Dec-15,1900189184,8244.00,Kids Planet Warrington,105710
WARRINGTON BOROUGH COUNCIL,http://opendatacommunities.org/id/unitary-authority/warrington ,FWB,DSG Early Years PVI Settings,32417,Private & Voluntary 3 Year Olds,470100,18-Dec-15,1900189185,20710.00,Kids Planet Warrington,105710
WARRINGTON BOROUGH COUNCIL,http://opendatacommunities.org/id/unitary-authority/warrington ,FWB,DSG Early Years PVI Settings,32417,Private & Voluntary 3 Year Olds,470100,18-Dec-15,1900189186,13675.00,Kids Planet Warrington,105710
WARRINGTON BOROUGH COUNCIL,http://opendatacommunities.org/id/unitary-authority/warrington ,FWB,DSG Early Years PVI Settings,32417,Private & Voluntary 4 Year Olds,470150,18-Dec-15,1900189281,904.00,Kids Planet Warrington,105710
WARRINGTON BOROUGH COUNCIL,http://opendatacommunities.org/id/unitary-authority/warrington ,FWB,DSG Early Years PVI Settings,32417,Private & Voluntary 4 Year Olds,470150,18-Dec-15,1900189282,4070.00,Kids Planet Warrington,105710
WARRINGTON BOROUGH COUNCIL,http://opendatacommunities.org/id/unitary-authority/warrington ,FWB,DSG Early Years PVI Settings,32417,Private & Voluntary 4 Year Olds,470150,18-Dec-15,1900189283,3618.00,Kids Planet Warrington,105710
WARRINGTON BOROUGH COUNCIL,http://opendatacommunities.org/id/unitary-authority/warrington ,FWB,DSG Early Years PVI Settings,32417,Payment of Grants,470050,21-Dec-15,1900189440,1500.00,Kids Planet Warrington,105710
WARRINGTON BOROUGH COUNCIL,http://opendatacommunities.org/id/unitary-authority/warrington ,FWB,DSG Early Years PVI Settings,32417,Payment of Grants,470050,21-Dec-15,1900189441,1500.00,Kids Planet Warrington,105710
WARRINGTON BOROUGH COUNCIL,http://opendatacommunities.org/id/unitary-authority/warrington ,FWB,SM - Public Health 2,55300,Gen. Personal Needs,490850,04-Dec-15,1900187857,1869.00,Kool Blue Ltd,114981
WARRINGTON BOROUGH COUNCIL,http://opendatacommunities.org/id/unitary-authority/warrington ,FWB,Contracts - SM Commissioning Team 2,55920,Public Health Contract Payments,540000,21-Dec-15,1900189507,1540.00,Lakeside Surgery,112307
WARRINGTON BOROUGH COUNCIL,http://opendatacommunities.org/id/unitary-authority/warrington ,FWB,Older Peoples South Team,54421,CP-LongStayExternal,441150,14-Dec-15,1900188688,1964.00,Lancashire County Council,410062
WARRINGTON BOROUGH COUNCIL,http://opendatacommunities.org/id/unitary-authority/warrington ,FWB,Contracts - SM Commissioning Team 2,55920,Public Health Contract Payments,540000,21-Dec-15,1900189509,1144.00,Latchford Medical Centre,104869
WARRINGTON BOROUGH COUNCIL,http://opendatacommunities.org/id/unitary-authority/warrington ,FWB,Contracts - SM Commissioning Team 2,55920,Public Health Contract Payments,540000,21-Dec-15,1900189509,514.00,Latchford Medical Centre,104869
WARRINGTON BOROUGH COUNCIL,http://opendatacommunities.org/id/unitary-authority/warrington ,FWB,Care Purchase - PD,54440,CP-Nursing Care-External,441200,16-Dec-15,1900188889,4899.00,Leonard Cheshire Disability,100370
WARRINGTON BOROUGH COUNCIL,http://opendatacommunities.org/id/unitary-authority/warrington ,FWB,Care Purchase - PD,54440,CP-Nursing Care-External,441200,16-Dec-15,1900188888,2822.00,Leonard Cheshire Disability,100370
WARRINGTON BOROUGH COUNCIL,http://opendatacommunities.org/id/unitary-authority/warrington ,FWB,Care Purchase AMH,54135,CP-LongStayExternal,441150,16-Dec-15,1900188882,1393.00,Ley Community Drug Services,107958
WARRINGTON BOROUGH COUNCIL,http://opendatacommunities.org/id/unitary-authority/warrington ,FWB,Care Purchase Budget,54490,CP ExternalOther Exp,440800,14-Dec-15,1900188674,40883.00,Leyton Healthcare,102517
WARRINGTON BOROUGH COUNCIL,http://opendatacommunities.org/id/unitary-authority/warrington ,FWB,Care Purchase Budget,54490,CP ExternalOther Exp,440800,08-Dec-15,1900187961,75000.00,Leyton Healthcare Limited,108970
WARRINGTON BOROUGH COUNCIL,http://opendatacommunities.org/id/unitary-authority/warrington ,FWB,Care Purchase Budget,54490,CP ExternalOther Exp,440800,14-Dec-15,1900188673,10640.00,Leyton Healthcare Limited,108970
WARRINGTON BOROUGH COUNCIL,http://opendatacommunities.org/id/unitary-authority/warrington ,FWB,Older Peoples North Team,54422,CP-LongStayExternal,441150,16-Dec-15,1900188886,1888.00,Linear Park (Housing With Care),100897
WARRINGTON BOROUGH COUNCIL,http://opendatacommunities.org/id/unitary-authority/warrington ,FWB,Older Peoples North Team,54422,CP-LongStayExternal,441150,07-Dec-15,1900187916,1888.00,Linear Park (Housing With Care),100897
WARRINGTON BOROUGH COUNCIL,http://opendatacommunities.org/id/unitary-authority/warrington ,FWB,Older Peoples North Team,54422,CP-LongStayExternal,441150,07-Dec-15,1900187917,1888.00,Linear Park (Housing With Care),100897
WARRINGTON BOROUGH COUNCIL,http://opendatacommunities.org/id/unitary-authority/warrington ,FWB,DSG 2 Year Old Fund,31601,Payment of Grants,470050,18-Dec-15,1900189374,5020.00,Little Acorns Day Nursery,400012
WARRINGTON BOROUGH COUNCIL,http://opendatacommunities.org/id/unitary-authority/warrington ,FWB,DSG Early Years PVI Settings,32417,Private & Voluntary 3 Year Olds,470100,18-Dec-15,1900189187,28040.00,Little Acorns Day Nursery,400012
WARRINGTON BOROUGH COUNCIL,http://opendatacommunities.org/id/unitary-authority/warrington ,FWB,DSG Early Years PVI Settings,32417,Private & Voluntary 4 Year Olds,470150,18-Dec-15,1900189285,8894.00,Little Acorns Day Nursery,400012
WARRINGTON BOROUGH COUNCIL,http://opendatacommunities.org/id/unitary-authority/warrington ,FWB,DSG Early Years PVI Settings,32417,Payment of Grants,470050,21-Dec-15,1900189442,1500.00,Little Acorns Day Nursery,400012
WARRINGTON BOROUGH COUNCIL,http://opendatacommunities.org/id/unitary-authority/warrington ,FWB,DSG 2 Year Old Fund,31601,Payment of Grants,470050,18-Dec-15,1900189375,4583.00,Little Browsers Playgroup,400140
WARRINGTON BOROUGH COUNCIL,http://opendatacommunities.org/id/unitary-authority/warrington ,FWB,DSG Early Years PVI Settings,32417,Private & Voluntary 3 Year Olds,470100,18-Dec-15,1900189188,8140.00,Little Browsers Playgroup,400140
WARRINGTON BOROUGH COUNCIL,http://opendatacommunities.org/id/unitary-authority/warrington ,FWB,DSG Early Years PVI Settings,32417,Private & Voluntary 4 Year Olds,470150,18-Dec-15,1900189286,1357.00,Little Browsers Playgroup,400140
WARRINGTON BOROUGH COUNCIL,http://opendatacommunities.org/id/unitary-authority/warrington ,FWB,DSG Early Years PVI Settings,32417,Payment of Grants,470050,21-Dec-15,1900189443,1500.00,Little Browsers Playgroup,400140
WARRINGTON BOROUGH COUNCIL,http://opendatacommunities.org/id/unitary-authority/warrington ,FWB,DSG 2 Year Old Fund,31601,Payment of Grants,470050,18-Dec-15,1900189376,4583.00,Little Penguins Day Nursery,110768
WARRINGTON BOROUGH COUNCIL,http://opendatacommunities.org/id/unitary-authority/warrington ,FWB,DSG Early Years PVI Settings,32417,Private & Voluntary 3 Year Olds,470100,18-Dec-15,1900189189,9156.00,Little Penguins Day Nursery,110768
WARRINGTON BOROUGH COUNCIL,http://opendatacommunities.org/id/unitary-authority/warrington ,FWB,DSG Early Years PVI Settings,32417,Private & Voluntary 4 Year Olds,470150,18-Dec-15,1900189287,1809.00,Little Penguins Day Nursery,110768
WARRINGTON BOROUGH COUNCIL,http://opendatacommunities.org/id/unitary-authority/warrington ,FWB,DSG Early Years PVI Settings,32417,Payment of Grants,470050,21-Dec-15,1900189444,1500.00,Little Penguins Day Nursery,110768
WARRINGTON BOROUGH COUNCIL,http://opendatacommunities.org/id/unitary-authority/warrington ,FWB,DSG 2 Year Old Fund,31601,Payment of Grants,470050,18-Dec-15,1900189377,11310.00,Little Treasures Nursery Ltd,400091
WARRINGTON BOROUGH COUNCIL,http://opendatacommunities.org/id/unitary-authority/warrington ,FWB,DSG Early Years PVI Settings,32417,Private & Voluntary 3 Year Olds,470100,18-Dec-15,1900189190,7994.00,Little Treasures Nursery Ltd,400091
WARRINGTON BOROUGH COUNCIL,http://opendatacommunities.org/id/unitary-authority/warrington ,FWB,DSG Early Years PVI Settings,32417,Private & Voluntary 4 Year Olds,470150,18-Dec-15,1900189288,4522.00,Little Treasures Nursery Ltd,400091
WARRINGTON BOROUGH COUNCIL,http://opendatacommunities.org/id/unitary-authority/warrington ,FWB,DSG Early Years PVI Settings,32417,Payment of Grants,470050,21-Dec-15,1900189445,1500.00,Little Treasures Nursery Ltd,400091
WARRINGTON BOROUGH COUNCIL,http://opendatacommunities.org/id/unitary-authority/warrington ,FWB,DSG Early Years PVI Settings,32417,Private & Voluntary 3 Year Olds,470100,18-Dec-15,1900189191,5081.00,Locking Stumps Day Nursery,400142
WARRINGTON BOROUGH COUNCIL,http://opendatacommunities.org/id/unitary-authority/warrington ,FWB,DSG Early Years PVI Settings,32417,Private & Voluntary 4 Year Olds,470150,18-Dec-15,1900189289,2589.00,Locking Stumps Day Nursery,400142
WARRINGTON BOROUGH COUNCIL,http://opendatacommunities.org/id/unitary-authority/warrington ,FWB,DSG 2 Year Old Fund,31601,Payment of Grants,470050,18-Dec-15,1900189378,2343.00,Locking Stumps Pre School,400008
WARRINGTON BOROUGH COUNCIL,http://opendatacommunities.org/id/unitary-authority/warrington ,FWB,DSG Early Years PVI Settings,32417,Private & Voluntary 3 Year Olds,470100,18-Dec-15,1900189192,6011.00,Locking Stumps Pre School,400008
WARRINGTON BOROUGH COUNCIL,http://opendatacommunities.org/id/unitary-authority/warrington ,FWB,DSG Early Years PVI Settings,32417,Private & Voluntary 4 Year Olds,470150,18-Dec-15,1900189290,1755.00,Locking Stumps Pre School,400008
WARRINGTON BOROUGH COUNCIL,http://opendatacommunities.org/id/unitary-authority/warrington ,RSC,Postal & Courier Services,52130,Postages,450000,08-Dec-15,1900187945,2000.00,Logistex Express Ltd,100946
WARRINGTON BOROUGH COUNCIL,http://opendatacommunities.org/id/unitary-authority/warrington ,FWB,Care Purchase Budget,54490,CP ExternalOther Exp,440800,08-Dec-15,1900187959,70000.00,London & Manchester Healthcare Ltd,109185
WARRINGTON BOROUGH COUNCIL,http://opendatacommunities.org/id/unitary-authority/warrington ,FWB,Care Purchase Budget,54490,CP ExternalOther Exp,440800,10-Dec-15,1900188563,13799.00,London & Manchester Healthcare Ltd,109185
WARRINGTON BOROUGH COUNCIL,http://opendatacommunities.org/id/unitary-authority/warrington ,FWB,Neighbourhood Co-o Central,51309,Payment of Grants,470050,04-Dec-15,1900187852,1200.00,Longford Neighbourhood Service Cent,107743
WARRINGTON BOROUGH COUNCIL,http://opendatacommunities.org/id/unitary-authority/warrington ,FWB,DSG 2 Year Old Fund,31601,Payment of Grants,470050,18-Dec-15,1900189379,509.00,Lymm Village Preschool,400146
WARRINGTON BOROUGH COUNCIL,http://opendatacommunities.org/id/unitary-authority/warrington ,FWB,DSG Early Years PVI Settings,32417,Private & Voluntary 3 Year Olds,470100,18-Dec-15,1900189195,8600.00,Lymm Village Preschool,400146
WARRINGTON BOROUGH COUNCIL,http://opendatacommunities.org/id/unitary-authority/warrington ,FWB,DSG Early Years PVI Settings,32417,Private & Voluntary 4 Year Olds,470150,18-Dec-15,1900189291,3949.00,Lymm Village Preschool,400146
WARRINGTON BOROUGH COUNCIL,http://opendatacommunities.org/id/unitary-authority/warrington ,FWB,DSG Early Years PVI Settings,32417,Private & Voluntary 3 Year Olds,470100,18-Dec-15,1900189197,4824.00,Lynton Private Day Nursery,400003
WARRINGTON BOROUGH COUNCIL,http://opendatacommunities.org/id/unitary-authority/warrington ,FWB,DSG Early Years PVI Settings,32417,Private & Voluntary 4 Year Olds,470150,18-Dec-15,1900189292,1719.00,Lynton Private Day Nursery,400003
WARRINGTON BOROUGH COUNCIL,http://opendatacommunities.org/id/unitary-authority/warrington ,EE0,Estates & Valuation,43520,Agency Supply - GF,180000,09-Dec-15,1900188518,795.00,Macdonald And Company,100697
WARRINGTON BOROUGH COUNCIL,http://opendatacommunities.org/id/unitary-authority/warrington ,EE0,Estates & Valuation,43520,Agency Supply - GF,180000,09-Dec-15,1900188519,850.00,Macdonald And Company,100697
WARRINGTON BOROUGH COUNCIL,http://opendatacommunities.org/id/unitary-authority/warrington ,FWB,Care Purchase - Learning Disability,54450,CP-Domicil.External,440950,07-Dec-15,1900187897,1186.00,Macintyre Care,104907
WARRINGTON BOROUGH COUNCIL,http://opendatacommunities.org/id/unitary-authority/warrington ,FWB,Care Purchase - Learning Disability,54450,CP-Domicil.External,440950,07-Dec-15,1900187896,1494.00,Macintyre Care,104907
WARRINGTON BOROUGH COUNCIL,http://opendatacommunities.org/id/unitary-authority/warrington ,FWB,Care Purchase - Learning Disability,54450,CP-Domicil.External,440950,02-Dec-15,1900187748,1078.00,Macintyre Care,104907
WARRINGTON BOROUGH COUNCIL,http://opendatacommunities.org/id/unitary-authority/warrington ,FWB,Care Purchase - Learning Disability,54450,CP-Domicil.External,440950,02-Dec-15,1900187751,17699.00,Macintyre Care,104907
WARRINGTON BOROUGH COUNCIL,http://opendatacommunities.org/id/unitary-authority/warrington ,FWB,Care Purchase - Learning Disability,54450,CP-Domicil.External,440950,02-Dec-15,1900187750,6069.00,Macintyre Care,104907
WARRINGTON BOROUGH COUNCIL,http://opendatacommunities.org/id/unitary-authority/warrington ,FWB,Care Purchase Budget,54490,CP - Cont Care - External,441350,02-Dec-15,1900187750,510.00,Macintyre Care,104907
WARRINGTON BOROUGH COUNCIL,http://opendatacommunities.org/id/unitary-authority/warrington ,FWB,Older Peoples North Team,54422,CP-Domicil.External,440950,07-Dec-15,1900187929,1817.00,Macintyre Care,104907
WARRINGTON BOROUGH COUNCIL,http://opendatacommunities.org/id/unitary-authority/warrington ,FWB,Care Purchase - Learning Disability,54450,CP-Domicil.External,440950,07-Dec-15,1900187929,112316.00,Macintyre Care,104907
WARRINGTON BOROUGH COUNCIL,http://opendatacommunities.org/id/unitary-authority/warrington ,FWB,Care Purchase - Learning Disability,54450,Supporting People - External,441250,07-Dec-15,1900187929,25780.00,Macintyre Care,104907
WARRINGTON BOROUGH COUNCIL,http://opendatacommunities.org/id/unitary-authority/warrington ,FWB,Care Purchase Budget,54490,Voids,515150,07-Dec-15,1900187929,3373.00,Macintyre Care,104907
WARRINGTON BOROUGH COUNCIL,http://opendatacommunities.org/id/unitary-authority/warrington ,FWB,Care Purchase - Learning Disability,54450,CP-Domicil.External,440950,24-Dec-15,1900189768,17330.00,Macintyre Care,104907
WARRINGTON BOROUGH COUNCIL,http://opendatacommunities.org/id/unitary-authority/warrington ,FWB,Care Purchase - Learning Disability,54450,CP-Domicil.External,440950,24-Dec-15,1900189767,6069.00,Macintyre Care,104907
WARRINGTON BOROUGH COUNCIL,http://opendatacommunities.org/id/unitary-authority/warrington ,FWB,Care Purchase Budget,54490,CP - Cont Care - External,441350,24-Dec-15,1900189767,510.00,Macintyre Care,104907
WARRINGTON BOROUGH COUNCIL,http://opendatacommunities.org/id/unitary-authority/warrington ,FWB,Care Purchase - Learning Disability,54450,CP-Domicil.External,440950,07-Dec-15,1900187911,765.00,Macintyre Care,104907
WARRINGTON BOROUGH COUNCIL,http://opendatacommunities.org/id/unitary-authority/warrington ,FWB,Care Purchase - Learning Disability,54450,CP-Domicil.External,440950,07-Dec-15,1900187913,765.00,Macintyre Care,104907
WARRINGTON BOROUGH COUNCIL,http://opendatacommunities.org/id/unitary-authority/warrington ,FWB,Care Purchase - Learning Disability,54450,CP-LongStayExternal,441150,16-Dec-15,1900188925,5076.00,Macintyre Care,104907
WARRINGTON BOROUGH COUNCIL,http://opendatacommunities.org/id/unitary-authority/warrington ,FWB,Care Purchase - Learning Disability,54450,Supporting People - External,441250,23-Dec-15,1900189601,564.00,Macintyre Care,104907
WARRINGTON BOROUGH COUNCIL,http://opendatacommunities.org/id/unitary-authority/warrington ,FWB,Care Purchase - Learning Disability,54450,Supporting People - External,441250,18-Dec-15,1900189077,506.00,Macintyre Care,104907
WARRINGTON BOROUGH COUNCIL,http://opendatacommunities.org/id/unitary-authority/warrington ,FWB,Care Purchase - Learning Disability,54450,CP-Day Care-External,441100,16-Dec-15,1900188879,16423.00,Macintyre Care,104907
WARRINGTON BOROUGH COUNCIL,http://opendatacommunities.org/id/unitary-authority/warrington ,FWB,Care Purchase AMH,54135,CP-Domicil.External,440950,16-Dec-15,1900188878,2622.00,Making Space,104913
WARRINGTON BOROUGH COUNCIL,http://opendatacommunities.org/id/unitary-authority/warrington ,RSC,ICT Centralised Budget,23100,Computer Software - Maintenance,450850,14-Dec-15,1900188695,2800.00,Management Computer Systems Ltd,104915
WARRINGTON BOROUGH COUNCIL,http://opendatacommunities.org/id/unitary-authority/warrington ,HOL,Single Billing Holding Account,91130,Non BMP General Repairs,200050,21-Dec-15,1900189461,5874.00,Manchester Working Limited,105646
WARRINGTON BOROUGH COUNCIL,http://opendatacommunities.org/id/unitary-authority/warrington ,HOL,Single Billing Holding Account,91130,Non BMP General Repairs,200050,21-Dec-15,1900189457,8121.00,Manchester Working Limited,105646
WARRINGTON BOROUGH COUNCIL,http://opendatacommunities.org/id/unitary-authority/warrington ,HOL,Single Billing Holding Account,91130,Non BMP General Repairs,200050,21-Dec-15,1900189464,2806.00,Manchester Working Limited,105646
WARRINGTON BOROUGH COUNCIL,http://opendatacommunities.org/id/unitary-authority/warrington ,HOL,Single Billing Holding Account,91130,Specific Work,200200,21-Dec-15,1900189462,19792.00,Manchester Working Limited,105646
WARRINGTON BOROUGH COUNCIL,http://opendatacommunities.org/id/unitary-authority/warrington ,HOL,Single Billing Holding Account,91130,Specific Work,200200,21-Dec-15,1900189460,23733.00,Manchester Working Limited,105646
WARRINGTON BOROUGH COUNCIL,http://opendatacommunities.org/id/unitary-authority/warrington ,HOL,Single Billing Holding Account,91130,Specific Work,200200,21-Dec-15,1900189463,8202.00,Manchester Working Limited,105646
WARRINGTON BOROUGH COUNCIL,http://opendatacommunities.org/id/unitary-authority/warrington ,HOL,Single Billing Holding Account,91130,Specific Work,200200,21-Dec-15,1900189458,3346.00,Manchester Working Limited,105646
WARRINGTON BOROUGH COUNCIL,http://opendatacommunities.org/id/unitary-authority/warrington ,HOL,Single Billing Holding Account,91130,Non BMP General Repairs,200050,21-Dec-15,1900189459,3255.00,Manchester Working Limited,105646
WARRINGTON BOROUGH COUNCIL,http://opendatacommunities.org/id/unitary-authority/warrington ,FWB,Care Purchase - Learning Disability,54450,CP-LongStayExternal,441150,16-Dec-15,1900188883,3684.00,Manor Care Centre,103831
WARRINGTON BOROUGH COUNCIL,http://opendatacommunities.org/id/unitary-authority/warrington ,FWB,Older Peoples South Team,54421,CP-Domicil.External,440950,01-Dec-15,1900187633,27497.00,Mayfield Home Care Agency,104928
WARRINGTON BOROUGH COUNCIL,http://opendatacommunities.org/id/unitary-authority/warrington ,FWB,Older Peoples North Team,54422,CP-Domicil.External,440950,01-Dec-15,1900187633,14756.00,Mayfield Home Care Agency,104928
WARRINGTON BOROUGH COUNCIL,http://opendatacommunities.org/id/unitary-authority/warrington ,FWB,Care Purchase - Learning Disability,54450,CP-Domicil.External,440950,01-Dec-15,1900187633,2710.00,Mayfield Home Care Agency,104928
WARRINGTON BOROUGH COUNCIL,http://opendatacommunities.org/id/unitary-authority/warrington ,FWB,Care Purchase - PD,54440,CP-Domicil.External,440950,01-Dec-15,1900187633,9252.00,Mayfield Home Care Agency,104928
WARRINGTON BOROUGH COUNCIL,http://opendatacommunities.org/id/unitary-authority/warrington ,FWB,Care Purchase - PD,54440,Supporting People - External,441250,01-Dec-15,1900187633,728.00,Mayfield Home Care Agency,104928
WARRINGTON BOROUGH COUNCIL,http://opendatacommunities.org/id/unitary-authority/warrington ,FWB,Care Purchase - PD,54440,CP - Cont Care - External,441350,01-Dec-15,1900187633,2544.00,Mayfield Home Care Agency,104928
WARRINGTON BOROUGH COUNCIL,http://opendatacommunities.org/id/unitary-authority/warrington ,FWB,Older Peoples South Team,54421,CP-Domicil.External,440950,23-Dec-15,1900189616,26047.00,Mayfield Home Care Agency,104928
WARRINGTON BOROUGH COUNCIL,http://opendatacommunities.org/id/unitary-authority/warrington ,FWB,Older Peoples North Team,54422,CP-Domicil.External,440950,23-Dec-15,1900189616,16342.00,Mayfield Home Care Agency,104928
WARRINGTON BOROUGH COUNCIL,http://opendatacommunities.org/id/unitary-authority/warrington ,FWB,Care Purchase AMH,54135,CP-Domicil.External,440950,23-Dec-15,1900189616,808.00,Mayfield Home Care Agency,104928
WARRINGTON BOROUGH COUNCIL,http://opendatacommunities.org/id/unitary-authority/warrington ,FWB,Care Purchase - Learning Disability,54450,CP-Domicil.External,440950,23-Dec-15,1900189616,2610.00,Mayfield Home Care Agency,104928
WARRINGTON BOROUGH COUNCIL,http://opendatacommunities.org/id/unitary-authority/warrington ,FWB,Care Purchase - PD,54440,CP-Domicil.External,440950,23-Dec-15,1900189616,7748.00,Mayfield Home Care Agency,104928
WARRINGTON BOROUGH COUNCIL,http://opendatacommunities.org/id/unitary-authority/warrington ,FWB,Care Purchase - PD,54440,Supporting People - External,441250,23-Dec-15,1900189616,728.00,Mayfield Home Care Agency,104928
WARRINGTON BOROUGH COUNCIL,http://opendatacommunities.org/id/unitary-authority/warrington ,FWB,Care Purchase Budget,54490,CP - Cont Care - External,441350,23-Dec-15,1900189616,2528.00,Mayfield Home Care Agency,104928
WARRINGTON BOROUGH COUNCIL,http://opendatacommunities.org/id/unitary-authority/warrington ,FWB,Care Purchase AMH,54135,CP-LongStayExternal,441150,16-Dec-15,1900188885,7470.00,Mental Health Care UK Ltd,114128
WARRINGTON BOROUGH COUNCIL,http://opendatacommunities.org/id/unitary-authority/warrington ,EE0,Local Bus Contracts,44430,Equipment Purchase & Contract,400000,03-Dec-15,1900187786,4000.00,Merseytravel,104933
WARRINGTON BOROUGH COUNCIL,http://opendatacommunities.org/id/unitary-authority/warrington ,FWB,Neighbourhood Co-o Central,51309,Payment of Grants,470050,04-Dec-15,1900187879,2000.00,Mid-Orford Residents Association,440060
WARRINGTON BOROUGH COUNCIL,http://opendatacommunities.org/id/unitary-authority/warrington ,FWB,Care Purchase - Learning Disability,54450,CP-Day Care-External,441100,24-Dec-15,1900189765,2160.00,Midstream West Lanc Ltd,108365
WARRINGTON BOROUGH COUNCIL,http://opendatacommunities.org/id/unitary-authority/warrington ,FWB,Care Purchase - Learning Disability,54450,CP-Day Care-External,441100,02-Dec-15,1900187754,1620.00,Midstream West Lanc Ltd,108365
WARRINGTON BOROUGH COUNCIL,http://opendatacommunities.org/id/unitary-authority/warrington ,FWB,Care Purchase Budget,54490,CP ExternalOther Exp,440800,07-Dec-15,1900187936,20000.00,Minster Care Management Ltd,105179
WARRINGTON BOROUGH COUNCIL,http://opendatacommunities.org/id/unitary-authority/warrington ,FWB,Care Purchase Budget,54490,CP ExternalOther Exp,440800,24-Dec-15,1900189763,25185.00,Minster Care Management Ltd,105179
WARRINGTON BOROUGH COUNCIL,http://opendatacommunities.org/id/unitary-authority/warrington ,FWB,Care Purchase Budget,54490,CP ExternalOther Exp,440800,10-Dec-15,1900188567,14813.00,Minster Care Management Ltd,105179
WARRINGTON BOROUGH COUNCIL,http://opendatacommunities.org/id/unitary-authority/warrington ,ENO,Housing Projects,82008,Disabled Facilities Safe & Secure Grants,554300,22-Dec-15,1900189588,5704.00,Mint Northwest Ltd,105390
WARRINGTON BOROUGH COUNCIL,http://opendatacommunities.org/id/unitary-authority/warrington ,FWB,Child Disability,32212,CP-Domicil.External,440950,14-Dec-15,1900188747,2432.00,M-Power Activity Services Ltd,102186
WARRINGTON BOROUGH COUNCIL,http://opendatacommunities.org/id/unitary-authority/warrington ,FWB,Care Purchase - Learning Disability,54450,CP-Domicil.External,440950,02-Dec-15,1900187771,7073.00,M-Power Activity Services Ltd,102186
WARRINGTON BOROUGH COUNCIL,http://opendatacommunities.org/id/unitary-authority/warrington ,PIO,People & Improvement Other,85002,Consult.& Prof. Serv,440000,11-Dec-15,1900188623,8938.00,Mpulse Ltd,101462
WARRINGTON BOROUGH COUNCIL,http://opendatacommunities.org/id/unitary-authority/warrington ,FWB,Care Purchase AMH,54135,CP-Domicil.External,440950,14-Dec-15,1900188684,1116.00,My Space Housing Solutions,113559
WARRINGTON BOROUGH COUNCIL,http://opendatacommunities.org/id/unitary-authority/warrington ,FWB,Care Purchase AMH,54135,Supporting People - External,441250,14-Dec-15,1900188684,864.00,My Space Housing Solutions,113559
WARRINGTON BOROUGH COUNCIL,http://opendatacommunities.org/id/unitary-authority/warrington ,EE0,Markets,43711,Resaleables,400600,04-Dec-15,1900187863,3253.00,National Express Ltd,104957
WARRINGTON BOROUGH COUNCIL,http://opendatacommunities.org/id/unitary-authority/warrington ,FWB,DSG 2 Year Old Fund,31601,Payment of Grants,470050,18-Dec-15,1900189380,524.00,Nest in the Woods,114678
WARRINGTON BOROUGH COUNCIL,http://opendatacommunities.org/id/unitary-authority/warrington ,FWB,DSG Early Years PVI Settings,32417,Private & Voluntary 3 Year Olds,470100,18-Dec-15,1900189201,1990.00,Nest in the Woods,114678
WARRINGTON BOROUGH COUNCIL,http://opendatacommunities.org/id/unitary-authority/warrington ,FWB,DSG Early Years PVI Settings,32417,Private & Voluntary 4 Year Olds,470150,18-Dec-15,1900189294,2261.00,Nest in the Woods,114678
WARRINGTON BOROUGH COUNCIL,http://opendatacommunities.org/id/unitary-authority/warrington ,FWB,Older Peoples South Team,54421,CP-LongStayExternal,441150,07-Dec-15,1900187912,2000.00,Nethermoor House Ltd,114660
WARRINGTON BOROUGH COUNCIL,http://opendatacommunities.org/id/unitary-authority/warrington ,FWB,DSG 2 Year Old Fund,31601,Payment of Grants,470050,18-Dec-15,1900189381,1571.00,Newchurch Pre-School Limited,400148
WARRINGTON BOROUGH COUNCIL,http://opendatacommunities.org/id/unitary-authority/warrington ,FWB,DSG Early Years PVI Settings,32417,Private & Voluntary 3 Year Olds,470100,18-Dec-15,1900189202,4070.00,Newchurch Pre-School Limited,400148
WARRINGTON BOROUGH COUNCIL,http://opendatacommunities.org/id/unitary-authority/warrington ,FWB,DSG Early Years PVI Settings,32417,Private & Voluntary 4 Year Olds,470150,18-Dec-15,1900189295,2533.00,Newchurch Pre-School Limited,400148
WARRINGTON BOROUGH COUNCIL,http://opendatacommunities.org/id/unitary-authority/warrington ,FWB,Care Purchase AMH,54135,CP-Domicil.External,440950,18-Dec-15,1900189067,37775.00,Next Stage A Way Forward Ltd,101217
WARRINGTON BOROUGH COUNCIL,http://opendatacommunities.org/id/unitary-authority/warrington ,FWB,Care Purchase - Learning Disability,54450,CP-Domicil.External,440950,18-Dec-15,1900189067,4478.00,Next Stage A Way Forward Ltd,101217
WARRINGTON BOROUGH COUNCIL,http://opendatacommunities.org/id/unitary-authority/warrington ,FWB,Care Purchase Budget,54490,CP - Cont Care - External,441350,18-Dec-15,1900189067,1437.00,Next Stage A Way Forward Ltd,101217
WARRINGTON BOROUGH COUNCIL,http://opendatacommunities.org/id/unitary-authority/warrington ,COR,Car Leasing Scheme - Salary Sacrifice,52126,Car Leasing Charges,350000,15-Dec-15,1900188772,5130.00,NHS Foundation Trust,110359
WARRINGTON BOROUGH COUNCIL,http://opendatacommunities.org/id/unitary-authority/warrington ,COR,Car Leasing Scheme - Salary Sacrifice,52126,Car Leasing Charges,350000,15-Dec-15,1900188772,739.00,NHS Foundation Trust,110359
WARRINGTON BOROUGH COUNCIL,http://opendatacommunities.org/id/unitary-authority/warrington ,COR,Car Leasing Scheme - Salary Sacrifice,52126,Car Leasing Charges,350000,15-Dec-15,1900188770,4049.00,NHS Foundation Trust,110359
WARRINGTON BOROUGH COUNCIL,http://opendatacommunities.org/id/unitary-authority/warrington ,COR,Car Leasing Scheme - Salary Sacrifice,52126,Car Leasing Charges,350000,15-Dec-15,1900188770,739.00,NHS Foundation Trust,110359
WARRINGTON BOROUGH COUNCIL,http://opendatacommunities.org/id/unitary-authority/warrington ,COR,Car Leasing Scheme - Salary Sacrifice,52126,Car Leasing Charges,350000,02-Dec-15,1900187733,2986.00,NHS Foundation Trust,110359
WARRINGTON BOROUGH COUNCIL,http://opendatacommunities.org/id/unitary-authority/warrington ,COR,Car Leasing Scheme - Salary Sacrifice,52126,Car Leasing Charges,350000,02-Dec-15,1900187733,739.00,NHS Foundation Trust,110359
WARRINGTON BOROUGH COUNCIL,http://opendatacommunities.org/id/unitary-authority/warrington ,COR,Car Leasing Scheme - Salary Sacrifice,52126,Car Leasing Charges,350000,02-Dec-15,1900187735,2986.00,NHS Foundation Trust,110359
WARRINGTON BOROUGH COUNCIL,http://opendatacommunities.org/id/unitary-authority/warrington ,COR,Car Leasing Scheme - Salary Sacrifice,52126,Car Leasing Charges,350000,02-Dec-15,1900187735,739.00,NHS Foundation Trust,110359
WARRINGTON BOROUGH COUNCIL,http://opendatacommunities.org/id/unitary-authority/warrington ,COR,Car Leasing Scheme - Salary Sacrifice,52126,Car Leasing Charges,350000,11-Dec-15,1900188651,3603.00,NHS Foundation Trust,110359
WARRINGTON BOROUGH COUNCIL,http://opendatacommunities.org/id/unitary-authority/warrington ,COR,Car Leasing Scheme - Salary Sacrifice,52126,Car Leasing Charges,350000,11-Dec-15,1900188651,739.00,NHS Foundation Trust,110359
WARRINGTON BOROUGH COUNCIL,http://opendatacommunities.org/id/unitary-authority/warrington ,COR,Car Leasing Scheme - Salary Sacrifice,52126,Car Leasing Charges,350000,11-Dec-15,1900188652,3603.00,NHS Foundation Trust,110359
WARRINGTON BOROUGH COUNCIL,http://opendatacommunities.org/id/unitary-authority/warrington ,COR,Car Leasing Scheme - Salary Sacrifice,52126,Car Leasing Charges,350000,11-Dec-15,1900188652,739.00,NHS Foundation Trust,110359
WARRINGTON BOROUGH COUNCIL,http://opendatacommunities.org/id/unitary-authority/warrington ,COR,Car Leasing Scheme - Salary Sacrifice,52126,Car Leasing Charges,350000,11-Dec-15,1900188653,2712.00,NHS Foundation Trust,110359
WARRINGTON BOROUGH COUNCIL,http://opendatacommunities.org/id/unitary-authority/warrington ,COR,Car Leasing Scheme - Salary Sacrifice,52126,Car Leasing Charges,350000,11-Dec-15,1900188653,739.00,NHS Foundation Trust,110359
WARRINGTON BOROUGH COUNCIL,http://opendatacommunities.org/id/unitary-authority/warrington ,COR,Car Leasing Scheme - Salary Sacrifice,52126,Car Leasing Charges,350000,11-Dec-15,1900188654,4673.00,NHS Foundation Trust,110359
WARRINGTON BOROUGH COUNCIL,http://opendatacommunities.org/id/unitary-authority/warrington ,COR,Car Leasing Scheme - Salary Sacrifice,52126,Car Leasing Charges,350000,11-Dec-15,1900188654,739.00,NHS Foundation Trust,110359
WARRINGTON BOROUGH COUNCIL,http://opendatacommunities.org/id/unitary-authority/warrington ,COR,Car Leasing Scheme - Salary Sacrifice,52126,Car Leasing Charges,350000,11-Dec-15,1900188655,3713.00,NHS Foundation Trust,110359
WARRINGTON BOROUGH COUNCIL,http://opendatacommunities.org/id/unitary-authority/warrington ,COR,Car Leasing Scheme - Salary Sacrifice,52126,Car Leasing Charges,350000,11-Dec-15,1900188655,670.00,NHS Foundation Trust,110359
WARRINGTON BOROUGH COUNCIL,http://opendatacommunities.org/id/unitary-authority/warrington ,COR,Car Leasing Scheme - Salary Sacrifice,52126,Car Leasing Charges,350000,11-Dec-15,1900188656,2658.00,NHS Foundation Trust,110359
WARRINGTON BOROUGH COUNCIL,http://opendatacommunities.org/id/unitary-authority/warrington ,COR,Car Leasing Scheme - Salary Sacrifice,52126,Car Leasing Charges,350000,11-Dec-15,1900188656,739.00,NHS Foundation Trust,110359
WARRINGTON BOROUGH COUNCIL,http://opendatacommunities.org/id/unitary-authority/warrington ,COR,Car Leasing Scheme - Salary Sacrifice,52126,Car Leasing Charges,350000,11-Dec-15,1900188657,3112.00,NHS Foundation Trust,110359
WARRINGTON BOROUGH COUNCIL,http://opendatacommunities.org/id/unitary-authority/warrington ,COR,Car Leasing Scheme - Salary Sacrifice,52126,Car Leasing Charges,350000,11-Dec-15,1900188657,739.00,NHS Foundation Trust,110359
WARRINGTON BOROUGH COUNCIL,http://opendatacommunities.org/id/unitary-authority/warrington ,COR,Car Leasing Scheme - Salary Sacrifice,52126,Car Leasing Charges,350000,11-Dec-15,1900188616,2574.00,NHS Foundation Trust,110359
WARRINGTON BOROUGH COUNCIL,http://opendatacommunities.org/id/unitary-authority/warrington ,COR,Car Leasing Scheme - Salary Sacrifice,52126,Car Leasing Charges,350000,11-Dec-15,1900188616,739.00,NHS Foundation Trust,110359
WARRINGTON BOROUGH COUNCIL,http://opendatacommunities.org/id/unitary-authority/warrington ,COR,Car Leasing Scheme - Salary Sacrifice,52126,Car Leasing Charges,350000,14-Dec-15,1900188713,2497.00,NHS Foundation Trust,110359
WARRINGTON BOROUGH COUNCIL,http://opendatacommunities.org/id/unitary-authority/warrington ,COR,Car Leasing Scheme - Salary Sacrifice,52126,Car Leasing Charges,350000,14-Dec-15,1900188713,739.00,NHS Foundation Trust,110359
WARRINGTON BOROUGH COUNCIL,http://opendatacommunities.org/id/unitary-authority/warrington ,COR,Car Leasing Scheme - Salary Sacrifice,52126,Car Leasing Charges,350000,14-Dec-15,1900188712,3667.00,NHS Foundation Trust,110359
WARRINGTON BOROUGH COUNCIL,http://opendatacommunities.org/id/unitary-authority/warrington ,COR,Car Leasing Scheme - Salary Sacrifice,52126,Car Leasing Charges,350000,14-Dec-15,1900188712,739.00,NHS Foundation Trust,110359
WARRINGTON BOROUGH COUNCIL,http://opendatacommunities.org/id/unitary-authority/warrington ,COR,Car Leasing Scheme - Salary Sacrifice,52126,Car Leasing Charges,350000,14-Dec-15,1900188711,2353.00,NHS Foundation Trust,110359
WARRINGTON BOROUGH COUNCIL,http://opendatacommunities.org/id/unitary-authority/warrington ,COR,Car Leasing Scheme - Salary Sacrifice,52126,Car Leasing Charges,350000,14-Dec-15,1900188711,739.00,NHS Foundation Trust,110359
WARRINGTON BOROUGH COUNCIL,http://opendatacommunities.org/id/unitary-authority/warrington ,COR,Car Leasing Scheme - Salary Sacrifice,52126,Car Leasing Charges,350000,15-Dec-15,1900188760,4463.00,NHS Foundation Trust,110359
WARRINGTON BOROUGH COUNCIL,http://opendatacommunities.org/id/unitary-authority/warrington ,COR,Car Leasing Scheme - Salary Sacrifice,52126,Car Leasing Charges,350000,15-Dec-15,1900188760,739.00,NHS Foundation Trust,110359
WARRINGTON BOROUGH COUNCIL,http://opendatacommunities.org/id/unitary-authority/warrington ,COR,Car Leasing Scheme - Salary Sacrifice,52126,Car Leasing Charges,350000,18-Dec-15,1900189424,2634.00,NHS Foundation Trust,110359
WARRINGTON BOROUGH COUNCIL,http://opendatacommunities.org/id/unitary-authority/warrington ,COR,Car Leasing Scheme - Salary Sacrifice,52126,Car Leasing Charges,350000,18-Dec-15,1900189424,795.00,NHS Foundation Trust,110359
WARRINGTON BOROUGH COUNCIL,http://opendatacommunities.org/id/unitary-authority/warrington ,COR,Car Leasing Scheme - Salary Sacrifice,52126,Car Leasing Charges,350000,18-Dec-15,1900189415,2088.00,NHS Foundation Trust,110359
WARRINGTON BOROUGH COUNCIL,http://opendatacommunities.org/id/unitary-authority/warrington ,COR,Car Leasing Scheme - Salary Sacrifice,52126,Car Leasing Charges,350000,18-Dec-15,1900189415,795.00,NHS Foundation Trust,110359
WARRINGTON BOROUGH COUNCIL,http://opendatacommunities.org/id/unitary-authority/warrington ,COR,Car Leasing Scheme - Salary Sacrifice,52126,Car Leasing Charges,350000,18-Dec-15,1900189414,4840.00,NHS Foundation Trust,110359
WARRINGTON BOROUGH COUNCIL,http://opendatacommunities.org/id/unitary-authority/warrington ,COR,Car Leasing Scheme - Salary Sacrifice,52126,Car Leasing Charges,350000,18-Dec-15,1900189414,795.00,NHS Foundation Trust,110359
WARRINGTON BOROUGH COUNCIL,http://opendatacommunities.org/id/unitary-authority/warrington ,COR,Car Leasing Scheme - Salary Sacrifice,52126,Car Leasing Charges,350000,18-Dec-15,1900189412,4607.00,NHS Foundation Trust,110359
WARRINGTON BOROUGH COUNCIL,http://opendatacommunities.org/id/unitary-authority/warrington ,COR,Car Leasing Scheme - Salary Sacrifice,52126,Car Leasing Charges,350000,18-Dec-15,1900189412,739.00,NHS Foundation Trust,110359
WARRINGTON BOROUGH COUNCIL,http://opendatacommunities.org/id/unitary-authority/warrington ,COR,Car Leasing Scheme - Salary Sacrifice,52126,Car Leasing Charges,350000,18-Dec-15,1900189425,3444.00,NHS Foundation Trust,110359
WARRINGTON BOROUGH COUNCIL,http://opendatacommunities.org/id/unitary-authority/warrington ,COR,Car Leasing Scheme - Salary Sacrifice,52126,Car Leasing Charges,350000,18-Dec-15,1900189425,739.00,NHS Foundation Trust,110359
WARRINGTON BOROUGH COUNCIL,http://opendatacommunities.org/id/unitary-authority/warrington ,COR,Car Leasing Scheme - Salary Sacrifice,52126,Car Leasing Charges,350000,18-Dec-15,1900189417,2349.00,NHS Foundation Trust,110359
WARRINGTON BOROUGH COUNCIL,http://opendatacommunities.org/id/unitary-authority/warrington ,COR,Car Leasing Scheme - Salary Sacrifice,52126,Car Leasing Charges,350000,18-Dec-15,1900189417,739.00,NHS Foundation Trust,110359
WARRINGTON BOROUGH COUNCIL,http://opendatacommunities.org/id/unitary-authority/warrington ,COR,Car Leasing Scheme - Salary Sacrifice,52126,Car Leasing Charges,350000,15-Dec-15,1900188763,5674.00,NHS Foundation Trust,110359
WARRINGTON BOROUGH COUNCIL,http://opendatacommunities.org/id/unitary-authority/warrington ,COR,Car Leasing Scheme - Salary Sacrifice,52126,Car Leasing Charges,350000,15-Dec-15,1900188763,739.00,NHS Foundation Trust,110359
WARRINGTON BOROUGH COUNCIL,http://opendatacommunities.org/id/unitary-authority/warrington ,FWB,Child Disability,32212,CP-Domicil.External,440950,14-Dec-15,1900188749,27803.00,NHS Warrington CCG,113053
WARRINGTON BOROUGH COUNCIL,http://opendatacommunities.org/id/unitary-authority/warrington ,FWB,Carers Breaks,56600,BCF Contribution to Schemes,582750,14-Dec-15,1900188728,18054.00,NHS Warrington CCG,113053
WARRINGTON BOROUGH COUNCIL,http://opendatacommunities.org/id/unitary-authority/warrington ,FWB,Older Peoples South Team,54421,CP-Domicil.External,440950,02-Dec-15,1900187753,14281.00,Nightingales Homecare Services Agen,104972
WARRINGTON BOROUGH COUNCIL,http://opendatacommunities.org/id/unitary-authority/warrington ,FWB,Older Peoples North Team,54422,CP-Domicil.External,440950,02-Dec-15,1900187753,13896.00,Nightingales Homecare Services Agen,104972
WARRINGTON BOROUGH COUNCIL,http://opendatacommunities.org/id/unitary-authority/warrington ,FWB,Care Purchase - Learning Disability,54450,CP-Domicil.External,440950,02-Dec-15,1900187753,10714.00,Nightingales Homecare Services Agen,104972
WARRINGTON BOROUGH COUNCIL,http://opendatacommunities.org/id/unitary-authority/warrington ,FWB,Care Purchase - PD,54440,CP-Domicil.External,440950,02-Dec-15,1900187753,6393.00,Nightingales Homecare Services Agen,104972
WARRINGTON BOROUGH COUNCIL,http://opendatacommunities.org/id/unitary-authority/warrington ,FWB,Older Peoples North Team,54422,CP-Domicil.External,440950,23-Dec-15,1900189636,13688.00,Nightingales Homecare Services Agen,104972
WARRINGTON BOROUGH COUNCIL,http://opendatacommunities.org/id/unitary-authority/warrington ,FWB,Older Peoples South Team,54421,CP-Domicil.External,440950,23-Dec-15,1900189636,13558.00,Nightingales Homecare Services Agen,104972
WARRINGTON BOROUGH COUNCIL,http://opendatacommunities.org/id/unitary-authority/warrington ,FWB,Care Purchase - Learning Disability,54450,CP-Domicil.External,440950,23-Dec-15,1900189636,6157.00,Nightingales Homecare Services Agen,104972
WARRINGTON BOROUGH COUNCIL,http://opendatacommunities.org/id/unitary-authority/warrington ,FWB,Care Purchase - PD,54440,CP-Domicil.External,440950,23-Dec-15,1900189636,8639.00,Nightingales Homecare Services Agen,104972
WARRINGTON BOROUGH COUNCIL,http://opendatacommunities.org/id/unitary-authority/warrington ,CYP,Childrens Other,81004,ICT Comms - Equipment Purchase,450100,15-Dec-15,1900188761,2844.00,Njk Computer Services Ltd,101496
WARRINGTON BOROUGH COUNCIL,http://opendatacommunities.org/id/unitary-authority/warrington ,EE0,Environment Services Strategic Director,42130,Subscriptions,470000,03-Dec-15,1900187787,41667.00,North West Evergreen Ltd Partnershi,112773
WARRINGTON BOROUGH COUNCIL,http://opendatacommunities.org/id/unitary-authority/warrington ,FWB,Homelessness,43650,Bond Guarantee Scme,530100,09-Dec-15,1900188484,575.00,North West Lets,115002
WARRINGTON BOROUGH COUNCIL,http://opendatacommunities.org/id/unitary-authority/warrington ,HOL,Single Billing Holding Account,91130,Electricity,210000,23-Dec-15,1900189651,34142.00,Npower Electricity,101884
WARRINGTON BOROUGH COUNCIL,http://opendatacommunities.org/id/unitary-authority/warrington ,HOL,Single Billing Holding Account,91130,Electricity,210000,23-Dec-15,1900189651,17399.00,Npower Electricity,101884
WARRINGTON BOROUGH COUNCIL,http://opendatacommunities.org/id/unitary-authority/warrington ,HOL,Single Billing Holding Account,91130,Electricity,210000,21-Dec-15,1900189486,34666.00,Npower Electricity,101884
WARRINGTON BOROUGH COUNCIL,http://opendatacommunities.org/id/unitary-authority/warrington ,HOL,Single Billing Holding Account,91130,Electricity,210000,21-Dec-15,1900189486,15313.00,Npower Electricity,101884
WARRINGTON BOROUGH COUNCIL,http://opendatacommunities.org/id/unitary-authority/warrington ,HOL,Single Billing Holding Account,91130,Electricity,210000,08-Dec-15,1900187950,44495.00,Npower Electricity,101884
WARRINGTON BOROUGH COUNCIL,http://opendatacommunities.org/id/unitary-authority/warrington ,HOL,Single Billing Holding Account,91130,Electricity,210000,08-Dec-15,1900187950,21344.00,Npower Electricity,101884
WARRINGTON BOROUGH COUNCIL,http://opendatacommunities.org/id/unitary-authority/warrington ,HOL,Single Billing Holding Account,91130,Electricity,210000,08-Dec-15,1900187951,100075.00,Npower Electricity,101884
WARRINGTON BOROUGH COUNCIL,http://opendatacommunities.org/id/unitary-authority/warrington ,HOL,Single Billing Holding Account,91130,Electricity,210000,08-Dec-15,1900187951,3195.00,Npower Electricity,101884
WARRINGTON BOROUGH COUNCIL,http://opendatacommunities.org/id/unitary-authority/warrington ,FWB,Care Purchase - Learning Disability,54450,CP-LongStayExternal,441150,02-Dec-15,1900187757,12000.00,Nugent Care,111375
WARRINGTON BOROUGH COUNCIL,http://opendatacommunities.org/id/unitary-authority/warrington ,FWB,Care Purchase - Learning Disability,54450,CP-LongStayExternal,441150,24-Dec-15,1900189762,12400.00,Nugent Care,111375
WARRINGTON BOROUGH COUNCIL,http://opendatacommunities.org/id/unitary-authority/warrington ,RSC,IT - Contracts,23600,Computer Software - Maintenance,450850,14-Dec-15,1900188694,1700.00,Nviron Ltd,112698
WARRINGTON BOROUGH COUNCIL,http://opendatacommunities.org/id/unitary-authority/warrington ,EE0,Urban Traffic Management Control,44370,Signal Management,531600,09-Dec-15,1900188482,5190.00,O2,101259
WARRINGTON BOROUGH COUNCIL,http://opendatacommunities.org/id/unitary-authority/warrington ,FWB,Care Purchase AMH,54135,CP-LongStayExternal,441150,23-Dec-15,1900189598,2657.00,Oasis Recovery Communities Limited,115022
WARRINGTON BOROUGH COUNCIL,http://opendatacommunities.org/id/unitary-authority/warrington ,FWB,Care Purchase AMH,54135,CP-LongStayExternal,441150,23-Dec-15,1900189599,2571.00,Oasis Recovery Communities Limited,115022
WARRINGTON BOROUGH COUNCIL,http://opendatacommunities.org/id/unitary-authority/warrington ,FWB,Care Purchase AMH,54135,CP-LongStayExternal,441150,23-Dec-15,1900189597,1200.00,Oasis Recovery Communities Limited,115022
WARRINGTON BOROUGH COUNCIL,http://opendatacommunities.org/id/unitary-authority/warrington ,FWB,DSG 2 Year Old Fund,31601,Payment of Grants,470050,18-Dec-15,1900189382,3427.00,Old Hall Pre School,400017
WARRINGTON BOROUGH COUNCIL,http://opendatacommunities.org/id/unitary-authority/warrington ,FWB,DSG Early Years PVI Settings,32417,Private & Voluntary 3 Year Olds,470100,18-Dec-15,1900189203,9930.00,Old Hall Pre School,400017
WARRINGTON BOROUGH COUNCIL,http://opendatacommunities.org/id/unitary-authority/warrington ,FWB,DSG Early Years PVI Settings,32417,Private & Voluntary 4 Year Olds,470150,18-Dec-15,1900189296,6040.00,Old Hall Pre School,400017
WARRINGTON BOROUGH COUNCIL,http://opendatacommunities.org/id/unitary-authority/warrington ,FWB,DSG Early Years PVI Settings,32417,Payment of Grants,470050,21-Dec-15,1900189446,1500.00,Old Hall Pre School,400017
WARRINGTON BOROUGH COUNCIL,http://opendatacommunities.org/id/unitary-authority/warrington ,FWB,Care Purchase Budget,54490,CP ExternalOther Exp,440800,07-Dec-15,1900187930,15000.00,Old Rectory Private Nursing Home,104990
WARRINGTON BOROUGH COUNCIL,http://opendatacommunities.org/id/unitary-authority/warrington ,FWB,Care Purchase Budget,54490,CP ExternalOther Exp,440800,14-Dec-15,1900188685,10895.00,Old Rectory Private Nursing Home,104990
WARRINGTON BOROUGH COUNCIL,http://opendatacommunities.org/id/unitary-authority/warrington ,FWB,Care Purchase AMH,54135,CP-Domicil.External,440950,23-Dec-15,1900189641,538.00,Olive Tree Domiciliary Services Ltd,114940
WARRINGTON BOROUGH COUNCIL,http://opendatacommunities.org/id/unitary-authority/warrington ,FWB,Care Purchase AMH,54135,CP-Domicil.External,440950,23-Dec-15,1900189642,717.00,Olive Tree Domiciliary Services Ltd,114940
WARRINGTON BOROUGH COUNCIL,http://opendatacommunities.org/id/unitary-authority/warrington ,FWB,Older Peoples North Team,54422,CP-LongStayExternal,441150,14-Dec-15,1900188687,1700.00,Orchard Care Homes,102524
WARRINGTON BOROUGH COUNCIL,http://opendatacommunities.org/id/unitary-authority/warrington ,FWB,Older Peoples North Team,54422,CP-LongStayExternal,441150,16-Dec-15,1900188887,1700.00,Orchard Care Homes,102524
WARRINGTON BOROUGH COUNCIL,http://opendatacommunities.org/id/unitary-authority/warrington ,FWB,Care Purchase Budget,54490,CP ExternalOther Exp,440800,08-Dec-15,1900187954,130000.00,Orchard Care Homes Limited (Green P,114976
WARRINGTON BOROUGH COUNCIL,http://opendatacommunities.org/id/unitary-authority/warrington ,FWB,DAT Pooled Budget,53860,Drug Action,443600,16-Dec-15,1900188823,726.00,Orford Pharmacy,101867
WARRINGTON BOROUGH COUNCIL,http://opendatacommunities.org/id/unitary-authority/warrington ,FWB,DSG Early Years PVI Settings,32417,Private & Voluntary 3 Year Olds,470100,18-Dec-15,1900189204,9113.00,Oughtrington Pre-School,400044
WARRINGTON BOROUGH COUNCIL,http://opendatacommunities.org/id/unitary-authority/warrington ,FWB,DSG Early Years PVI Settings,32417,Private & Voluntary 4 Year Olds,470150,18-Dec-15,1900189297,3188.00,Oughtrington Pre-School,400044
WARRINGTON BOROUGH COUNCIL,http://opendatacommunities.org/id/unitary-authority/warrington ,FWB,DSG Early Years PVI Settings,32417,Payment of Grants,470050,21-Dec-15,1900189447,1500.00,Oughtrington Pre-School,400044
WARRINGTON BOROUGH COUNCIL,http://opendatacommunities.org/id/unitary-authority/warrington ,FWB,Catalyst Choices,54495,Equipment Purchase & Contract,400000,08-Dec-15,1900187947,521.00,P & A Services Ltd,105396
WARRINGTON BOROUGH COUNCIL,http://opendatacommunities.org/id/unitary-authority/warrington ,FWB,Catalyst Choices,54495,Equipment Purchase & Contract,400000,08-Dec-15,1900187949,521.00,P & A Services Ltd,105396
WARRINGTON BOROUGH COUNCIL,http://opendatacommunities.org/id/unitary-authority/warrington ,FWB,Care Purchase - Learning Disability,54450,CP-Domicil.External,440950,07-Dec-15,1900187925,650.00,P S S,105048
WARRINGTON BOROUGH COUNCIL,http://opendatacommunities.org/id/unitary-authority/warrington ,FWB,Contracts - SM Commissioning Team 2,55920,Public Health Contract Payments,540000,21-Dec-15,1900189510,1284.00,Padgate Medical Centre,114024
WARRINGTON BOROUGH COUNCIL,http://opendatacommunities.org/id/unitary-authority/warrington ,FWB,Contracts - SM Commissioning Team 2,55920,Public Health Contract Payments,540000,21-Dec-15,1900189510,1043.00,Padgate Medical Centre,114024
WARRINGTON BOROUGH COUNCIL,http://opendatacommunities.org/id/unitary-authority/warrington ,FWB,Contracts - SM Commissioning Team 2,55920,Public Health Contract Payments,540000,21-Dec-15,1900189510,704.00,Padgate Medical Centre,114024
WARRINGTON BOROUGH COUNCIL,http://opendatacommunities.org/id/unitary-authority/warrington ,FWB,Neighbourhood Co-o Central,51309,Payment of Grants,470050,04-Dec-15,1900187859,800.00,Padgate Youth Club,106680
WARRINGTON BOROUGH COUNCIL,http://opendatacommunities.org/id/unitary-authority/warrington ,FWB,Contracts - SM Commissioning Team 2,55920,Public Health Contract Payments,540000,21-Dec-15,1900189488,2332.00,Park View Medical Practice,111956
WARRINGTON BOROUGH COUNCIL,http://opendatacommunities.org/id/unitary-authority/warrington ,FWB,Contracts - SM Commissioning Team 2,55920,Public Health Contract Payments,540000,21-Dec-15,1900189504,1464.00,Partners of Helsby Street Medical C,100641
WARRINGTON BOROUGH COUNCIL,http://opendatacommunities.org/id/unitary-authority/warrington ,FWB,Contracts - SM Commissioning Team 2,55920,Public Health Contract Payments,540000,21-Dec-15,1900189504,1113.00,Partners of Helsby Street Medical C,100641
WARRINGTON BOROUGH COUNCIL,http://opendatacommunities.org/id/unitary-authority/warrington ,FWB,Contracts - SM Commissioning Team 2,55920,Public Health Contract Payments,540000,21-Dec-15,1900189504,963.00,Partners of Helsby Street Medical C,100641
WARRINGTON BOROUGH COUNCIL,http://opendatacommunities.org/id/unitary-authority/warrington ,FWB,Care Purchase - Learning Disability,54450,CP-LongStayExternal,441150,08-Dec-15,1900187982,4200.00,Partnerships In Care Ltd,103278
WARRINGTON BOROUGH COUNCIL,http://opendatacommunities.org/id/unitary-authority/warrington ,FWB,Care Purchase - Learning Disability,54450,CP-Nursing Care-External,441200,08-Dec-15,1900187985,6000.00,Partnerships In Care Ltd,103278
WARRINGTON BOROUGH COUNCIL,http://opendatacommunities.org/id/unitary-authority/warrington ,FWB,Care Purchase - Learning Disability,54450,CP-Nursing Care-External,441200,09-Dec-15,1900188443,4800.00,Partnerships In Care Ltd,103278
WARRINGTON BOROUGH COUNCIL,http://opendatacommunities.org/id/unitary-authority/warrington ,FWB,Care Purchase - Learning Disability,54450,CP-Domicil.External,440950,08-Dec-15,1900187986,2400.00,Partnerships In Care Ltd,103278
WARRINGTON BOROUGH COUNCIL,http://opendatacommunities.org/id/unitary-authority/warrington ,FWB,Care Purchase - Learning Disability,54450,CP-Nursing Care-External,441200,08-Dec-15,1900187986,4800.00,Partnerships In Care Ltd,103278
WARRINGTON BOROUGH COUNCIL,http://opendatacommunities.org/id/unitary-authority/warrington ,FWB,Care Purchase - Learning Disability,54450,CP-Nursing Care-External,441200,08-Dec-15,1900187983,4800.00,Partnerships In Care Ltd,103278
WARRINGTON BOROUGH COUNCIL,http://opendatacommunities.org/id/unitary-authority/warrington ,FWB,Care Purchase - Learning Disability,54450,CP-Nursing Care-External,441200,08-Dec-15,1900187981,4200.00,Partnerships In Care Ltd,103278
WARRINGTON BOROUGH COUNCIL,http://opendatacommunities.org/id/unitary-authority/warrington ,FWB,Care Purchase - Learning Disability,54450,CP-Nursing Care-External,441200,08-Dec-15,1900187977,4200.00,Partnerships In Care Ltd,103278
WARRINGTON BOROUGH COUNCIL,http://opendatacommunities.org/id/unitary-authority/warrington ,FWB,Care Purchase - Learning Disability,54450,CP-Nursing Care-External,441200,09-Dec-15,1900188444,9240.00,Partnerships In Care Ltd,103278
WARRINGTON BOROUGH COUNCIL,http://opendatacommunities.org/id/unitary-authority/warrington ,FWB,Care Purchase - Learning Disability,54450,CP-Nursing Care-External,441200,08-Dec-15,1900187964,6600.00,Partnerships In Care Ltd,103278
WARRINGTON BOROUGH COUNCIL,http://opendatacommunities.org/id/unitary-authority/warrington ,FWB,Care Purchase - Learning Disability,54450,CP-Nursing Care-External,441200,08-Dec-15,1900187980,4800.00,Partnerships In Care Ltd,103278
WARRINGTON BOROUGH COUNCIL,http://opendatacommunities.org/id/unitary-authority/warrington ,FWB,Care Purchase - Learning Disability,54450,CP-Nursing Care-External,441200,08-Dec-15,1900187978,4200.00,Partnerships In Care Ltd,103278
WARRINGTON BOROUGH COUNCIL,http://opendatacommunities.org/id/unitary-authority/warrington ,FWB,Care Purchase - Learning Disability,54450,CP-LongStayExternal,441150,09-Dec-15,1900188441,4200.00,Partnerships In Care Ltd,103278
WARRINGTON BOROUGH COUNCIL,http://opendatacommunities.org/id/unitary-authority/warrington ,FWB,Care Purchase - Learning Disability,54450,CP-Nursing Care-External,441200,08-Dec-15,1900187972,6000.00,Partnerships In Care Ltd,103278
WARRINGTON BOROUGH COUNCIL,http://opendatacommunities.org/id/unitary-authority/warrington ,FWB,Care Purchase - Learning Disability,54450,CP-Nursing Care-External,441200,09-Dec-15,1900188439,4800.00,Partnerships In Care Ltd,103278
WARRINGTON BOROUGH COUNCIL,http://opendatacommunities.org/id/unitary-authority/warrington ,FWB,Care Purchase - Learning Disability,54450,CP-Domicil.External,440950,09-Dec-15,1900188446,2400.00,Partnerships In Care Ltd,103278
WARRINGTON BOROUGH COUNCIL,http://opendatacommunities.org/id/unitary-authority/warrington ,FWB,Care Purchase - Learning Disability,54450,CP-Nursing Care-External,441200,09-Dec-15,1900188446,4800.00,Partnerships In Care Ltd,103278
WARRINGTON BOROUGH COUNCIL,http://opendatacommunities.org/id/unitary-authority/warrington ,FWB,Care Purchase - Learning Disability,54450,CP-Nursing Care-External,441200,08-Dec-15,1900187965,4800.00,Partnerships In Care Ltd,103278
WARRINGTON BOROUGH COUNCIL,http://opendatacommunities.org/id/unitary-authority/warrington ,FWB,Care Purchase - Learning Disability,54450,CP-Nursing Care-External,441200,09-Dec-15,1900188442,4200.00,Partnerships In Care Ltd,103278
WARRINGTON BOROUGH COUNCIL,http://opendatacommunities.org/id/unitary-authority/warrington ,FWB,Care Purchase - Learning Disability,54450,CP-Nursing Care-External,441200,09-Dec-15,1900188438,4200.00,Partnerships In Care Ltd,103278
WARRINGTON BOROUGH COUNCIL,http://opendatacommunities.org/id/unitary-authority/warrington ,FWB,Care Purchase - Learning Disability,54450,CP-Nursing Care-External,441200,08-Dec-15,1900187976,9240.00,Partnerships In Care Ltd,103278
WARRINGTON BOROUGH COUNCIL,http://opendatacommunities.org/id/unitary-authority/warrington ,FWB,Care Purchase - Learning Disability,54450,CP-Nursing Care-External,441200,09-Dec-15,1900188445,6600.00,Partnerships In Care Ltd,103278
WARRINGTON BOROUGH COUNCIL,http://opendatacommunities.org/id/unitary-authority/warrington ,FWB,Care Purchase - Learning Disability,54450,CP-Nursing Care-External,441200,08-Dec-15,1900187979,4800.00,Partnerships In Care Ltd,103278
WARRINGTON BOROUGH COUNCIL,http://opendatacommunities.org/id/unitary-authority/warrington ,FWB,Care Purchase - Learning Disability,54450,CP-Nursing Care-External,441200,08-Dec-15,1900187969,4200.00,Partnerships In Care Ltd,103278
WARRINGTON BOROUGH COUNCIL,http://opendatacommunities.org/id/unitary-authority/warrington ,FWB,Care Purchase - Learning Disability,54450,CP-LongStayExternal,441150,08-Dec-15,1900187975,4200.00,Partnerships In Care Ltd,103278
WARRINGTON BOROUGH COUNCIL,http://opendatacommunities.org/id/unitary-authority/warrington ,FWB,Care Purchase - Learning Disability,54450,CP-Nursing Care-External,441200,08-Dec-15,1900187971,6000.00,Partnerships In Care Ltd,103278
WARRINGTON BOROUGH COUNCIL,http://opendatacommunities.org/id/unitary-authority/warrington ,FWB,Care Purchase - Learning Disability,54450,CP-Nursing Care-External,441200,08-Dec-15,1900187970,4800.00,Partnerships In Care Ltd,103278
WARRINGTON BOROUGH COUNCIL,http://opendatacommunities.org/id/unitary-authority/warrington ,FWB,Care Purchase - Learning Disability,54450,CP-Domicil.External,440950,09-Dec-15,1900188437,2400.00,Partnerships In Care Ltd,103278
WARRINGTON BOROUGH COUNCIL,http://opendatacommunities.org/id/unitary-authority/warrington ,FWB,Care Purchase - Learning Disability,54450,CP-Nursing Care-External,441200,09-Dec-15,1900188437,4800.00,Partnerships In Care Ltd,103278
WARRINGTON BOROUGH COUNCIL,http://opendatacommunities.org/id/unitary-authority/warrington ,FWB,Care Purchase - Learning Disability,54450,CP-Nursing Care-External,441200,09-Dec-15,1900188440,4800.00,Partnerships In Care Ltd,103278
WARRINGTON BOROUGH COUNCIL,http://opendatacommunities.org/id/unitary-authority/warrington ,FWB,Care Purchase - Learning Disability,54450,CP-Nursing Care-External,441200,08-Dec-15,1900187973,4200.00,Partnerships In Care Ltd,103278
WARRINGTON BOROUGH COUNCIL,http://opendatacommunities.org/id/unitary-authority/warrington ,FWB,Care Purchase - Learning Disability,54450,CP-Nursing Care-External,441200,08-Dec-15,1900187967,4200.00,Partnerships In Care Ltd,103278
WARRINGTON BOROUGH COUNCIL,http://opendatacommunities.org/id/unitary-authority/warrington ,FWB,Care Purchase - Learning Disability,54450,CP-Nursing Care-External,441200,08-Dec-15,1900187966,9240.00,Partnerships In Care Ltd,103278
WARRINGTON BOROUGH COUNCIL,http://opendatacommunities.org/id/unitary-authority/warrington ,FWB,Care Purchase - Learning Disability,54450,CP-Nursing Care-External,441200,08-Dec-15,1900187974,6600.00,Partnerships In Care Ltd,103278
WARRINGTON BOROUGH COUNCIL,http://opendatacommunities.org/id/unitary-authority/warrington ,FWB,Care Purchase - Learning Disability,54450,CP-Nursing Care-External,441200,08-Dec-15,1900187984,4800.00,Partnerships In Care Ltd,103278
WARRINGTON BOROUGH COUNCIL,http://opendatacommunities.org/id/unitary-authority/warrington ,FWB,Care Purchase - Learning Disability,54450,CP-Nursing Care-External,441200,08-Dec-15,1900187968,4200.00,Partnerships In Care Ltd,103278
WARRINGTON BOROUGH COUNCIL,http://opendatacommunities.org/id/unitary-authority/warrington ,FWB,Care Purchase - Learning Disability,54450,CP-LongStayExternal,441150,18-Dec-15,1900189093,4200.00,Partnerships In Care Ltd,103278
WARRINGTON BOROUGH COUNCIL,http://opendatacommunities.org/id/unitary-authority/warrington ,FWB,Care Purchase - Learning Disability,54450,CP-Nursing Care-External,441200,18-Dec-15,1900189058,6000.00,Partnerships In Care Ltd,103278
WARRINGTON BOROUGH COUNCIL,http://opendatacommunities.org/id/unitary-authority/warrington ,FWB,Care Purchase - Learning Disability,54450,CP-Nursing Care-External,441200,18-Dec-15,1900189061,4800.00,Partnerships In Care Ltd,103278
WARRINGTON BOROUGH COUNCIL,http://opendatacommunities.org/id/unitary-authority/warrington ,FWB,Care Purchase - Learning Disability,54450,CP-Domicil.External,440950,18-Dec-15,1900189062,2400.00,Partnerships In Care Ltd,103278
WARRINGTON BOROUGH COUNCIL,http://opendatacommunities.org/id/unitary-authority/warrington ,FWB,Care Purchase - Learning Disability,54450,CP-Nursing Care-External,441200,18-Dec-15,1900189062,4800.00,Partnerships In Care Ltd,103278
WARRINGTON BOROUGH COUNCIL,http://opendatacommunities.org/id/unitary-authority/warrington ,FWB,Care Purchase - Learning Disability,54450,CP-Nursing Care-External,441200,18-Dec-15,1900189095,4800.00,Partnerships In Care Ltd,103278
WARRINGTON BOROUGH COUNCIL,http://opendatacommunities.org/id/unitary-authority/warrington ,FWB,Care Purchase - Learning Disability,54450,CP-Nursing Care-External,441200,18-Dec-15,1900189083,4200.00,Partnerships In Care Ltd,103278
WARRINGTON BOROUGH COUNCIL,http://opendatacommunities.org/id/unitary-authority/warrington ,FWB,Care Purchase - Learning Disability,54450,CP-Nursing Care-External,441200,18-Dec-15,1900189090,4200.00,Partnerships In Care Ltd,103278
WARRINGTON BOROUGH COUNCIL,http://opendatacommunities.org/id/unitary-authority/warrington ,FWB,Care Purchase - Learning Disability,54450,CP-Nursing Care-External,441200,18-Dec-15,1900189085,9240.00,Partnerships In Care Ltd,103278
WARRINGTON BOROUGH COUNCIL,http://opendatacommunities.org/id/unitary-authority/warrington ,FWB,Care Purchase - Learning Disability,54450,CP-Nursing Care-External,441200,18-Dec-15,1900189087,6600.00,Partnerships In Care Ltd,103278
WARRINGTON BOROUGH COUNCIL,http://opendatacommunities.org/id/unitary-authority/warrington ,FWB,Care Purchase - Learning Disability,54450,CP-Nursing Care-External,441200,18-Dec-15,1900189088,4800.00,Partnerships In Care Ltd,103278
WARRINGTON BOROUGH COUNCIL,http://opendatacommunities.org/id/unitary-authority/warrington ,FWB,Care Purchase - Learning Disability,54450,CP-Nursing Care-External,441200,18-Dec-15,1900189082,4200.00,Partnerships In Care Ltd,103278
WARRINGTON BOROUGH COUNCIL,http://opendatacommunities.org/id/unitary-authority/warrington ,FWB,Care Purchase - Learning Disability,54450,CP-Domicil.External,440950,18-Dec-15,1900189069,900.00,Partnerships In Care Ltd,103278
WARRINGTON BOROUGH COUNCIL,http://opendatacommunities.org/id/unitary-authority/warrington ,FWB,Older Peoples North Team,54422,CP-LongStayExternal,441150,02-Dec-15,1900187739,2400.00,Peel Moat Harbour Healthcare,114680
WARRINGTON BOROUGH COUNCIL,http://opendatacommunities.org/id/unitary-authority/warrington ,FWB,Older Peoples North Team,54422,CP-LongStayExternal,441150,16-Dec-15,1900188884,2400.00,Peel Moat Harbour Healthcare,114680
WARRINGTON BOROUGH COUNCIL,http://opendatacommunities.org/id/unitary-authority/warrington ,FWB,Older Peoples North Team,54422,CP-Nursing Care-External,441200,23-Dec-15,1900189618,2095.00,Pendine Park Care Organisation,112763
WARRINGTON BOROUGH COUNCIL,http://opendatacommunities.org/id/unitary-authority/warrington ,FWB,Care Purchase - Learning Disability,54450,CP-LongStayExternal,441150,10-Dec-15,1900188568,10471.00,Pendleton Care Limited,101213
WARRINGTON BOROUGH COUNCIL,http://opendatacommunities.org/id/unitary-authority/warrington ,FWB,Care Purchase - Learning Disability,54450,CP-LongStayExternal,441150,24-Dec-15,1900189761,10471.00,Pendleton Care Limited,101213
WARRINGTON BOROUGH COUNCIL,http://opendatacommunities.org/id/unitary-authority/warrington ,FWB,Contracts - SM Commissioning Team 2,55920,Public Health Contract Payments,540000,21-Dec-15,1900189517,1380.00,Penketh Health Centre,114597
WARRINGTON BOROUGH COUNCIL,http://opendatacommunities.org/id/unitary-authority/warrington ,FWB,Contracts - SM Commissioning Team 2,55920,Public Health Contract Payments,540000,21-Dec-15,1900189514,562.00,Penketh Health Centre,114597
WARRINGTON BOROUGH COUNCIL,http://opendatacommunities.org/id/unitary-authority/warrington ,FWB,Contracts - SM Commissioning Team 2,55920,Public Health Contract Payments,540000,21-Dec-15,1900189516,1455.00,Penketh Health Centre,114597
WARRINGTON BOROUGH COUNCIL,http://opendatacommunities.org/id/unitary-authority/warrington ,CYP,Childrens Other,81004,Specific Work,200200,01-Dec-15,1900187582,14890.00,Pentagon Sport,108264
WARRINGTON BOROUGH COUNCIL,http://opendatacommunities.org/id/unitary-authority/warrington ,FWB,DSG 2 Year Old Fund,31601,Payment of Grants,470050,18-Dec-15,1900189384,3928.00,Play Days Pre-School,400016
WARRINGTON BOROUGH COUNCIL,http://opendatacommunities.org/id/unitary-authority/warrington ,FWB,DSG Early Years PVI Settings,32417,Private & Voluntary 3 Year Olds,470100,18-Dec-15,1900189207,10701.00,Play Days Pre-School,400016
WARRINGTON BOROUGH COUNCIL,http://opendatacommunities.org/id/unitary-authority/warrington ,FWB,DSG Early Years PVI Settings,32417,Private & Voluntary 4 Year Olds,470150,18-Dec-15,1900189299,3510.00,Play Days Pre-School,400016
WARRINGTON BOROUGH COUNCIL,http://opendatacommunities.org/id/unitary-authority/warrington ,FWB,Child Disability,32212,CP-Domicil.External,440950,14-Dec-15,1900188750,13366.00,Playability,110980
WARRINGTON BOROUGH COUNCIL,http://opendatacommunities.org/id/unitary-authority/warrington ,ENO,Housing Projects,82008,Safe & Secure Energy House Assistance,554100,16-Dec-15,1900188856,1780.00,Plumbking,114428
WARRINGTON BOROUGH COUNCIL,http://opendatacommunities.org/id/unitary-authority/warrington ,FWB,Older Peoples North Team,54422,CP-Nursing Care-External,441200,02-Dec-15,1900187759,3852.00,Porthaven Care Homes LLP Prestbury,114834
WARRINGTON BOROUGH COUNCIL,http://opendatacommunities.org/id/unitary-authority/warrington ,FWB,Older Peoples North Team,54422,CP-Nursing Care-External,441200,16-Dec-15,1900188897,3852.00,Porthaven Care Homes LLP Prestbury,114834
WARRINGTON BOROUGH COUNCIL,http://opendatacommunities.org/id/unitary-authority/warrington ,EE0,Transport Holding Account,41311,Road Fund Licences,300200,09-Dec-15,1900188481,5345.00,Post Office Counters Ltd,100004
WARRINGTON BOROUGH COUNCIL,http://opendatacommunities.org/id/unitary-authority/warrington ,FWB,Care Purchase - Learning Disability,54450,CP-LongStayExternal,441150,24-Dec-15,1900189760,5500.00,Potens Ltd TA Heath Lodge,102481
WARRINGTON BOROUGH COUNCIL,http://opendatacommunities.org/id/unitary-authority/warrington ,FWB,Care Purchase - Learning Disability,54450,CP-LongStayExternal,441150,24-Dec-15,1900189758,3508.00,Potens Ltd TA Heath Lodge,102481
WARRINGTON BOROUGH COUNCIL,http://opendatacommunities.org/id/unitary-authority/warrington ,FWB,Care Purchase - Learning Disability,54450,CP-LongStayExternal,441150,24-Dec-15,1900189759,4400.00,Potens Ltd TA Heath Lodge,102481
WARRINGTON BOROUGH COUNCIL,http://opendatacommunities.org/id/unitary-authority/warrington ,FWB,Older Peoples South Team,54421,CP-Domicil.External,440950,02-Dec-15,1900187659,23578.00,Premier Care Cheshire Ltd,105142
WARRINGTON BOROUGH COUNCIL,http://opendatacommunities.org/id/unitary-authority/warrington ,FWB,Older Peoples North Team,54422,CP-Domicil.External,440950,02-Dec-15,1900187659,21945.00,Premier Care Cheshire Ltd,105142
WARRINGTON BOROUGH COUNCIL,http://opendatacommunities.org/id/unitary-authority/warrington ,FWB,Care Purchase AMH,54135,CP-Domicil.External,440950,02-Dec-15,1900187659,1948.00,Premier Care Cheshire Ltd,105142
WARRINGTON BOROUGH COUNCIL,http://opendatacommunities.org/id/unitary-authority/warrington ,FWB,Care Purchase - Learning Disability,54450,CP-Domicil.External,440950,02-Dec-15,1900187659,3284.00,Premier Care Cheshire Ltd,105142
WARRINGTON BOROUGH COUNCIL,http://opendatacommunities.org/id/unitary-authority/warrington ,FWB,Care Purchase - PD,54440,CP-Domicil.External,440950,02-Dec-15,1900187659,8386.00,Premier Care Cheshire Ltd,105142
WARRINGTON BOROUGH COUNCIL,http://opendatacommunities.org/id/unitary-authority/warrington ,FWB,Older Peoples South Team,54421,CP-Domicil.External,440950,23-Dec-15,1900189692,24319.00,Premier Care Cheshire Ltd,105142
WARRINGTON BOROUGH COUNCIL,http://opendatacommunities.org/id/unitary-authority/warrington ,FWB,Older Peoples North Team,54422,CP-Domicil.External,440950,23-Dec-15,1900189692,21111.00,Premier Care Cheshire Ltd,105142
WARRINGTON BOROUGH COUNCIL,http://opendatacommunities.org/id/unitary-authority/warrington ,FWB,Care Purchase AMH,54135,CP-Domicil.External,440950,23-Dec-15,1900189692,1785.00,Premier Care Cheshire Ltd,105142
WARRINGTON BOROUGH COUNCIL,http://opendatacommunities.org/id/unitary-authority/warrington ,FWB,Care Purchase - Learning Disability,54450,CP-Domicil.External,440950,23-Dec-15,1900189692,3176.00,Premier Care Cheshire Ltd,105142
WARRINGTON BOROUGH COUNCIL,http://opendatacommunities.org/id/unitary-authority/warrington ,FWB,Care Purchase - PD,54440,CP-Domicil.External,440950,23-Dec-15,1900189692,8351.00,Premier Care Cheshire Ltd,105142
WARRINGTON BOROUGH COUNCIL,http://opendatacommunities.org/id/unitary-authority/warrington ,FWB,Care Purchase - Learning Disability,54450,CP-Domicil.External,440950,16-Dec-15,1900188900,3325.00,Progress Adult Services Ltd,101817
WARRINGTON BOROUGH COUNCIL,http://opendatacommunities.org/id/unitary-authority/warrington ,FWB,Care Purchase - Learning Disability,54450,CP-LongStayExternal,441150,16-Dec-15,1900188900,11238.00,Progress Adult Services Ltd,101817
WARRINGTON BOROUGH COUNCIL,http://opendatacommunities.org/id/unitary-authority/warrington ,FWB,Care Purchase - Learning Disability,54450,CP-LongStayExternal,441150,16-Dec-15,1900188899,11238.00,Progress Adult Services Ltd,101817
WARRINGTON BOROUGH COUNCIL,http://opendatacommunities.org/id/unitary-authority/warrington ,FWB,Care Purchase - Learning Disability,54450,CP-LongStayExternal,441150,16-Dec-15,1900188902,11896.00,Progress Care and Education Ltd,108888
WARRINGTON BOROUGH COUNCIL,http://opendatacommunities.org/id/unitary-authority/warrington ,FWB,DSG 2 Year Old Fund,31601,Payment of Grants,470050,18-Dec-15,1900189385,6038.00,Puddleducks Day Nursery,400001
WARRINGTON BOROUGH COUNCIL,http://opendatacommunities.org/id/unitary-authority/warrington ,FWB,DSG Early Years PVI Settings,32417,Private & Voluntary 3 Year Olds,470100,18-Dec-15,1900189208,8943.00,Puddleducks Day Nursery,400001
WARRINGTON BOROUGH COUNCIL,http://opendatacommunities.org/id/unitary-authority/warrington ,FWB,DSG Early Years PVI Settings,32417,Private & Voluntary 4 Year Olds,470150,18-Dec-15,1900189300,4975.00,Puddleducks Day Nursery,400001
WARRINGTON BOROUGH COUNCIL,http://opendatacommunities.org/id/unitary-authority/warrington ,COR,Oxygen Finance,60260,Corporate Initiative,491000,18-Dec-15,1700013237,567.00,PV Fit Ltd T/A Genfit,114623
WARRINGTON BOROUGH COUNCIL,http://opendatacommunities.org/id/unitary-authority/warrington ,ENO,Housing Projects,82008,Disabled Persons Grant 1996,554000,17-Dec-15,1900188988,3856.00,R Hough & Co,102596
WARRINGTON BOROUGH COUNCIL,http://opendatacommunities.org/id/unitary-authority/warrington ,FWB,DSG 2 Year Old Fund,31601,Payment of Grants,470050,18-Dec-15,1900189386,1164.00,Rainbow Day Nursery,400153
WARRINGTON BOROUGH COUNCIL,http://opendatacommunities.org/id/unitary-authority/warrington ,FWB,DSG Early Years PVI Settings,32417,Private & Voluntary 3 Year Olds,470100,18-Dec-15,1900189209,15213.00,Rainbow Day Nursery,400153
WARRINGTON BOROUGH COUNCIL,http://opendatacommunities.org/id/unitary-authority/warrington ,FWB,DSG Early Years PVI Settings,32417,Private & Voluntary 4 Year Olds,470150,18-Dec-15,1900189301,4522.00,Rainbow Day Nursery,400153
WARRINGTON BOROUGH COUNCIL,http://opendatacommunities.org/id/unitary-authority/warrington ,RSC,Coroners Service,11100,Consult.& Prof. Serv,440000,18-Dec-15,1900189041,504.00,REDACTED PERSONAL DATA,103506
WARRINGTON BOROUGH COUNCIL,http://opendatacommunities.org/id/unitary-authority/warrington ,FWB,Advisors,32100,Consult.& Prof. Serv,440000,07-Dec-15,1900187900,2700.00,REDACTED PERSONAL DATA,113182
WARRINGTON BOROUGH COUNCIL,http://opendatacommunities.org/id/unitary-authority/warrington ,FWB,Care Purchase Budget,54490,CP ExternalOther Exp,440800,15-Dec-15,1900188776,600.00,REDACTED PERSONAL DATA,114378
WARRINGTON BOROUGH COUNCIL,http://opendatacommunities.org/id/unitary-authority/warrington ,FWB,Care Purchase Budget,54490,CP ExternalOther Exp,440800,01-Dec-15,1900187584,702.00,REDACTED PERSONAL DATA,114378
WARRINGTON BOROUGH COUNCIL,http://opendatacommunities.org/id/unitary-authority/warrington ,FWB,Foster Allowances,31106,Fostering Allowance,550050,21-Dec-15,1900189519,1011.00,REDACTED PERSONAL DATA,460201
WARRINGTON BOROUGH COUNCIL,http://opendatacommunities.org/id/unitary-authority/warrington ,EE0,Estates & Valuation,43520,Agency Supply - GF,180000,09-Dec-15,1900188517,850.00,REDACTED PERSONAL DATA,104950
WARRINGTON BOROUGH COUNCIL,http://opendatacommunities.org/id/unitary-authority/warrington ,FWB,Legal Fees - Safeguarding,30100,Legal Costs Incurred,440200,17-Dec-15,1900188964,1500.00,REDACTED PERSONAL DATA,109535
WARRINGTON BOROUGH COUNCIL,http://opendatacommunities.org/id/unitary-authority/warrington ,FWB,Legal Fees - Safeguarding,30100,Legal Costs Incurred,440200,17-Dec-15,1900188980,3225.00,REDACTED PERSONAL DATA,115016
WARRINGTON BOROUGH COUNCIL,http://opendatacommunities.org/id/unitary-authority/warrington ,FWB,Legal Fees - Safeguarding,30100,Legal Costs Incurred,440200,14-Dec-15,1900188752,4425.00,REDACTED PERSONAL DATA,114433
WARRINGTON BOROUGH COUNCIL,http://opendatacommunities.org/id/unitary-authority/warrington ,ENO,Environment & Regeneration Other,82002,Legal Costs Incurred,440200,09-Dec-15,1900188521,3600.00,REDACTED PERSONAL DATA,102113
WARRINGTON BOROUGH COUNCIL,http://opendatacommunities.org/id/unitary-authority/warrington ,FWB,Child Disability,32212,CP-Domicil.External,440950,14-Dec-15,1900188745,1764.00,REDACTED PERSONAL DATA,460807
WARRINGTON BOROUGH COUNCIL,http://opendatacommunities.org/id/unitary-authority/warrington ,RSC,Coroners Service,11100,Reimbursement for Deputy Coroner,440400,22-Dec-15,1900189560,995.00,REDACTED PERSONAL DATA,111284
WARRINGTON BOROUGH COUNCIL,http://opendatacommunities.org/id/unitary-authority/warrington ,RSC,Coroners Service,11100,Post Mortem Fees-Rep,440250,18-Dec-15,1900189116,4804.00,REDACTED PERSONAL DATA,100499
WARRINGTON BOROUGH COUNCIL,http://opendatacommunities.org/id/unitary-authority/warrington ,FWB,Reablement/ WP/ ASC Grant c/f,53700,Consult.& Prof. Serv,440000,11-Dec-15,1900188592,600.00,REDACTED PERSONAL DATA,111505
WARRINGTON BOROUGH COUNCIL,http://opendatacommunities.org/id/unitary-authority/warrington ,FWB,Foster Allowances,31106,Fostering Allowance,550050,17-Dec-15,1900188974,1296.00,REDACTED PERSONAL DATA,460929
WARRINGTON BOROUGH COUNCIL,http://opendatacommunities.org/id/unitary-authority/warrington ,FWB,DSG 2 Year Old Fund,31601,Payment of Grants,470050,18-Dec-15,1900189336,655.00,REDACTED PERSONAL DATA,114483
WARRINGTON BOROUGH COUNCIL,http://opendatacommunities.org/id/unitary-authority/warrington ,FWB,DSG 2 Year Old Fund,31601,Payment of Grants,470050,18-Dec-15,1900189338,655.00,REDACTED PERSONAL DATA,114601
WARRINGTON BOROUGH COUNCIL,http://opendatacommunities.org/id/unitary-authority/warrington ,FWB,DSG 2 Year Old Fund,31601,Payment of Grants,470050,18-Dec-15,1900189339,567.00,REDACTED PERSONAL DATA,420545
WARRINGTON BOROUGH COUNCIL,http://opendatacommunities.org/id/unitary-authority/warrington ,FWB,DSG 2 Year Old Fund,31601,Payment of Grants,470050,18-Dec-15,1900189355,655.00,REDACTED PERSONAL DATA,113528
WARRINGTON BOROUGH COUNCIL,http://opendatacommunities.org/id/unitary-authority/warrington ,FWB,DSG 2 Year Old Fund,31601,Payment of Grants,470050,18-Dec-15,1900189350,655.00,REDACTED PERSONAL DATA,114101
WARRINGTON BOROUGH COUNCIL,http://opendatacommunities.org/id/unitary-authority/warrington ,FWB,DSG Early Years PVI Settings,32417,Private & Voluntary 3 Year Olds,470100,18-Dec-15,1900189146,904.00,REDACTED PERSONAL DATA,103019
WARRINGTON BOROUGH COUNCIL,http://opendatacommunities.org/id/unitary-authority/warrington ,FWB,DSG Early Years PVI Settings,32417,Private & Voluntary 3 Year Olds,470100,18-Dec-15,1900189157,543.00,REDACTED PERSONAL DATA,108266
WARRINGTON BOROUGH COUNCIL,http://opendatacommunities.org/id/unitary-authority/warrington ,FWB,DSG Early Years PVI Settings,32417,Private & Voluntary 3 Year Olds,470100,18-Dec-15,1900189160,1357.00,REDACTED PERSONAL DATA,112993
WARRINGTON BOROUGH COUNCIL,http://opendatacommunities.org/id/unitary-authority/warrington ,FWB,DSG Early Years PVI Settings,32417,Private & Voluntary 3 Year Olds,470100,18-Dec-15,1900189175,904.00,REDACTED PERSONAL DATA,113693
WARRINGTON BOROUGH COUNCIL,http://opendatacommunities.org/id/unitary-authority/warrington ,FWB,DSG Early Years PVI Settings,32417,Private & Voluntary 3 Year Olds,470100,18-Dec-15,1900189194,754.00,REDACTED PERSONAL DATA,420594
WARRINGTON BOROUGH COUNCIL,http://opendatacommunities.org/id/unitary-authority/warrington ,FWB,DSG Early Years PVI Settings,32417,Private & Voluntary 3 Year Olds,470100,18-Dec-15,1900189214,543.00,REDACTED PERSONAL DATA,114298
WARRINGTON BOROUGH COUNCIL,http://opendatacommunities.org/id/unitary-authority/warrington ,FWB,DSG Early Years PVI Settings,32417,Private & Voluntary 3 Year Olds,470100,18-Dec-15,1900189226,1176.00,REDACTED PERSONAL DATA,110816
WARRINGTON BOROUGH COUNCIL,http://opendatacommunities.org/id/unitary-authority/warrington ,FWB,DSG Early Years PVI Settings,32417,Private & Voluntary 3 Year Olds,470100,18-Dec-15,1900189238,724.00,REDACTED PERSONAL DATA,420457
WARRINGTON BOROUGH COUNCIL,http://opendatacommunities.org/id/unitary-authority/warrington ,FWB,DSG 2 Year Old Fund,31601,Payment of Grants,470050,22-Dec-15,1900189545,1310.00,REDACTED PERSONAL DATA,112993
WARRINGTON BOROUGH COUNCIL,http://opendatacommunities.org/id/unitary-authority/warrington ,ENO,Highways Other,82005,Consult.& Prof. Serv,440000,02-Dec-15,1900187774,5542.00,REDACTED PERSONAL DATA,104950
WARRINGTON BOROUGH COUNCIL,http://opendatacommunities.org/id/unitary-authority/warrington ,EE0,Other Commercial Prop.,43560,Consult.& Prof. Serv,440000,23-Dec-15,1900189663,2200.00,REDACTED PERSONAL DATA,114957
WARRINGTON BOROUGH COUNCIL,http://opendatacommunities.org/id/unitary-authority/warrington ,FWB,Foster Allowances,31106,Personal Needs Allowance,550400,02-Dec-15,1900187682,681.00,REDACTED PERSONAL DATA,461179
WARRINGTON BOROUGH COUNCIL,http://opendatacommunities.org/id/unitary-authority/warrington ,FWB,Permanence Team,31100,Personal Needs Allowance,550400,10-Dec-15,1900188564,570.00,REDACTED PERSONAL DATA,461249
WARRINGTON BOROUGH COUNCIL,http://opendatacommunities.org/id/unitary-authority/warrington ,FWB,Permanence Team,31100,Personal Needs Allowance,550400,17-Dec-15,1900188971,570.00,REDACTED PERSONAL DATA,461249
WARRINGTON BOROUGH COUNCIL,http://opendatacommunities.org/id/unitary-authority/warrington ,FWB,Foster Allowances,31106,Fostering Allowance,550050,09-Dec-15,1900188473,1433.00,REDACTED PERSONAL DATA,460019
WARRINGTON BOROUGH COUNCIL,http://opendatacommunities.org/id/unitary-authority/warrington ,FWB,Foster Allowances,31106,Fostering Allowance,550050,17-Dec-15,1900188968,832.00,REDACTED PERSONAL DATA,461254
WARRINGTON BOROUGH COUNCIL,http://opendatacommunities.org/id/unitary-authority/warrington ,FWB,Foster Allowances,31106,Fostering Allowance,550050,01-Dec-15,1900187602,1433.00,REDACTED PERSONAL DATA,461123
WARRINGTON BOROUGH COUNCIL,http://opendatacommunities.org/id/unitary-authority/warrington ,FWB,Foster Allowances,31106,Fostering Allowance,550050,22-Dec-15,1900189548,843.00,REDACTED PERSONAL DATA,461250
WARRINGTON BOROUGH COUNCIL,http://opendatacommunities.org/id/unitary-authority/warrington ,FWB,Foster Allowances,31106,Fostering Allowance,550050,04-Dec-15,1900187877,590.00,REDACTED PERSONAL DATA,461239
WARRINGTON BOROUGH COUNCIL,http://opendatacommunities.org/id/unitary-authority/warrington ,FWB,Foster Allowances,31106,Fostering Allowance,550050,11-Dec-15,1900188642,2191.00,REDACTED PERSONAL DATA,460794
WARRINGTON BOROUGH COUNCIL,http://opendatacommunities.org/id/unitary-authority/warrington ,FWB,Adoption Allowances,31108,Personal Needs Allowance,550400,09-Dec-15,1900188496,650.00,REDACTED PERSONAL DATA,461238
WARRINGTON BOROUGH COUNCIL,http://opendatacommunities.org/id/unitary-authority/warrington ,FWB,Foster Allowances,31106,Fostering Allowance,550050,17-Dec-15,1900188958,674.00,REDACTED PERSONAL DATA,461250
WARRINGTON BOROUGH COUNCIL,http://opendatacommunities.org/id/unitary-authority/warrington ,FWB,Foster Allowances,31106,Fostering Allowance,550050,01-Dec-15,1900187600,759.00,REDACTED PERSONAL DATA,461208
WARRINGTON BOROUGH COUNCIL,http://opendatacommunities.org/id/unitary-authority/warrington ,FWB,Foster Allowances,31106,Fostering Allowance,550050,17-Dec-15,1900188981,590.00,REDACTED PERSONAL DATA,461256
WARRINGTON BOROUGH COUNCIL,http://opendatacommunities.org/id/unitary-authority/warrington ,FWB,Legal Fees - Safeguarding,30100,Legal Costs Incurred,440200,04-Dec-15,1900187871,2958.00,REDACTED PERSONAL DATA,114986
WARRINGTON BOROUGH COUNCIL,http://opendatacommunities.org/id/unitary-authority/warrington ,FWB,Care Purchase - Learning Disability,54450,Direct Payments,552000,02-Dec-15,1900187713,10952.00,REDACTED PERSONAL DATA,461235
WARRINGTON BOROUGH COUNCIL,http://opendatacommunities.org/id/unitary-authority/warrington ,FWB,Older Peoples South Team,54421,Direct Payments,552000,02-Dec-15,1900187710,1410.00,REDACTED PERSONAL DATA,461016
WARRINGTON BOROUGH COUNCIL,http://opendatacommunities.org/id/unitary-authority/warrington ,FWB,Child Disability,32212,Direct Payments,552000,02-Dec-15,1900187715,740.00,REDACTED PERSONAL DATA,461243
WARRINGTON BOROUGH COUNCIL,http://opendatacommunities.org/id/unitary-authority/warrington ,FWB,Care Purchase - PD,54440,Direct Payments,552000,02-Dec-15,1900187714,1075.00,REDACTED PERSONAL DATA,461242
WARRINGTON BOROUGH COUNCIL,http://opendatacommunities.org/id/unitary-authority/warrington ,FWB,Care Purchase - Learning Disability,54450,Direct Payments,552000,02-Dec-15,1900187717,743.00,REDACTED PERSONAL DATA,461246
WARRINGTON BOROUGH COUNCIL,http://opendatacommunities.org/id/unitary-authority/warrington ,FWB,Care Purchase - Learning Disability,54450,Direct Payments,552000,02-Dec-15,1900187705,736.00,REDACTED PERSONAL DATA,105576
WARRINGTON BOROUGH COUNCIL,http://opendatacommunities.org/id/unitary-authority/warrington ,FWB,Care Purchase - Learning Disability,54450,Direct Payments,552000,08-Dec-15,1900188432,15333.00,REDACTED PERSONAL DATA,461235
WARRINGTON BOROUGH COUNCIL,http://opendatacommunities.org/id/unitary-authority/warrington ,FWB,Older Peoples South Team,54421,Direct Payments,552000,08-Dec-15,1900188389,742.00,REDACTED PERSONAL DATA,461113
WARRINGTON BOROUGH COUNCIL,http://opendatacommunities.org/id/unitary-authority/warrington ,FWB,Care Purchase - Learning Disability,54450,Direct Payments,552000,08-Dec-15,1900188049,2290.00,REDACTED PERSONAL DATA,101686
WARRINGTON BOROUGH COUNCIL,http://opendatacommunities.org/id/unitary-authority/warrington ,FWB,Care Purchase - PD,54440,Direct Payments,552000,08-Dec-15,1900188230,2249.00,REDACTED PERSONAL DATA,460269
WARRINGTON BOROUGH COUNCIL,http://opendatacommunities.org/id/unitary-authority/warrington ,FWB,Older Peoples South Team,54421,CP - Cont Care - External,441350,08-Dec-15,1900188351,772.00,REDACTED PERSONAL DATA,460918
WARRINGTON BOROUGH COUNCIL,http://opendatacommunities.org/id/unitary-authority/warrington ,FWB,Older Peoples South Team,54421,Direct Payments,552000,08-Dec-15,1900188351,772.00,REDACTED PERSONAL DATA,460918
WARRINGTON BOROUGH COUNCIL,http://opendatacommunities.org/id/unitary-authority/warrington ,FWB,Care Purchase - PD,54440,Direct Payments,552000,08-Dec-15,1900188152,606.00,REDACTED PERSONAL DATA,107299
WARRINGTON BOROUGH COUNCIL,http://opendatacommunities.org/id/unitary-authority/warrington ,FWB,Care Purchase - PD,54440,Direct Payments,552000,08-Dec-15,1900188001,851.00,REDACTED PERSONAL DATA,100766
WARRINGTON BOROUGH COUNCIL,http://opendatacommunities.org/id/unitary-authority/warrington ,FWB,Older Peoples North Team,54422,Direct Payments,552000,08-Dec-15,1900188372,753.00,REDACTED PERSONAL DATA,461033
WARRINGTON BOROUGH COUNCIL,http://opendatacommunities.org/id/unitary-authority/warrington ,FWB,Care Purchase - PD,54440,CP - Cont Care - External,441350,08-Dec-15,1900188082,1584.00,REDACTED PERSONAL DATA,103372
WARRINGTON BOROUGH COUNCIL,http://opendatacommunities.org/id/unitary-authority/warrington ,FWB,Care Purchase - PD,54440,Direct Payments,552000,08-Dec-15,1900188082,3822.00,REDACTED PERSONAL DATA,103372
WARRINGTON BOROUGH COUNCIL,http://opendatacommunities.org/id/unitary-authority/warrington ,FWB,Older Peoples North Team,54422,Direct Payments,552000,08-Dec-15,1900188430,582.00,REDACTED PERSONAL DATA,461223
WARRINGTON BOROUGH COUNCIL,http://opendatacommunities.org/id/unitary-authority/warrington ,FWB,Care Purchase - PD,54440,Direct Payments,552000,08-Dec-15,1900188310,834.00,REDACTED PERSONAL DATA,460703
WARRINGTON BOROUGH COUNCIL,http://opendatacommunities.org/id/unitary-authority/warrington ,FWB,Care Purchase - PD,54440,Supporting People - External,441250,08-Dec-15,1900188103,849.00,REDACTED PERSONAL DATA,103794
WARRINGTON BOROUGH COUNCIL,http://opendatacommunities.org/id/unitary-authority/warrington ,FWB,Care Purchase - PD,54440,Direct Payments,552000,08-Dec-15,1900188173,1249.00,REDACTED PERSONAL DATA,114446
WARRINGTON BOROUGH COUNCIL,http://opendatacommunities.org/id/unitary-authority/warrington ,FWB,Care Purchase - Learning Disability,54450,Direct Payments,552000,08-Dec-15,1900188013,849.00,REDACTED PERSONAL DATA,101045
WARRINGTON BOROUGH COUNCIL,http://opendatacommunities.org/id/unitary-authority/warrington ,FWB,Care Purchase - PD,54440,Direct Payments,552000,08-Dec-15,1900188012,855.00,REDACTED PERSONAL DATA,101030
WARRINGTON BOROUGH COUNCIL,http://opendatacommunities.org/id/unitary-authority/warrington ,FWB,Care Purchase - PD,54440,Direct Payments,552000,08-Dec-15,1900188002,6513.00,REDACTED PERSONAL DATA,100879
WARRINGTON BOROUGH COUNCIL,http://opendatacommunities.org/id/unitary-authority/warrington ,FWB,Care Purchase - Learning Disability,54450,Supporting People - External,441250,08-Dec-15,1900188102,810.00,REDACTED PERSONAL DATA,103771
WARRINGTON BOROUGH COUNCIL,http://opendatacommunities.org/id/unitary-authority/warrington ,FWB,Care Purchase - Learning Disability,54450,Direct Payments,552000,08-Dec-15,1900188102,9814.00,REDACTED PERSONAL DATA,103771
WARRINGTON BOROUGH COUNCIL,http://opendatacommunities.org/id/unitary-authority/warrington ,FWB,Care Purchase - PD,54440,Direct Payments,552000,08-Dec-15,1900188111,1179.00,REDACTED PERSONAL DATA,104205
WARRINGTON BOROUGH COUNCIL,http://opendatacommunities.org/id/unitary-authority/warrington ,FWB,Care Purchase - PD,54440,Direct Payments,552000,08-Dec-15,1900188212,817.00,REDACTED PERSONAL DATA,460226
WARRINGTON BOROUGH COUNCIL,http://opendatacommunities.org/id/unitary-authority/warrington ,FWB,Care Purchase - PD,54440,Direct Payments,552000,08-Dec-15,1900188289,997.00,REDACTED PERSONAL DATA,460581
WARRINGTON BOROUGH COUNCIL,http://opendatacommunities.org/id/unitary-authority/warrington ,FWB,Care Purchase - PD,54440,Direct Payments,552000,08-Dec-15,1900188314,866.00,REDACTED PERSONAL DATA,460726
WARRINGTON BOROUGH COUNCIL,http://opendatacommunities.org/id/unitary-authority/warrington ,FWB,Older Peoples North Team,54422,Direct Payments,552000,08-Dec-15,1900188154,972.00,REDACTED PERSONAL DATA,107436
WARRINGTON BOROUGH COUNCIL,http://opendatacommunities.org/id/unitary-authority/warrington ,FWB,Care Purchase - PD,54440,Direct Payments,552000,08-Dec-15,1900188299,902.00,REDACTED PERSONAL DATA,460638
WARRINGTON BOROUGH COUNCIL,http://opendatacommunities.org/id/unitary-authority/warrington ,FWB,Care Purchase - PD,54440,Direct Payments,552000,08-Dec-15,1900188217,1554.00,REDACTED PERSONAL DATA,460243
WARRINGTON BOROUGH COUNCIL,http://opendatacommunities.org/id/unitary-authority/warrington ,FWB,Older Peoples South Team,54421,Direct Payments,552000,08-Dec-15,1900188369,840.00,REDACTED PERSONAL DATA,461016
WARRINGTON BOROUGH COUNCIL,http://opendatacommunities.org/id/unitary-authority/warrington ,FWB,Care Purchase - PD,54440,Direct Payments,552000,08-Dec-15,1900188382,746.00,REDACTED PERSONAL DATA,461079
WARRINGTON BOROUGH COUNCIL,http://opendatacommunities.org/id/unitary-authority/warrington ,FWB,Older Peoples North Team,54422,Direct Payments,552000,08-Dec-15,1900188329,704.00,REDACTED PERSONAL DATA,460785
WARRINGTON BOROUGH COUNCIL,http://opendatacommunities.org/id/unitary-authority/warrington ,FWB,Older Peoples North Team,54422,Direct Payments,552000,08-Dec-15,1900188261,774.00,REDACTED PERSONAL DATA,460454
WARRINGTON BOROUGH COUNCIL,http://opendatacommunities.org/id/unitary-authority/warrington ,FWB,Care Purchase - Learning Disability,54450,Direct Payments,552000,08-Dec-15,1900188186,964.00,REDACTED PERSONAL DATA,460144
WARRINGTON BOROUGH COUNCIL,http://opendatacommunities.org/id/unitary-authority/warrington ,FWB,Care Purchase - PD,54440,Direct Payments,552000,08-Dec-15,1900188263,798.00,REDACTED PERSONAL DATA,460457
WARRINGTON BOROUGH COUNCIL,http://opendatacommunities.org/id/unitary-authority/warrington ,FWB,Care Purchase - Learning Disability,54450,Direct Payments,552000,08-Dec-15,1900188136,637.00,REDACTED PERSONAL DATA,106066
WARRINGTON BOROUGH COUNCIL,http://opendatacommunities.org/id/unitary-authority/warrington ,FWB,Care Purchase - PD,54440,Direct Payments,552000,08-Dec-15,1900188255,594.00,REDACTED PERSONAL DATA,460426
WARRINGTON BOROUGH COUNCIL,http://opendatacommunities.org/id/unitary-authority/warrington ,FWB,Care Purchase - Learning Disability,54450,Direct Payments,552000,08-Dec-15,1900188072,721.00,REDACTED PERSONAL DATA,102667
WARRINGTON BOROUGH COUNCIL,http://opendatacommunities.org/id/unitary-authority/warrington ,FWB,Care Purchase - Learning Disability,54450,Direct Payments,552000,08-Dec-15,1900188116,538.00,REDACTED PERSONAL DATA,105598
WARRINGTON BOROUGH COUNCIL,http://opendatacommunities.org/id/unitary-authority/warrington ,FWB,Care Purchase - Learning Disability,54450,Direct Payments,552000,08-Dec-15,1900188194,2795.00,REDACTED PERSONAL DATA,460172
WARRINGTON BOROUGH COUNCIL,http://opendatacommunities.org/id/unitary-authority/warrington ,FWB,Care Purchase - Learning Disability,54450,Direct Payments,552000,08-Dec-15,1900188117,956.00,REDACTED PERSONAL DATA,105621
WARRINGTON BOROUGH COUNCIL,http://opendatacommunities.org/id/unitary-authority/warrington ,FWB,Care Purchase - PD,54440,Direct Payments,552000,08-Dec-15,1900188132,849.00,REDACTED PERSONAL DATA,105758
WARRINGTON BOROUGH COUNCIL,http://opendatacommunities.org/id/unitary-authority/warrington ,FWB,Care Purchase - PD,54440,Direct Payments,552000,08-Dec-15,1900188355,945.00,REDACTED PERSONAL DATA,460933
WARRINGTON BOROUGH COUNCIL,http://opendatacommunities.org/id/unitary-authority/warrington ,FWB,Care Purchase - Learning Disability,54450,Direct Payments,552000,08-Dec-15,1900188033,2401.00,REDACTED PERSONAL DATA,101516
WARRINGTON BOROUGH COUNCIL,http://opendatacommunities.org/id/unitary-authority/warrington ,FWB,Care Purchase - Learning Disability,54450,Direct Payments,552000,08-Dec-15,1900188234,921.00,REDACTED PERSONAL DATA,460281
WARRINGTON BOROUGH COUNCIL,http://opendatacommunities.org/id/unitary-authority/warrington ,FWB,Care Purchase - PD,54440,Direct Payments,552000,08-Dec-15,1900188024,1358.00,REDACTED PERSONAL DATA,101336
WARRINGTON BOROUGH COUNCIL,http://opendatacommunities.org/id/unitary-authority/warrington ,FWB,Care Purchase - PD,54440,Direct Payments,552000,08-Dec-15,1900188275,1141.00,REDACTED PERSONAL DATA,460518
WARRINGTON BOROUGH COUNCIL,http://opendatacommunities.org/id/unitary-authority/warrington ,FWB,Care Purchase - Learning Disability,54450,Direct Payments,552000,08-Dec-15,1900188155,1414.00,REDACTED PERSONAL DATA,107437
WARRINGTON BOROUGH COUNCIL,http://opendatacommunities.org/id/unitary-authority/warrington ,FWB,Care Purchase - PD,54440,Direct Payments,552000,08-Dec-15,1900188126,597.00,REDACTED PERSONAL DATA,105665
WARRINGTON BOROUGH COUNCIL,http://opendatacommunities.org/id/unitary-authority/warrington ,FWB,Care Purchase - PD,54440,Direct Payments,552000,08-Dec-15,1900188169,999.00,REDACTED PERSONAL DATA,112510
WARRINGTON BOROUGH COUNCIL,http://opendatacommunities.org/id/unitary-authority/warrington ,FWB,Older Peoples North Team,54422,Direct Payments,552000,08-Dec-15,1900188004,1351.00,REDACTED PERSONAL DATA,100907
WARRINGTON BOROUGH COUNCIL,http://opendatacommunities.org/id/unitary-authority/warrington ,FWB,Older Peoples North Team,54422,Direct Payments,552000,08-Dec-15,1900188018,812.00,REDACTED PERSONAL DATA,101174
WARRINGTON BOROUGH COUNCIL,http://opendatacommunities.org/id/unitary-authority/warrington ,FWB,Care Purchase - Learning Disability,54450,CP - Cont Care - External,441350,08-Dec-15,1900188120,638.00,REDACTED PERSONAL DATA,105625
WARRINGTON BOROUGH COUNCIL,http://opendatacommunities.org/id/unitary-authority/warrington ,FWB,Care Purchase - Learning Disability,54450,Direct Payments,552000,08-Dec-15,1900187995,720.00,REDACTED PERSONAL DATA,100452
WARRINGTON BOROUGH COUNCIL,http://opendatacommunities.org/id/unitary-authority/warrington ,FWB,Care Purchase - Learning Disability,54450,CP - Cont Care - External,441350,08-Dec-15,1900188200,1660.00,REDACTED PERSONAL DATA,460191
WARRINGTON BOROUGH COUNCIL,http://opendatacommunities.org/id/unitary-authority/warrington ,FWB,Care Purchase - Learning Disability,54450,Direct Payments,552000,08-Dec-15,1900188200,1660.00,REDACTED PERSONAL DATA,460191
WARRINGTON BOROUGH COUNCIL,http://opendatacommunities.org/id/unitary-authority/warrington ,FWB,Care Purchase - PD,54440,Direct Payments,552000,08-Dec-15,1900188338,976.00,REDACTED PERSONAL DATA,460850
WARRINGTON BOROUGH COUNCIL,http://opendatacommunities.org/id/unitary-authority/warrington ,FWB,Child Disability,32212,Direct Payments,552000,08-Dec-15,1900188022,666.00,REDACTED PERSONAL DATA,101322
WARRINGTON BOROUGH COUNCIL,http://opendatacommunities.org/id/unitary-authority/warrington ,FWB,Care Purchase - Learning Disability,54450,Direct Payments,552000,08-Dec-15,1900188388,764.00,REDACTED PERSONAL DATA,461109
WARRINGTON BOROUGH COUNCIL,http://opendatacommunities.org/id/unitary-authority/warrington ,FWB,Care Purchase - Learning Disability,54450,Direct Payments,552000,08-Dec-15,1900188036,1019.00,REDACTED PERSONAL DATA,101547
WARRINGTON BOROUGH COUNCIL,http://opendatacommunities.org/id/unitary-authority/warrington ,FWB,Older Peoples South Team,54421,Direct Payments,552000,08-Dec-15,1900188421,810.00,REDACTED PERSONAL DATA,461200
WARRINGTON BOROUGH COUNCIL,http://opendatacommunities.org/id/unitary-authority/warrington ,FWB,Care Purchase - Learning Disability,54450,Direct Payments,552000,08-Dec-15,1900188073,1273.00,REDACTED PERSONAL DATA,102710
WARRINGTON BOROUGH COUNCIL,http://opendatacommunities.org/id/unitary-authority/warrington ,FWB,Care Purchase - Learning Disability,54450,Direct Payments,552000,08-Dec-15,1900188008,3353.00,REDACTED PERSONAL DATA,100954
WARRINGTON BOROUGH COUNCIL,http://opendatacommunities.org/id/unitary-authority/warrington ,FWB,Care Purchase - ABI,54260,Direct Payments,552000,08-Dec-15,1900188178,560.00,REDACTED PERSONAL DATA,460066
WARRINGTON BOROUGH COUNCIL,http://opendatacommunities.org/id/unitary-authority/warrington ,FWB,Care Purchase - Learning Disability,54450,Direct Payments,552000,08-Dec-15,1900188007,2817.00,REDACTED PERSONAL DATA,100945
WARRINGTON BOROUGH COUNCIL,http://opendatacommunities.org/id/unitary-authority/warrington ,FWB,Care Purchase - PD,54440,Direct Payments,552000,08-Dec-15,1900188418,976.00,REDACTED PERSONAL DATA,461182
WARRINGTON BOROUGH COUNCIL,http://opendatacommunities.org/id/unitary-authority/warrington ,FWB,Care Purchase - PD,54440,Direct Payments,552000,08-Dec-15,1900188358,764.00,REDACTED PERSONAL DATA,460951
WARRINGTON BOROUGH COUNCIL,http://opendatacommunities.org/id/unitary-authority/warrington ,FWB,Care Purchase - PD,54440,Direct Payments,552000,08-Dec-15,1900188201,539.00,REDACTED PERSONAL DATA,460192
WARRINGTON BOROUGH COUNCIL,http://opendatacommunities.org/id/unitary-authority/warrington ,FWB,Older Peoples South Team,54421,Direct Payments,552000,08-Dec-15,1900188317,956.00,REDACTED PERSONAL DATA,460737
WARRINGTON BOROUGH COUNCIL,http://opendatacommunities.org/id/unitary-authority/warrington ,FWB,Care Purchase - PD,54440,Direct Payments,552000,08-Dec-15,1900188113,797.00,REDACTED PERSONAL DATA,104327
WARRINGTON BOROUGH COUNCIL,http://opendatacommunities.org/id/unitary-authority/warrington ,FWB,Older Peoples South Team,54421,Direct Payments,552000,08-Dec-15,1900188127,576.00,REDACTED PERSONAL DATA,105666
WARRINGTON BOROUGH COUNCIL,http://opendatacommunities.org/id/unitary-authority/warrington ,FWB,Older Peoples North Team,54422,Direct Payments,552000,08-Dec-15,1900188174,1071.00,REDACTED PERSONAL DATA,114527
WARRINGTON BOROUGH COUNCIL,http://opendatacommunities.org/id/unitary-authority/warrington ,FWB,Care Purchase - PD,54440,Direct Payments,552000,08-Dec-15,1900188207,915.00,REDACTED PERSONAL DATA,460214
WARRINGTON BOROUGH COUNCIL,http://opendatacommunities.org/id/unitary-authority/warrington ,FWB,Care Purchase - PD,54440,Direct Payments,552000,08-Dec-15,1900188383,625.00,REDACTED PERSONAL DATA,461089
WARRINGTON BOROUGH COUNCIL,http://opendatacommunities.org/id/unitary-authority/warrington ,FWB,Care Purchase - PD,54440,CP - Cont Care - External,441350,08-Dec-15,1900188083,918.00,REDACTED PERSONAL DATA,103404
WARRINGTON BOROUGH COUNCIL,http://opendatacommunities.org/id/unitary-authority/warrington ,FWB,Care Purchase - PD,54440,Direct Payments,552000,08-Dec-15,1900188083,918.00,REDACTED PERSONAL DATA,103404
WARRINGTON BOROUGH COUNCIL,http://opendatacommunities.org/id/unitary-authority/warrington ,FWB,Care Purchase - Learning Disability,54450,Direct Payments,552000,08-Dec-15,1900188096,1378.00,REDACTED PERSONAL DATA,103697
WARRINGTON BOROUGH COUNCIL,http://opendatacommunities.org/id/unitary-authority/warrington ,FWB,Care Purchase - PD,54440,Direct Payments,552000,08-Dec-15,1900188363,1677.00,REDACTED PERSONAL DATA,460977
WARRINGTON BOROUGH COUNCIL,http://opendatacommunities.org/id/unitary-authority/warrington ,FWB,Care Purchase - Learning Disability,54450,Direct Payments,552000,08-Dec-15,1900188091,1401.00,REDACTED PERSONAL DATA,103614
WARRINGTON BOROUGH COUNCIL,http://opendatacommunities.org/id/unitary-authority/warrington ,FWB,Care Purchase - Learning Disability,54450,Direct Payments,552000,08-Dec-15,1900188044,1019.00,REDACTED PERSONAL DATA,101625
WARRINGTON BOROUGH COUNCIL,http://opendatacommunities.org/id/unitary-authority/warrington ,FWB,Older Peoples South Team,54421,Direct Payments,552000,08-Dec-15,1900188064,610.00,REDACTED PERSONAL DATA,102183
WARRINGTON BOROUGH COUNCIL,http://opendatacommunities.org/id/unitary-authority/warrington ,FWB,Care Purchase - PD,54440,Direct Payments,552000,08-Dec-15,1900188090,1594.00,REDACTED PERSONAL DATA,103613
WARRINGTON BOROUGH COUNCIL,http://opendatacommunities.org/id/unitary-authority/warrington ,FWB,Care Purchase - PD,54440,Direct Payments,552000,08-Dec-15,1900188402,509.00,REDACTED PERSONAL DATA,461145
WARRINGTON BOROUGH COUNCIL,http://opendatacommunities.org/id/unitary-authority/warrington ,FWB,Care Purchase - Learning Disability,54450,Direct Payments,552000,08-Dec-15,1900188313,11453.00,REDACTED PERSONAL DATA,460725
WARRINGTON BOROUGH COUNCIL,http://opendatacommunities.org/id/unitary-authority/warrington ,FWB,Older Peoples South Team,54421,Direct Payments,552000,08-Dec-15,1900188172,2114.00,REDACTED PERSONAL DATA,114340
WARRINGTON BOROUGH COUNCIL,http://opendatacommunities.org/id/unitary-authority/warrington ,FWB,Child Disability,32212,Direct Payments,552000,08-Dec-15,1900188348,560.00,REDACTED PERSONAL DATA,460905
WARRINGTON BOROUGH COUNCIL,http://opendatacommunities.org/id/unitary-authority/warrington ,FWB,Older Peoples South Team,54421,Direct Payments,552000,08-Dec-15,1900188374,919.00,REDACTED PERSONAL DATA,461050
WARRINGTON BOROUGH COUNCIL,http://opendatacommunities.org/id/unitary-authority/warrington ,FWB,Care Purchase - Learning Disability,54450,Direct Payments,552000,08-Dec-15,1900188095,3862.00,REDACTED PERSONAL DATA,103696
WARRINGTON BOROUGH COUNCIL,http://opendatacommunities.org/id/unitary-authority/warrington ,FWB,Care Purchase - PD,54440,Direct Payments,552000,08-Dec-15,1900188361,1347.00,REDACTED PERSONAL DATA,460973
WARRINGTON BOROUGH COUNCIL,http://opendatacommunities.org/id/unitary-authority/warrington ,FWB,Care Purchase - Learning Disability,54450,Direct Payments,552000,08-Dec-15,1900188065,542.00,REDACTED PERSONAL DATA,102225
WARRINGTON BOROUGH COUNCIL,http://opendatacommunities.org/id/unitary-authority/warrington ,FWB,Care Purchase - Learning Disability,54450,Direct Payments,552000,08-Dec-15,1900188053,687.00,REDACTED PERSONAL DATA,101748
WARRINGTON BOROUGH COUNCIL,http://opendatacommunities.org/id/unitary-authority/warrington ,FWB,Care Purchase - PD,54440,Direct Payments,552000,08-Dec-15,1900188433,970.00,REDACTED PERSONAL DATA,461242
WARRINGTON BOROUGH COUNCIL,http://opendatacommunities.org/id/unitary-authority/warrington ,FWB,Care Purchase - Learning Disability,54450,Supporting People - External,441250,08-Dec-15,1900188009,1485.00,REDACTED PERSONAL DATA,100959
WARRINGTON BOROUGH COUNCIL,http://opendatacommunities.org/id/unitary-authority/warrington ,FWB,Care Purchase - Learning Disability,54450,Direct Payments,552000,08-Dec-15,1900188009,3835.00,REDACTED PERSONAL DATA,100959
WARRINGTON BOROUGH COUNCIL,http://opendatacommunities.org/id/unitary-authority/warrington ,FWB,Care Purchase - PD,54440,Direct Payments,552000,08-Dec-15,1900188410,1358.00,REDACTED PERSONAL DATA,461164
WARRINGTON BOROUGH COUNCIL,http://opendatacommunities.org/id/unitary-authority/warrington ,FWB,Care Purchase - Learning Disability,54450,Direct Payments,552000,08-Dec-15,1900188050,3533.00,REDACTED PERSONAL DATA,101701
WARRINGTON BOROUGH COUNCIL,http://opendatacommunities.org/id/unitary-authority/warrington ,FWB,Child Disability,32212,Direct Payments,552000,08-Dec-15,1900188218,680.00,REDACTED PERSONAL DATA,460248
WARRINGTON BOROUGH COUNCIL,http://opendatacommunities.org/id/unitary-authority/warrington ,FWB,Care Purchase - PD,54440,Direct Payments,552000,08-Dec-15,1900187996,1992.00,REDACTED PERSONAL DATA,100508
WARRINGTON BOROUGH COUNCIL,http://opendatacommunities.org/id/unitary-authority/warrington ,FWB,Care Purchase - Learning Disability,54450,Direct Payments,552000,08-Dec-15,1900188409,764.00,REDACTED PERSONAL DATA,461158
WARRINGTON BOROUGH COUNCIL,http://opendatacommunities.org/id/unitary-authority/warrington ,FWB,Care Purchase - PD,54440,Direct Payments,552000,08-Dec-15,1900188303,806.00,REDACTED PERSONAL DATA,460681
WARRINGTON BOROUGH COUNCIL,http://opendatacommunities.org/id/unitary-authority/warrington ,FWB,Older Peoples South Team,54421,Direct Payments,552000,08-Dec-15,1900188340,576.00,REDACTED PERSONAL DATA,460854
WARRINGTON BOROUGH COUNCIL,http://opendatacommunities.org/id/unitary-authority/warrington ,FWB,Child Disability,32212,Direct Payments,552000,08-Dec-15,1900188182,977.00,REDACTED PERSONAL DATA,460112
WARRINGTON BOROUGH COUNCIL,http://opendatacommunities.org/id/unitary-authority/warrington ,FWB,Care Purchase - PD,54440,Direct Payments,552000,08-Dec-15,1900187989,5236.00,REDACTED PERSONAL DATA,100049
WARRINGTON BOROUGH COUNCIL,http://opendatacommunities.org/id/unitary-authority/warrington ,FWB,Child Disability,32212,Direct Payments,552000,08-Dec-15,1900188143,687.00,REDACTED PERSONAL DATA,106708
WARRINGTON BOROUGH COUNCIL,http://opendatacommunities.org/id/unitary-authority/warrington ,FWB,Care Purchase - Learning Disability,54450,Direct Payments,552000,08-Dec-15,1900188025,4063.00,REDACTED PERSONAL DATA,101341
WARRINGTON BOROUGH COUNCIL,http://opendatacommunities.org/id/unitary-authority/warrington ,FWB,Care Purchase - PD,54440,Direct Payments,552000,08-Dec-15,1900188398,5658.00,REDACTED PERSONAL DATA,461139
WARRINGTON BOROUGH COUNCIL,http://opendatacommunities.org/id/unitary-authority/warrington ,FWB,Care Purchase - PD,54440,Direct Payments,552000,08-Dec-15,1900188026,3154.00,REDACTED PERSONAL DATA,101354
WARRINGTON BOROUGH COUNCIL,http://opendatacommunities.org/id/unitary-authority/warrington ,FWB,Care Purchase - PD,54440,Direct Payments,552000,08-Dec-15,1900188296,552.00,REDACTED PERSONAL DATA,460623
WARRINGTON BOROUGH COUNCIL,http://opendatacommunities.org/id/unitary-authority/warrington ,FWB,Care Purchase - PD,54440,Direct Payments,552000,08-Dec-15,1900188016,1873.00,REDACTED PERSONAL DATA,101147
WARRINGTON BOROUGH COUNCIL,http://opendatacommunities.org/id/unitary-authority/warrington ,FWB,Care Purchase - Learning Disability,54450,Direct Payments,552000,08-Dec-15,1900188020,965.00,REDACTED PERSONAL DATA,101261
WARRINGTON BOROUGH COUNCIL,http://opendatacommunities.org/id/unitary-authority/warrington ,FWB,Care Purchase - PD,54440,Direct Payments,552000,08-Dec-15,1900188023,594.00,REDACTED PERSONAL DATA,101323
WARRINGTON BOROUGH COUNCIL,http://opendatacommunities.org/id/unitary-authority/warrington ,FWB,Care Purchase - Learning Disability,54450,Direct Payments,552000,08-Dec-15,1900188233,520.00,REDACTED PERSONAL DATA,460279
WARRINGTON BOROUGH COUNCIL,http://opendatacommunities.org/id/unitary-authority/warrington ,FWB,Care Purchase - PD,54440,Direct Payments,552000,08-Dec-15,1900188264,1040.00,REDACTED PERSONAL DATA,460465
WARRINGTON BOROUGH COUNCIL,http://opendatacommunities.org/id/unitary-authority/warrington ,FWB,Care Purchase - PD,54440,CP - Cont Care - External,441350,08-Dec-15,1900188021,1797.00,REDACTED PERSONAL DATA,101276
WARRINGTON BOROUGH COUNCIL,http://opendatacommunities.org/id/unitary-authority/warrington ,FWB,Care Purchase - PD,54440,Direct Payments,552000,08-Dec-15,1900188021,1797.00,REDACTED PERSONAL DATA,101276
WARRINGTON BOROUGH COUNCIL,http://opendatacommunities.org/id/unitary-authority/warrington ,FWB,Care Purchase - PD,54440,CP - Cont Care - External,441350,08-Dec-15,1900188339,2021.00,REDACTED PERSONAL DATA,460853
WARRINGTON BOROUGH COUNCIL,http://opendatacommunities.org/id/unitary-authority/warrington ,FWB,Older Peoples South Team,54421,Direct Payments,552000,08-Dec-15,1900188006,1492.00,REDACTED PERSONAL DATA,100934
WARRINGTON BOROUGH COUNCIL,http://opendatacommunities.org/id/unitary-authority/warrington ,FWB,Care Purchase - PD,54440,Direct Payments,552000,08-Dec-15,1900188141,855.00,REDACTED PERSONAL DATA,106630
WARRINGTON BOROUGH COUNCIL,http://opendatacommunities.org/id/unitary-authority/warrington ,FWB,Care Purchase AMH,54135,Direct Payments,552000,08-Dec-15,1900188416,607.00,REDACTED PERSONAL DATA,461180
WARRINGTON BOROUGH COUNCIL,http://opendatacommunities.org/id/unitary-authority/warrington ,FWB,Older Peoples South Team,54421,Direct Payments,552000,08-Dec-15,1900188384,795.00,REDACTED PERSONAL DATA,461090
WARRINGTON BOROUGH COUNCIL,http://opendatacommunities.org/id/unitary-authority/warrington ,FWB,Older Peoples South Team,54421,Direct Payments,552000,08-Dec-15,1900188315,767.00,REDACTED PERSONAL DATA,460727
WARRINGTON BOROUGH COUNCIL,http://opendatacommunities.org/id/unitary-authority/warrington ,FWB,Care Purchase - Learning Disability,54450,Direct Payments,552000,08-Dec-15,1900188146,668.00,REDACTED PERSONAL DATA,106866
WARRINGTON BOROUGH COUNCIL,http://opendatacommunities.org/id/unitary-authority/warrington ,FWB,Care Purchase - Learning Disability,54450,Direct Payments,552000,08-Dec-15,1900188177,697.00,REDACTED PERSONAL DATA,460054
WARRINGTON BOROUGH COUNCIL,http://opendatacommunities.org/id/unitary-authority/warrington ,FWB,Care Purchase - Learning Disability,54450,Direct Payments,552000,08-Dec-15,1900188125,726.00,REDACTED PERSONAL DATA,105641
WARRINGTON BOROUGH COUNCIL,http://opendatacommunities.org/id/unitary-authority/warrington ,FWB,Care Purchase - PD,54440,Direct Payments,552000,08-Dec-15,1900187993,1273.00,REDACTED PERSONAL DATA,100340
WARRINGTON BOROUGH COUNCIL,http://opendatacommunities.org/id/unitary-authority/warrington ,FWB,Child Disability,32212,Direct Payments,552000,08-Dec-15,1900188343,646.00,REDACTED PERSONAL DATA,460863
WARRINGTON BOROUGH COUNCIL,http://opendatacommunities.org/id/unitary-authority/warrington ,FWB,Care Purchase - Learning Disability,54450,Direct Payments,552000,08-Dec-15,1900188225,5131.00,REDACTED PERSONAL DATA,460263
WARRINGTON BOROUGH COUNCIL,http://opendatacommunities.org/id/unitary-authority/warrington ,FWB,Older Peoples North Team,54422,Direct Payments,552000,08-Dec-15,1900188139,706.00,REDACTED PERSONAL DATA,106441
WARRINGTON BOROUGH COUNCIL,http://opendatacommunities.org/id/unitary-authority/warrington ,FWB,Care Purchase - PD,54440,Direct Payments,552000,08-Dec-15,1900188038,509.00,REDACTED PERSONAL DATA,101558
WARRINGTON BOROUGH COUNCIL,http://opendatacommunities.org/id/unitary-authority/warrington ,FWB,Older Peoples North Team,54422,CP - Cont Care - External,441350,08-Dec-15,1900188393,2016.00,REDACTED PERSONAL DATA,461124
WARRINGTON BOROUGH COUNCIL,http://opendatacommunities.org/id/unitary-authority/warrington ,FWB,Older Peoples North Team,54422,Direct Payments,552000,08-Dec-15,1900188393,2016.00,REDACTED PERSONAL DATA,461124
WARRINGTON BOROUGH COUNCIL,http://opendatacommunities.org/id/unitary-authority/warrington ,FWB,Care Purchase - PD,54440,Direct Payments,552000,08-Dec-15,1900188223,2918.00,REDACTED PERSONAL DATA,460257
WARRINGTON BOROUGH COUNCIL,http://opendatacommunities.org/id/unitary-authority/warrington ,FWB,Care Purchase - Learning Disability,54450,Direct Payments,552000,08-Dec-15,1900188027,800.00,REDACTED PERSONAL DATA,101396
WARRINGTON BOROUGH COUNCIL,http://opendatacommunities.org/id/unitary-authority/warrington ,FWB,Care Purchase - Learning Disability,54450,Direct Payments,552000,08-Dec-15,1900188204,520.00,REDACTED PERSONAL DATA,460202
WARRINGTON BOROUGH COUNCIL,http://opendatacommunities.org/id/unitary-authority/warrington ,FWB,Care Purchase - Learning Disability,54450,Direct Payments,552000,08-Dec-15,1900188399,1428.00,REDACTED PERSONAL DATA,461140
WARRINGTON BOROUGH COUNCIL,http://opendatacommunities.org/id/unitary-authority/warrington ,FWB,Care Purchase - PD,54440,Direct Payments,552000,08-Dec-15,1900187999,1907.00,REDACTED PERSONAL DATA,100666
WARRINGTON BOROUGH COUNCIL,http://opendatacommunities.org/id/unitary-authority/warrington ,FWB,Care Purchase - PD,54440,Direct Payments,552000,08-Dec-15,1900188232,849.00,REDACTED PERSONAL DATA,460278
WARRINGTON BOROUGH COUNCIL,http://opendatacommunities.org/id/unitary-authority/warrington ,FWB,Care Purchase - Learning Disability,54450,Direct Payments,552000,08-Dec-15,1900188274,1616.00,REDACTED PERSONAL DATA,460514
WARRINGTON BOROUGH COUNCIL,http://opendatacommunities.org/id/unitary-authority/warrington ,FWB,Care Purchase - Learning Disability,54450,Direct Payments,552000,08-Dec-15,1900188276,1188.00,REDACTED PERSONAL DATA,460519
WARRINGTON BOROUGH COUNCIL,http://opendatacommunities.org/id/unitary-authority/warrington ,FWB,Care Purchase - PD,54440,Direct Payments,552000,08-Dec-15,1900187992,5092.00,REDACTED PERSONAL DATA,100338
WARRINGTON BOROUGH COUNCIL,http://opendatacommunities.org/id/unitary-authority/warrington ,FWB,Care Purchase - Learning Disability,54450,Direct Payments,552000,08-Dec-15,1900188052,1828.00,REDACTED PERSONAL DATA,101730
WARRINGTON BOROUGH COUNCIL,http://opendatacommunities.org/id/unitary-authority/warrington ,FWB,Care Purchase - Learning Disability,54450,Direct Payments,552000,08-Dec-15,1900188093,2515.00,REDACTED PERSONAL DATA,103660
WARRINGTON BOROUGH COUNCIL,http://opendatacommunities.org/id/unitary-authority/warrington ,FWB,Care Purchase - Learning Disability,54450,Direct Payments,552000,08-Dec-15,1900188237,1232.00,REDACTED PERSONAL DATA,460286
WARRINGTON BOROUGH COUNCIL,http://opendatacommunities.org/id/unitary-authority/warrington ,FWB,Care Purchase - Learning Disability,54450,Direct Payments,552000,08-Dec-15,1900188327,1629.00,REDACTED PERSONAL DATA,460779
WARRINGTON BOROUGH COUNCIL,http://opendatacommunities.org/id/unitary-authority/warrington ,FWB,Care Purchase - PD,54440,Direct Payments,552000,08-Dec-15,1900188175,1122.00,REDACTED PERSONAL DATA,114697
WARRINGTON BOROUGH COUNCIL,http://opendatacommunities.org/id/unitary-authority/warrington ,FWB,Care Purchase - Learning Disability,54450,Direct Payments,552000,08-Dec-15,1900188346,1875.00,REDACTED PERSONAL DATA,460879
WARRINGTON BOROUGH COUNCIL,http://opendatacommunities.org/id/unitary-authority/warrington ,FWB,Older Peoples South Team,54421,Direct Payments,552000,08-Dec-15,1900188166,637.00,REDACTED PERSONAL DATA,107960
WARRINGTON BOROUGH COUNCIL,http://opendatacommunities.org/id/unitary-authority/warrington ,FWB,Care Purchase - ABI,54260,Direct Payments,552000,08-Dec-15,1900188241,1273.00,REDACTED PERSONAL DATA,460295
WARRINGTON BOROUGH COUNCIL,http://opendatacommunities.org/id/unitary-authority/warrington ,FWB,Care Purchase - Learning Disability,54450,Direct Payments,552000,08-Dec-15,1900187997,678.00,REDACTED PERSONAL DATA,100607
WARRINGTON BOROUGH COUNCIL,http://opendatacommunities.org/id/unitary-authority/warrington ,FWB,Care Purchase - Learning Disability,54450,Direct Payments,552000,08-Dec-15,1900188051,3533.00,REDACTED PERSONAL DATA,101704
WARRINGTON BOROUGH COUNCIL,http://opendatacommunities.org/id/unitary-authority/warrington ,FWB,Care Purchase - PD,54440,Direct Payments,552000,08-Dec-15,1900188265,668.00,REDACTED PERSONAL DATA,460468
WARRINGTON BOROUGH COUNCIL,http://opendatacommunities.org/id/unitary-authority/warrington ,FWB,Care Purchase - Learning Disability,54450,Direct Payments,552000,08-Dec-15,1900188326,1524.00,REDACTED PERSONAL DATA,460765
WARRINGTON BOROUGH COUNCIL,http://opendatacommunities.org/id/unitary-authority/warrington ,FWB,Child Disability,32212,Direct Payments,552000,08-Dec-15,1900188396,792.00,REDACTED PERSONAL DATA,461127
WARRINGTON BOROUGH COUNCIL,http://opendatacommunities.org/id/unitary-authority/warrington ,FWB,Care Purchase - Learning Disability,54450,Direct Payments,552000,08-Dec-15,1900188019,4173.00,REDACTED PERSONAL DATA,101246
WARRINGTON BOROUGH COUNCIL,http://opendatacommunities.org/id/unitary-authority/warrington ,FWB,Care Purchase - PD,54440,Direct Payments,552000,08-Dec-15,1900188081,935.00,REDACTED PERSONAL DATA,103320
WARRINGTON BOROUGH COUNCIL,http://opendatacommunities.org/id/unitary-authority/warrington ,FWB,Care Purchase - PD,54440,Direct Payments,552000,08-Dec-15,1900188281,678.00,REDACTED PERSONAL DATA,460545
WARRINGTON BOROUGH COUNCIL,http://opendatacommunities.org/id/unitary-authority/warrington ,FWB,Care Purchase - PD,54440,Direct Payments,552000,08-Dec-15,1900188406,1897.00,REDACTED PERSONAL DATA,461149
WARRINGTON BOROUGH COUNCIL,http://opendatacommunities.org/id/unitary-authority/warrington ,FWB,Care Purchase - Learning Disability,54450,Direct Payments,552000,08-Dec-15,1900188344,679.00,REDACTED PERSONAL DATA,460867
WARRINGTON BOROUGH COUNCIL,http://opendatacommunities.org/id/unitary-authority/warrington ,FWB,Care Purchase - Learning Disability,54450,Direct Payments,552000,08-Dec-15,1900188046,917.00,REDACTED PERSONAL DATA,101661
WARRINGTON BOROUGH COUNCIL,http://opendatacommunities.org/id/unitary-authority/warrington ,FWB,Child Disability,32212,Direct Payments,552000,08-Dec-15,1900188047,640.00,REDACTED PERSONAL DATA,101669
WARRINGTON BOROUGH COUNCIL,http://opendatacommunities.org/id/unitary-authority/warrington ,FWB,Older Peoples South Team,54421,Direct Payments,552000,08-Dec-15,1900188227,661.00,REDACTED PERSONAL DATA,460265
WARRINGTON BOROUGH COUNCIL,http://opendatacommunities.org/id/unitary-authority/warrington ,FWB,Older Peoples South Team,54421,Direct Payments,552000,08-Dec-15,1900188395,646.00,REDACTED PERSONAL DATA,461126
WARRINGTON BOROUGH COUNCIL,http://opendatacommunities.org/id/unitary-authority/warrington ,FWB,Older Peoples North Team,54422,Direct Payments,552000,08-Dec-15,1900188191,820.00,REDACTED PERSONAL DATA,460165
WARRINGTON BOROUGH COUNCIL,http://opendatacommunities.org/id/unitary-authority/warrington ,FWB,Care Purchase - PD,54440,Direct Payments,552000,08-Dec-15,1900188365,1035.00,REDACTED PERSONAL DATA,460993
WARRINGTON BOROUGH COUNCIL,http://opendatacommunities.org/id/unitary-authority/warrington ,FWB,Care Purchase AMH,54135,Direct Payments,552000,08-Dec-15,1900188397,1000.00,REDACTED PERSONAL DATA,461134
WARRINGTON BOROUGH COUNCIL,http://opendatacommunities.org/id/unitary-authority/warrington ,FWB,Care Purchase - Learning Disability,54450,Direct Payments,552000,08-Dec-15,1900188245,1657.00,REDACTED PERSONAL DATA,460316
WARRINGTON BOROUGH COUNCIL,http://opendatacommunities.org/id/unitary-authority/warrington ,FWB,Care Purchase - Learning Disability,54450,Direct Payments,552000,08-Dec-15,1900188370,3621.00,REDACTED PERSONAL DATA,461031
WARRINGTON BOROUGH COUNCIL,http://opendatacommunities.org/id/unitary-authority/warrington ,FWB,Care Purchase - Learning Disability,54450,Direct Payments,552000,08-Dec-15,1900188028,1370.00,REDACTED PERSONAL DATA,101420
WARRINGTON BOROUGH COUNCIL,http://opendatacommunities.org/id/unitary-authority/warrington ,FWB,Older Peoples South Team,54421,Direct Payments,552000,08-Dec-15,1900188235,1304.00,REDACTED PERSONAL DATA,460283
WARRINGTON BOROUGH COUNCIL,http://opendatacommunities.org/id/unitary-authority/warrington ,FWB,Child Disability,32212,Direct Payments,552000,08-Dec-15,1900188189,666.00,REDACTED PERSONAL DATA,460160
WARRINGTON BOROUGH COUNCIL,http://opendatacommunities.org/id/unitary-authority/warrington ,FWB,Older Peoples North Team,54422,Direct Payments,552000,08-Dec-15,1900188412,543.00,REDACTED PERSONAL DATA,461170
WARRINGTON BOROUGH COUNCIL,http://opendatacommunities.org/id/unitary-authority/warrington ,FWB,Care Purchase - PD,54440,Direct Payments,552000,08-Dec-15,1900188094,887.00,REDACTED PERSONAL DATA,103674
WARRINGTON BOROUGH COUNCIL,http://opendatacommunities.org/id/unitary-authority/warrington ,FWB,Care Purchase - PD,54440,Direct Payments,552000,08-Dec-15,1900188032,729.00,REDACTED PERSONAL DATA,101515
WARRINGTON BOROUGH COUNCIL,http://opendatacommunities.org/id/unitary-authority/warrington ,FWB,Child Disability,32212,Direct Payments,552000,08-Dec-15,1900188185,3670.00,REDACTED PERSONAL DATA,460139
WARRINGTON BOROUGH COUNCIL,http://opendatacommunities.org/id/unitary-authority/warrington ,FWB,Care Purchase - Learning Disability,54450,Direct Payments,552000,08-Dec-15,1900188011,5450.00,REDACTED PERSONAL DATA,101016
WARRINGTON BOROUGH COUNCIL,http://opendatacommunities.org/id/unitary-authority/warrington ,FWB,Care Purchase - Learning Disability,54450,Direct Payments,552000,08-Dec-15,1900188254,1715.00,REDACTED PERSONAL DATA,460425
WARRINGTON BOROUGH COUNCIL,http://opendatacommunities.org/id/unitary-authority/warrington ,FWB,Care Purchase - Learning Disability,54450,Direct Payments,552000,08-Dec-15,1900188251,536.00,REDACTED PERSONAL DATA,460330
WARRINGTON BOROUGH COUNCIL,http://opendatacommunities.org/id/unitary-authority/warrington ,FWB,Care Purchase - Learning Disability,54450,Direct Payments,552000,08-Dec-15,1900188300,1188.00,REDACTED PERSONAL DATA,460665
WARRINGTON BOROUGH COUNCIL,http://opendatacommunities.org/id/unitary-authority/warrington ,FWB,Care Purchase - PD,54440,Direct Payments,552000,08-Dec-15,1900188352,721.00,REDACTED PERSONAL DATA,460919
WARRINGTON BOROUGH COUNCIL,http://opendatacommunities.org/id/unitary-authority/warrington ,FWB,Older Peoples South Team,54421,Direct Payments,552000,08-Dec-15,1900188057,912.00,REDACTED PERSONAL DATA,101825
WARRINGTON BOROUGH COUNCIL,http://opendatacommunities.org/id/unitary-authority/warrington ,FWB,Care Purchase - Learning Disability,54450,Direct Payments,552000,08-Dec-15,1900188203,720.00,REDACTED PERSONAL DATA,460199
WARRINGTON BOROUGH COUNCIL,http://opendatacommunities.org/id/unitary-authority/warrington ,FWB,Care Purchase AMH,54135,Direct Payments,552000,08-Dec-15,1900188056,1949.00,REDACTED PERSONAL DATA,101808
WARRINGTON BOROUGH COUNCIL,http://opendatacommunities.org/id/unitary-authority/warrington ,FWB,Care Purchase - PD,54440,Direct Payments,552000,08-Dec-15,1900188181,764.00,REDACTED PERSONAL DATA,460097
WARRINGTON BOROUGH COUNCIL,http://opendatacommunities.org/id/unitary-authority/warrington ,FWB,Care Purchase - Learning Disability,54450,Direct Payments,552000,08-Dec-15,1900188205,9978.00,REDACTED PERSONAL DATA,460210
WARRINGTON BOROUGH COUNCIL,http://opendatacommunities.org/id/unitary-authority/warrington ,FWB,Older Peoples North Team,54422,Direct Payments,552000,08-Dec-15,1900188041,509.00,REDACTED PERSONAL DATA,101592
WARRINGTON BOROUGH COUNCIL,http://opendatacommunities.org/id/unitary-authority/warrington ,FWB,Care Purchase - PD,54440,Direct Payments,552000,08-Dec-15,1900188048,560.00,REDACTED PERSONAL DATA,101677
WARRINGTON BOROUGH COUNCIL,http://opendatacommunities.org/id/unitary-authority/warrington ,FWB,Care Purchase - PD,54440,Direct Payments,552000,08-Dec-15,1900188045,637.00,REDACTED PERSONAL DATA,101630
WARRINGTON BOROUGH COUNCIL,http://opendatacommunities.org/id/unitary-authority/warrington ,FWB,Older Peoples South Team,54421,Direct Payments,552000,08-Dec-15,1900188133,636.00,REDACTED PERSONAL DATA,105861
WARRINGTON BOROUGH COUNCIL,http://opendatacommunities.org/id/unitary-authority/warrington ,FWB,Older Peoples North Team,54422,Direct Payments,552000,08-Dec-15,1900188336,784.00,REDACTED PERSONAL DATA,460818
WARRINGTON BOROUGH COUNCIL,http://opendatacommunities.org/id/unitary-authority/warrington ,FWB,Older Peoples South Team,54421,Direct Payments,552000,08-Dec-15,1900188209,1272.00,REDACTED PERSONAL DATA,460222
WARRINGTON BOROUGH COUNCIL,http://opendatacommunities.org/id/unitary-authority/warrington ,FWB,Care Purchase - Learning Disability,54450,Direct Payments,552000,08-Dec-15,1900188115,1240.00,REDACTED PERSONAL DATA,105576
WARRINGTON BOROUGH COUNCIL,http://opendatacommunities.org/id/unitary-authority/warrington ,FWB,Care Purchase - PD,54440,Direct Payments,552000,08-Dec-15,1900188269,637.00,REDACTED PERSONAL DATA,460482
WARRINGTON BOROUGH COUNCIL,http://opendatacommunities.org/id/unitary-authority/warrington ,FWB,Care Purchase - PD,54440,Direct Payments,552000,08-Dec-15,1900188158,1019.00,REDACTED PERSONAL DATA,107665
WARRINGTON BOROUGH COUNCIL,http://opendatacommunities.org/id/unitary-authority/warrington ,FWB,Care Purchase - Learning Disability,54450,Direct Payments,552000,08-Dec-15,1900188066,1103.00,REDACTED PERSONAL DATA,102348
WARRINGTON BOROUGH COUNCIL,http://opendatacommunities.org/id/unitary-authority/warrington ,FWB,Care Purchase - Learning Disability,54450,Direct Payments,552000,08-Dec-15,1900188067,1011.00,REDACTED PERSONAL DATA,102547
WARRINGTON BOROUGH COUNCIL,http://opendatacommunities.org/id/unitary-authority/warrington ,FWB,Care Purchase - Learning Disability,54450,Direct Payments,552000,08-Dec-15,1900188039,2462.00,REDACTED PERSONAL DATA,101568
WARRINGTON BOROUGH COUNCIL,http://opendatacommunities.org/id/unitary-authority/warrington ,FWB,Care Purchase - Learning Disability,54450,Direct Payments,552000,08-Dec-15,1900188089,1505.00,REDACTED PERSONAL DATA,103611
WARRINGTON BOROUGH COUNCIL,http://opendatacommunities.org/id/unitary-authority/warrington ,FWB,Care Purchase - PD,54440,Direct Payments,552000,08-Dec-15,1900188226,509.00,REDACTED PERSONAL DATA,460264
WARRINGTON BOROUGH COUNCIL,http://opendatacommunities.org/id/unitary-authority/warrington ,FWB,Older Peoples South Team,54421,Direct Payments,552000,08-Dec-15,1900188405,989.00,REDACTED PERSONAL DATA,461148
WARRINGTON BOROUGH COUNCIL,http://opendatacommunities.org/id/unitary-authority/warrington ,FWB,Care Purchase - Learning Disability,54450,Direct Payments,552000,08-Dec-15,1900188183,7185.00,REDACTED PERSONAL DATA,460113
WARRINGTON BOROUGH COUNCIL,http://opendatacommunities.org/id/unitary-authority/warrington ,FWB,Care Purchase - Learning Disability,54450,Direct Payments,552000,08-Dec-15,1900188213,721.00,REDACTED PERSONAL DATA,460229
WARRINGTON BOROUGH COUNCIL,http://opendatacommunities.org/id/unitary-authority/warrington ,FWB,Care Purchase - Learning Disability,54450,Direct Payments,552000,08-Dec-15,1900188320,790.00,REDACTED PERSONAL DATA,460749
WARRINGTON BOROUGH COUNCIL,http://opendatacommunities.org/id/unitary-authority/warrington ,FWB,Care Purchase - Learning Disability,54450,Direct Payments,552000,08-Dec-15,1900188074,849.00,REDACTED PERSONAL DATA,102718
WARRINGTON BOROUGH COUNCIL,http://opendatacommunities.org/id/unitary-authority/warrington ,FWB,Care Purchase AMH,54135,Direct Payments,552000,08-Dec-15,1900188377,637.00,REDACTED PERSONAL DATA,461060
WARRINGTON BOROUGH COUNCIL,http://opendatacommunities.org/id/unitary-authority/warrington ,FWB,Older Peoples South Team,54421,Direct Payments,552000,08-Dec-15,1900188404,1122.00,REDACTED PERSONAL DATA,461147
WARRINGTON BOROUGH COUNCIL,http://opendatacommunities.org/id/unitary-authority/warrington ,FWB,Child Disability,32212,Direct Payments,552000,08-Dec-15,1900188211,866.00,REDACTED PERSONAL DATA,460224
WARRINGTON BOROUGH COUNCIL,http://opendatacommunities.org/id/unitary-authority/warrington ,FWB,Care Purchase - Learning Disability,54450,Direct Payments,552000,08-Dec-15,1900188040,1698.00,REDACTED PERSONAL DATA,101584
WARRINGTON BOROUGH COUNCIL,http://opendatacommunities.org/id/unitary-authority/warrington ,FWB,Care Purchase - Learning Disability,54450,CP - Cont Care - External,441350,08-Dec-15,1900188180,2889.00,REDACTED PERSONAL DATA,460091
WARRINGTON BOROUGH COUNCIL,http://opendatacommunities.org/id/unitary-authority/warrington ,FWB,Care Purchase - Learning Disability,54450,Direct Payments,552000,08-Dec-15,1900188180,2889.00,REDACTED PERSONAL DATA,460091
WARRINGTON BOROUGH COUNCIL,http://opendatacommunities.org/id/unitary-authority/warrington ,FWB,Care Purchase - Learning Disability,54450,Direct Payments,552000,08-Dec-15,1900188055,509.00,REDACTED PERSONAL DATA,101759
WARRINGTON BOROUGH COUNCIL,http://opendatacommunities.org/id/unitary-authority/warrington ,FWB,Care Purchase - PD,54440,Direct Payments,552000,08-Dec-15,1900188231,541.00,REDACTED PERSONAL DATA,460270
WARRINGTON BOROUGH COUNCIL,http://opendatacommunities.org/id/unitary-authority/warrington ,FWB,Care Purchase - Learning Disability,54450,Direct Payments,552000,08-Dec-15,1900188414,574.00,REDACTED PERSONAL DATA,461173
WARRINGTON BOROUGH COUNCIL,http://opendatacommunities.org/id/unitary-authority/warrington ,FWB,Care Purchase - Learning Disability,54450,CP - Cont Care - External,441350,08-Dec-15,1900188059,568.00,REDACTED PERSONAL DATA,101849
WARRINGTON BOROUGH COUNCIL,http://opendatacommunities.org/id/unitary-authority/warrington ,FWB,Care Purchase - Learning Disability,54450,Direct Payments,552000,08-Dec-15,1900188059,568.00,REDACTED PERSONAL DATA,101849
WARRINGTON BOROUGH COUNCIL,http://opendatacommunities.org/id/unitary-authority/warrington ,FWB,Care Purchase - Learning Disability,54450,Direct Payments,552000,08-Dec-15,1900188283,2692.00,REDACTED PERSONAL DATA,460566
WARRINGTON BOROUGH COUNCIL,http://opendatacommunities.org/id/unitary-authority/warrington ,FWB,Child Disability,32212,Direct Payments,552000,08-Dec-15,1900188266,643.00,REDACTED PERSONAL DATA,460471
WARRINGTON BOROUGH COUNCIL,http://opendatacommunities.org/id/unitary-authority/warrington ,FWB,Care Purchase - Learning Disability,54450,Direct Payments,552000,08-Dec-15,1900188238,1889.00,REDACTED PERSONAL DATA,460290
WARRINGTON BOROUGH COUNCIL,http://opendatacommunities.org/id/unitary-authority/warrington ,FWB,Care Purchase - PD,54440,Direct Payments,552000,08-Dec-15,1900188010,934.00,REDACTED PERSONAL DATA,101007
WARRINGTON BOROUGH COUNCIL,http://opendatacommunities.org/id/unitary-authority/warrington ,FWB,Care Purchase - PD,54440,Supporting People - External,441250,08-Dec-15,1900188029,637.00,REDACTED PERSONAL DATA,101431
WARRINGTON BOROUGH COUNCIL,http://opendatacommunities.org/id/unitary-authority/warrington ,FWB,Care Purchase - PD,54440,Direct Payments,552000,08-Dec-15,1900188029,764.00,REDACTED PERSONAL DATA,101431
WARRINGTON BOROUGH COUNCIL,http://opendatacommunities.org/id/unitary-authority/warrington ,FWB,Care Purchase - Learning Disability,54450,Direct Payments,552000,08-Dec-15,1900188297,4364.00,REDACTED PERSONAL DATA,460625
WARRINGTON BOROUGH COUNCIL,http://opendatacommunities.org/id/unitary-authority/warrington ,FWB,Older Peoples South Team,54421,Direct Payments,552000,08-Dec-15,1900188228,829.00,REDACTED PERSONAL DATA,460266
WARRINGTON BOROUGH COUNCIL,http://opendatacommunities.org/id/unitary-authority/warrington ,FWB,Care Purchase - PD,54440,Direct Payments,552000,08-Dec-15,1900188138,538.00,REDACTED PERSONAL DATA,106145
WARRINGTON BOROUGH COUNCIL,http://opendatacommunities.org/id/unitary-authority/warrington ,FWB,Care Purchase AMH,54135,Direct Payments,552000,08-Dec-15,1900188301,679.00,REDACTED PERSONAL DATA,460671
WARRINGTON BOROUGH COUNCIL,http://opendatacommunities.org/id/unitary-authority/warrington ,FWB,Care Purchase - PD,54440,Direct Payments,552000,08-Dec-15,1900188413,921.00,REDACTED PERSONAL DATA,461172
WARRINGTON BOROUGH COUNCIL,http://opendatacommunities.org/id/unitary-authority/warrington ,FWB,Care Purchase - Learning Disability,54450,Direct Payments,552000,08-Dec-15,1900188042,1925.00,REDACTED PERSONAL DATA,101595
WARRINGTON BOROUGH COUNCIL,http://opendatacommunities.org/id/unitary-authority/warrington ,FWB,Care Purchase - Learning Disability,54450,Direct Payments,552000,08-Dec-15,1900188202,1910.00,REDACTED PERSONAL DATA,460195
WARRINGTON BOROUGH COUNCIL,http://opendatacommunities.org/id/unitary-authority/warrington ,FWB,Care Purchase - PD,54440,Direct Payments,552000,08-Dec-15,1900188257,1443.00,REDACTED PERSONAL DATA,460430
WARRINGTON BOROUGH COUNCIL,http://opendatacommunities.org/id/unitary-authority/warrington ,FWB,Care Purchase - Learning Disability,54450,Direct Payments,552000,08-Dec-15,1900188197,1976.00,REDACTED PERSONAL DATA,460182
WARRINGTON BOROUGH COUNCIL,http://opendatacommunities.org/id/unitary-authority/warrington ,FWB,Care Purchase - Learning Disability,54450,Direct Payments,552000,08-Dec-15,1900188043,1629.00,REDACTED PERSONAL DATA,101614
WARRINGTON BOROUGH COUNCIL,http://opendatacommunities.org/id/unitary-authority/warrington ,FWB,Care Purchase - Learning Disability,54450,Direct Payments,552000,08-Dec-15,1900188362,7182.00,REDACTED PERSONAL DATA,460974
WARRINGTON BOROUGH COUNCIL,http://opendatacommunities.org/id/unitary-authority/warrington ,FWB,Care Purchase - PD,54440,Direct Payments,552000,08-Dec-15,1900188284,615.00,REDACTED PERSONAL DATA,460568
WARRINGTON BOROUGH COUNCIL,http://opendatacommunities.org/id/unitary-authority/warrington ,FWB,Care Purchase - PD,54440,Direct Payments,552000,08-Dec-15,1900188031,637.00,REDACTED PERSONAL DATA,101483
WARRINGTON BOROUGH COUNCIL,http://opendatacommunities.org/id/unitary-authority/warrington ,FWB,Care Purchase - PD,54440,Direct Payments,552000,08-Dec-15,1900188003,1867.00,REDACTED PERSONAL DATA,100890
WARRINGTON BOROUGH COUNCIL,http://opendatacommunities.org/id/unitary-authority/warrington ,FWB,Care Purchase - Learning Disability,54450,Direct Payments,552000,08-Dec-15,1900188422,1090.00,REDACTED PERSONAL DATA,461202
WARRINGTON BOROUGH COUNCIL,http://opendatacommunities.org/id/unitary-authority/warrington ,FWB,Care Purchase - Learning Disability,54450,Direct Payments,552000,08-Dec-15,1900188417,1199.00,REDACTED PERSONAL DATA,461181
WARRINGTON BOROUGH COUNCIL,http://opendatacommunities.org/id/unitary-authority/warrington ,FWB,Care Purchase AMH,54135,Direct Payments,552000,08-Dec-15,1900188129,1570.00,REDACTED PERSONAL DATA,105687
WARRINGTON BOROUGH COUNCIL,http://opendatacommunities.org/id/unitary-authority/warrington ,FWB,Care Purchase - PD,54440,Direct Payments,552000,08-Dec-15,1900188250,3040.00,REDACTED PERSONAL DATA,460329
WARRINGTON BOROUGH COUNCIL,http://opendatacommunities.org/id/unitary-authority/warrington ,FWB,Care Purchase - PD,54440,Direct Payments,552000,08-Dec-15,1900188248,594.00,REDACTED PERSONAL DATA,460326
WARRINGTON BOROUGH COUNCIL,http://opendatacommunities.org/id/unitary-authority/warrington ,FWB,Care Purchase - Learning Disability,54450,Direct Payments,552000,08-Dec-15,1900187991,717.00,REDACTED PERSONAL DATA,100270
WARRINGTON BOROUGH COUNCIL,http://opendatacommunities.org/id/unitary-authority/warrington ,FWB,Care Purchase - PD,54440,Direct Payments,552000,08-Dec-15,1900188286,1591.00,REDACTED PERSONAL DATA,460576
WARRINGTON BOROUGH COUNCIL,http://opendatacommunities.org/id/unitary-authority/warrington ,FWB,Care Purchase AMH,54135,Direct Payments,552000,08-Dec-15,1900188319,763.00,REDACTED PERSONAL DATA,460748
WARRINGTON BOROUGH COUNCIL,http://opendatacommunities.org/id/unitary-authority/warrington ,FWB,Care Purchase AMH,54135,Direct Payments,552000,08-Dec-15,1900188277,978.00,REDACTED PERSONAL DATA,460520
WARRINGTON BOROUGH COUNCIL,http://opendatacommunities.org/id/unitary-authority/warrington ,FWB,Older Peoples North Team,54422,Direct Payments,552000,08-Dec-15,1900188425,566.00,REDACTED PERSONAL DATA,461213
WARRINGTON BOROUGH COUNCIL,http://opendatacommunities.org/id/unitary-authority/warrington ,FWB,Care Purchase - PD,54440,Direct Payments,552000,08-Dec-15,1900188000,1778.00,REDACTED PERSONAL DATA,100667
WARRINGTON BOROUGH COUNCIL,http://opendatacommunities.org/id/unitary-authority/warrington ,FWB,Care Purchase - ABI,54260,Direct Payments,552000,08-Dec-15,1900188035,5701.00,REDACTED PERSONAL DATA,101542
WARRINGTON BOROUGH COUNCIL,http://opendatacommunities.org/id/unitary-authority/warrington ,FWB,Care Purchase - PD,54440,Direct Payments,552000,08-Dec-15,1900188272,685.00,REDACTED PERSONAL DATA,460509
WARRINGTON BOROUGH COUNCIL,http://opendatacommunities.org/id/unitary-authority/warrington ,FWB,Care Purchase - PD,54440,Direct Payments,552000,08-Dec-15,1900188357,1167.00,REDACTED PERSONAL DATA,460939
WARRINGTON BOROUGH COUNCIL,http://opendatacommunities.org/id/unitary-authority/warrington ,FWB,Care Purchase AMH,54135,Direct Payments,552000,08-Dec-15,1900188375,506.00,REDACTED PERSONAL DATA,461056
WARRINGTON BOROUGH COUNCIL,http://opendatacommunities.org/id/unitary-authority/warrington ,FWB,Care Purchase - PD,54440,Direct Payments,552000,08-Dec-15,1900188305,637.00,REDACTED PERSONAL DATA,460684
WARRINGTON BOROUGH COUNCIL,http://opendatacommunities.org/id/unitary-authority/warrington ,FWB,Care Purchase - Learning Disability,54450,Direct Payments,552000,08-Dec-15,1900188015,14300.00,REDACTED PERSONAL DATA,101104
WARRINGTON BOROUGH COUNCIL,http://opendatacommunities.org/id/unitary-authority/warrington ,FWB,Older Peoples South Team,54421,Direct Payments,552000,08-Dec-15,1900188366,636.00,REDACTED PERSONAL DATA,461008
WARRINGTON BOROUGH COUNCIL,http://opendatacommunities.org/id/unitary-authority/warrington ,FWB,Care Purchase - Learning Disability,54450,CP - Cont Care - External,441350,08-Dec-15,1900188341,1973.00,REDACTED PERSONAL DATA,460859
WARRINGTON BOROUGH COUNCIL,http://opendatacommunities.org/id/unitary-authority/warrington ,FWB,Care Purchase - Learning Disability,54450,Direct Payments,552000,08-Dec-15,1900188341,1973.00,REDACTED PERSONAL DATA,460859
WARRINGTON BOROUGH COUNCIL,http://opendatacommunities.org/id/unitary-authority/warrington ,FWB,Care Purchase - Learning Disability,54450,Direct Payments,552000,08-Dec-15,1900188196,770.00,REDACTED PERSONAL DATA,460177
WARRINGTON BOROUGH COUNCIL,http://opendatacommunities.org/id/unitary-authority/warrington ,FWB,Older Peoples South Team,54421,Direct Payments,552000,08-Dec-15,1900188170,948.00,REDACTED PERSONAL DATA,114039
WARRINGTON BOROUGH COUNCIL,http://opendatacommunities.org/id/unitary-authority/warrington ,FWB,Child Disability,32212,Direct Payments,552000,08-Dec-15,1900188054,1154.00,REDACTED PERSONAL DATA,101758
WARRINGTON BOROUGH COUNCIL,http://opendatacommunities.org/id/unitary-authority/warrington ,FWB,Care Purchase - PD,54440,Direct Payments,552000,08-Dec-15,1900188394,1188.00,REDACTED PERSONAL DATA,461125
WARRINGTON BOROUGH COUNCIL,http://opendatacommunities.org/id/unitary-authority/warrington ,FWB,Care Purchase - PD,54440,Direct Payments,552000,08-Dec-15,1900188295,1178.00,REDACTED PERSONAL DATA,460622
WARRINGTON BOROUGH COUNCIL,http://opendatacommunities.org/id/unitary-authority/warrington ,FWB,Care Purchase - PD,54440,Direct Payments,552000,08-Dec-15,1900188184,1698.00,REDACTED PERSONAL DATA,460127
WARRINGTON BOROUGH COUNCIL,http://opendatacommunities.org/id/unitary-authority/warrington ,FWB,Care Purchase - PD,54440,Direct Payments,552000,16-Dec-15,1900188937,1408.00,REDACTED PERSONAL DATA,461258
WARRINGTON BOROUGH COUNCIL,http://opendatacommunities.org/id/unitary-authority/warrington ,FWB,Care Purchase - PD,54440,Direct Payments,552000,17-Dec-15,1900188997,514.00,REDACTED PERSONAL DATA,461253
WARRINGTON BOROUGH COUNCIL,http://opendatacommunities.org/id/unitary-authority/warrington ,FWB,Older Peoples South Team,54421,Direct Payments,552000,17-Dec-15,1900188996,711.00,REDACTED PERSONAL DATA,461252
WARRINGTON BOROUGH COUNCIL,http://opendatacommunities.org/id/unitary-authority/warrington ,FWB,Legal Fees - Safeguarding,30100,Legal Costs Incurred,440200,09-Dec-15,1900188512,1023.00,REDACTED PERSONAL DATA,420599
WARRINGTON BOROUGH COUNCIL,http://opendatacommunities.org/id/unitary-authority/warrington ,FWB,Older Peoples North Team,54422,CP-Domicil.External,440950,02-Dec-15,1900187662,15347.00,Redline Business Ta Ashwood Care,113381
WARRINGTON BOROUGH COUNCIL,http://opendatacommunities.org/id/unitary-authority/warrington ,FWB,Older Peoples South Team,54421,CP-Domicil.External,440950,02-Dec-15,1900187662,9232.00,Redline Business Ta Ashwood Care,113381
WARRINGTON BOROUGH COUNCIL,http://opendatacommunities.org/id/unitary-authority/warrington ,FWB,Care Purchase AMH,54135,CP-Domicil.External,440950,02-Dec-15,1900187662,648.00,Redline Business Ta Ashwood Care,113381
WARRINGTON BOROUGH COUNCIL,http://opendatacommunities.org/id/unitary-authority/warrington ,FWB,Care Purchase - PD,54440,CP-Domicil.External,440950,02-Dec-15,1900187662,5797.00,Redline Business Ta Ashwood Care,113381
WARRINGTON BOROUGH COUNCIL,http://opendatacommunities.org/id/unitary-authority/warrington ,FWB,Care Purchase - PD,54440,Supporting People - External,441250,02-Dec-15,1900187662,982.00,Redline Business Ta Ashwood Care,113381
WARRINGTON BOROUGH COUNCIL,http://opendatacommunities.org/id/unitary-authority/warrington ,FWB,Older Peoples North Team,54422,CP-Domicil.External,440950,18-Dec-15,1900189097,14622.00,Redline Business Ta Ashwood Care,113381
WARRINGTON BOROUGH COUNCIL,http://opendatacommunities.org/id/unitary-authority/warrington ,FWB,Older Peoples South Team,54421,CP-Domicil.External,440950,18-Dec-15,1900189097,8845.00,Redline Business Ta Ashwood Care,113381
WARRINGTON BOROUGH COUNCIL,http://opendatacommunities.org/id/unitary-authority/warrington ,FWB,Care Purchase AMH,54135,CP-Domicil.External,440950,18-Dec-15,1900189097,657.00,Redline Business Ta Ashwood Care,113381
WARRINGTON BOROUGH COUNCIL,http://opendatacommunities.org/id/unitary-authority/warrington ,FWB,Care Purchase - PD,54440,CP-Domicil.External,440950,18-Dec-15,1900189097,5498.00,Redline Business Ta Ashwood Care,113381
WARRINGTON BOROUGH COUNCIL,http://opendatacommunities.org/id/unitary-authority/warrington ,FWB,Care Purchase - PD,54440,Supporting People - External,441250,18-Dec-15,1900189097,836.00,Redline Business Ta Ashwood Care,113381
WARRINGTON BOROUGH COUNCIL,http://opendatacommunities.org/id/unitary-authority/warrington ,RSC,IT - Contracts,23600,Computer Software - Maintenance,450850,18-Dec-15,1900189008,3639.00,Reed Business Information Limited,100098
WARRINGTON BOROUGH COUNCIL,http://opendatacommunities.org/id/unitary-authority/warrington ,FWB,DSG Early Years PVI Settings,32417,Private & Voluntary 3 Year Olds,470100,18-Dec-15,1900189211,9135.00,Risley Day Nursery,400081
WARRINGTON BOROUGH COUNCIL,http://opendatacommunities.org/id/unitary-authority/warrington ,FWB,DSG Early Years PVI Settings,32417,Private & Voluntary 4 Year Olds,470150,18-Dec-15,1900189302,2080.00,Risley Day Nursery,400081
WARRINGTON BOROUGH COUNCIL,http://opendatacommunities.org/id/unitary-authority/warrington ,FWB,DSG 2 Year Old Fund,31601,Payment of Grants,470050,18-Dec-15,1900189387,1964.00,Rixton With Glazebrook Pre-School,400080
WARRINGTON BOROUGH COUNCIL,http://opendatacommunities.org/id/unitary-authority/warrington ,FWB,DSG Early Years PVI Settings,32417,Private & Voluntary 3 Year Olds,470100,18-Dec-15,1900189212,5704.00,Rixton With Glazebrook Pre-School,400080
WARRINGTON BOROUGH COUNCIL,http://opendatacommunities.org/id/unitary-authority/warrington ,FWB,DSG Early Years PVI Settings,32417,Private & Voluntary 4 Year Olds,470150,18-Dec-15,1900189303,3071.00,Rixton With Glazebrook Pre-School,400080
WARRINGTON BOROUGH COUNCIL,http://opendatacommunities.org/id/unitary-authority/warrington ,FWB,Contracts - SM Commissioning Team 2,55920,Public Health Contract Payments,540000,21-Dec-15,1900189520,654.00,Rlbun Nhs Trust,440108
WARRINGTON BOROUGH COUNCIL,http://opendatacommunities.org/id/unitary-authority/warrington ,FWB,Contracts - SM Commissioning Team 2,55920,Public Health Contract Payments,540000,21-Dec-15,1900189518,1778.00,Rlbun Nhs Trust,440108
WARRINGTON BOROUGH COUNCIL,http://opendatacommunities.org/id/unitary-authority/warrington ,PIO,People & Improvement Other,85002,Consult.& Prof. Serv,440000,09-Dec-15,1900188480,1050.00,RLF Building Futures,114974
WARRINGTON BOROUGH COUNCIL,http://opendatacommunities.org/id/unitary-authority/warrington ,RSC,Coroners Service,11100,Analysts Fees,440300,18-Dec-15,1900189020,1492.00,Roar Forensics Ltd,105295
WARRINGTON BOROUGH COUNCIL,http://opendatacommunities.org/id/unitary-authority/warrington ,RSC,Coroners Service,11100,Analysts Fees,440300,18-Dec-15,1900189015,1708.00,Roar Forensics Ltd,105295
WARRINGTON BOROUGH COUNCIL,http://opendatacommunities.org/id/unitary-authority/warrington ,RSC,Coroners Service,11100,Analysts Fees,440300,18-Dec-15,1900189023,1683.00,Roar Forensics Ltd,105295
WARRINGTON BOROUGH COUNCIL,http://opendatacommunities.org/id/unitary-authority/warrington ,RSC,Coroners Service,11100,Analysts Fees,440300,18-Dec-15,1900189042,1653.00,Roar Forensics Ltd,105295
WARRINGTON BOROUGH COUNCIL,http://opendatacommunities.org/id/unitary-authority/warrington ,RSC,Coroners Service,11100,Analysts Fees,440300,18-Dec-15,1900189037,1445.00,Roar Forensics Ltd,105295
WARRINGTON BOROUGH COUNCIL,http://opendatacommunities.org/id/unitary-authority/warrington ,RSC,Coroners Service,11100,Analysts Fees,440300,18-Dec-15,1900189029,722.00,Roar Forensics Ltd,105295
WARRINGTON BOROUGH COUNCIL,http://opendatacommunities.org/id/unitary-authority/warrington ,RSC,Coroners Service,11100,Analysts Fees,440300,18-Dec-15,1900189039,1080.00,Roar Forensics Ltd,105295
WARRINGTON BOROUGH COUNCIL,http://opendatacommunities.org/id/unitary-authority/warrington ,FWB,DSG 2 Year Old Fund,31601,Payment of Grants,470050,18-Dec-15,1900189388,2313.00,Rosebank Naturegarten,400154
WARRINGTON BOROUGH COUNCIL,http://opendatacommunities.org/id/unitary-authority/warrington ,FWB,DSG 2 Year Old Fund,31601,Payment of Grants,470050,18-Dec-15,1900189399,4523.00,Rosebank Naturegarten,400154
WARRINGTON BOROUGH COUNCIL,http://opendatacommunities.org/id/unitary-authority/warrington ,FWB,DSG Early Years PVI Settings,32417,Private & Voluntary 3 Year Olds,470100,18-Dec-15,1900189213,11035.00,Rosebank Naturegarten,400154
WARRINGTON BOROUGH COUNCIL,http://opendatacommunities.org/id/unitary-authority/warrington ,FWB,DSG Early Years PVI Settings,32417,Private & Voluntary 4 Year Olds,470150,18-Dec-15,1900189304,7236.00,Rosebank Naturegarten,400154
WARRINGTON BOROUGH COUNCIL,http://opendatacommunities.org/id/unitary-authority/warrington ,FWB,Care Purchase Budget,54490,CP ExternalOther Exp,440800,07-Dec-15,1900187933,10000.00,Rosevilla Residential Home,105084
WARRINGTON BOROUGH COUNCIL,http://opendatacommunities.org/id/unitary-authority/warrington ,FWB,Care Purchase Budget,54490,CP ExternalOther Exp,440800,07-Dec-15,1900187893,1507.00,Rosevilla Residential Home,105084
WARRINGTON BOROUGH COUNCIL,http://opendatacommunities.org/id/unitary-authority/warrington ,RSC,Print Services (Enveloping etc),23090,Postages,450000,04-Dec-15,1900187812,2187.00,Royal Mail,101445
WARRINGTON BOROUGH COUNCIL,http://opendatacommunities.org/id/unitary-authority/warrington ,RSC,Postal & Courier Services,52130,Postages,450000,07-Dec-15,1900187901,1309.00,Royal Mail,101445
WARRINGTON BOROUGH COUNCIL,http://opendatacommunities.org/id/unitary-authority/warrington ,RSC,Individual Electoral Registration,11660,Postages,450000,04-Dec-15,1900187834,1288.00,Royal Mail,101445
WARRINGTON BOROUGH COUNCIL,http://opendatacommunities.org/id/unitary-authority/warrington ,RSC,Print Services (Enveloping etc),23090,Postages,450000,23-Dec-15,1900189647,1753.00,Royal Mail,101445
WARRINGTON BOROUGH COUNCIL,http://opendatacommunities.org/id/unitary-authority/warrington ,RSC,Print Services (Enveloping etc),23090,Postages,450000,23-Dec-15,1900189649,1339.00,Royal Mail,101445
WARRINGTON BOROUGH COUNCIL,http://opendatacommunities.org/id/unitary-authority/warrington ,RSC,Print Services (Enveloping etc),23090,Postages,450000,23-Dec-15,1900189659,1757.00,Royal Mail,101445
WARRINGTON BOROUGH COUNCIL,http://opendatacommunities.org/id/unitary-authority/warrington ,FWB,Older Peoples South Team,54421,CP-Domicil.External,440950,16-Dec-15,1900188905,11588.00,Safehands Network Ltd,103226
WARRINGTON BOROUGH COUNCIL,http://opendatacommunities.org/id/unitary-authority/warrington ,FWB,Older Peoples North Team,54422,CP-Domicil.External,440950,16-Dec-15,1900188905,10613.00,Safehands Network Ltd,103226
WARRINGTON BOROUGH COUNCIL,http://opendatacommunities.org/id/unitary-authority/warrington ,FWB,Care Purchase AMH,54135,CP-Domicil.External,440950,16-Dec-15,1900188905,565.00,Safehands Network Ltd,103226
WARRINGTON BOROUGH COUNCIL,http://opendatacommunities.org/id/unitary-authority/warrington ,FWB,Care Purchase - PD,54440,CP-Domicil.External,440950,16-Dec-15,1900188905,2381.00,Safehands Network Ltd,103226
WARRINGTON BOROUGH COUNCIL,http://opendatacommunities.org/id/unitary-authority/warrington ,FWB,SLA - Grant Account,53920,Payment of Grants,470050,17-Dec-15,1900188951,10805.00,Salvation Army Band,100437
WARRINGTON BOROUGH COUNCIL,http://opendatacommunities.org/id/unitary-authority/warrington ,FWB,Older Peoples South Team,54421,CP-LongStayExternal,441150,16-Dec-15,1900188907,1912.00,Sanctuary Care Limited,109765
WARRINGTON BOROUGH COUNCIL,http://opendatacommunities.org/id/unitary-authority/warrington ,FWB,Care Purchase - Learning Disability,54450,CP-Domicil.External,440950,14-Dec-15,1900188675,600.00,Sanctuary Carr-Gomm,109157
WARRINGTON BOROUGH COUNCIL,http://opendatacommunities.org/id/unitary-authority/warrington ,FWB,Care Purchase AMH,54135,CP-Domicil.External,440950,14-Dec-15,1900188681,550.00,Sanctuary Carr-Gomm,109157
WARRINGTON BOROUGH COUNCIL,http://opendatacommunities.org/id/unitary-authority/warrington ,FWB,Care Purchase - Learning Disability,54450,CP-Domicil.External,440950,14-Dec-15,1900188676,600.00,Sanctuary Carr-Gomm,109157
WARRINGTON BOROUGH COUNCIL,http://opendatacommunities.org/id/unitary-authority/warrington ,FWB,Care Purchase AMH,54135,CP-Domicil.External,440950,02-Dec-15,1900187767,1150.00,Sanctuary Housing Association,114788
WARRINGTON BOROUGH COUNCIL,http://opendatacommunities.org/id/unitary-authority/warrington ,FWB,Care Purchase - PD,54440,CP-LongStayExternal,441150,16-Dec-15,1900188881,4584.00,Scope,105109
WARRINGTON BOROUGH COUNCIL,http://opendatacommunities.org/id/unitary-authority/warrington ,CYP,Secondary,81002,Specific Work,200200,09-Dec-15,1900188461,3796.00,Scorpio Signs,114770
WARRINGTON BOROUGH COUNCIL,http://opendatacommunities.org/id/unitary-authority/warrington ,FWB,Care Purchase - Learning Disability,54450,CP-LongStayExternal,441150,18-Dec-15,1900189099,1669.00,Seashell Trust,103082
WARRINGTON BOROUGH COUNCIL,http://opendatacommunities.org/id/unitary-authority/warrington ,FWB,Care Purchase Budget,54490,CP - Cont Care - External,441350,18-Dec-15,1900189098,712.00,Seashell Trust,103082
WARRINGTON BOROUGH COUNCIL,http://opendatacommunities.org/id/unitary-authority/warrington ,FWB,Care Purchase - Learning Disability,54450,CP-LongStayExternal,441150,24-Dec-15,1900189756,1669.00,Seashell Trust,103082
WARRINGTON BOROUGH COUNCIL,http://opendatacommunities.org/id/unitary-authority/warrington ,FWB,Older Peoples North Team,54422,CP-Domicil.External,440950,10-Dec-15,1900188565,9194.00,Select Community Support Services,112799
WARRINGTON BOROUGH COUNCIL,http://opendatacommunities.org/id/unitary-authority/warrington ,FWB,Older Peoples South Team,54421,CP-Domicil.External,440950,10-Dec-15,1900188565,2640.00,Select Community Support Services,112799
WARRINGTON BOROUGH COUNCIL,http://opendatacommunities.org/id/unitary-authority/warrington ,FWB,Care Purchase - Learning Disability,54450,CP-Domicil.External,440950,10-Dec-15,1900188565,761.00,Select Community Support Services,112799
WARRINGTON BOROUGH COUNCIL,http://opendatacommunities.org/id/unitary-authority/warrington ,FWB,Care Purchase - PD,54440,CP-Domicil.External,440950,10-Dec-15,1900188565,4017.00,Select Community Support Services,112799
WARRINGTON BOROUGH COUNCIL,http://opendatacommunities.org/id/unitary-authority/warrington ,FWB,Care Purchase Budget,54490,CP - Cont Care - External,441350,10-Dec-15,1900188565,1015.00,Select Community Support Services,112799
WARRINGTON BOROUGH COUNCIL,http://opendatacommunities.org/id/unitary-authority/warrington ,FWB,Care Purchase - Learning Disability,54450,CP-LongStayExternal,441150,02-Dec-15,1900187758,7036.00,Sense,440092
WARRINGTON BOROUGH COUNCIL,http://opendatacommunities.org/id/unitary-authority/warrington ,ENO,Housing Projects,82008,Disabled Persons Grant 1996,554000,04-Dec-15,1900187858,4740.00,Showering Solutions,105490
WARRINGTON BOROUGH COUNCIL,http://opendatacommunities.org/id/unitary-authority/warrington ,FWB,Older Peoples South Team,54421,CP-LongStayExternal,441150,16-Dec-15,1900188891,1788.00,Simonsfield Care Home,110134
WARRINGTON BOROUGH COUNCIL,http://opendatacommunities.org/id/unitary-authority/warrington ,FWB,Inclusion,32207,Legal Costs Incurred,440200,16-Dec-15,1900188863,23000.00,Simpson Millar LLP Client,115017
WARRINGTON BOROUGH COUNCIL,http://opendatacommunities.org/id/unitary-authority/warrington ,FWB,Care Purchase AMH,54135,CP-Domicil.External,440950,07-Dec-15,1900187914,5230.00,SLC Raglin Ltd,111037
WARRINGTON BOROUGH COUNCIL,http://opendatacommunities.org/id/unitary-authority/warrington ,FWB,Care Purchase AMH,54135,CP-Domicil.External,440950,24-Dec-15,1900189769,5230.00,SLC Raglin Ltd,111037
WARRINGTON BOROUGH COUNCIL,http://opendatacommunities.org/id/unitary-authority/warrington ,FWB,Care Purchase AMH,54135,CP-LongStayExternal,441150,23-Dec-15,1900189639,3086.00,Somewhere House Ltd,114749
WARRINGTON BOROUGH COUNCIL,http://opendatacommunities.org/id/unitary-authority/warrington ,FWB,Care Purchase AMH,54135,CP-LongStayExternal,441150,23-Dec-15,1900189640,2657.00,Somewhere House Ltd,114749
WARRINGTON BOROUGH COUNCIL,http://opendatacommunities.org/id/unitary-authority/warrington ,FWB,Contracts - SM Commissioning Team 2,55920,Public Health Contract Payments,540000,21-Dec-15,1900189531,967.00,Southport & Ormskirk Hospital NHS T,114299
WARRINGTON BOROUGH COUNCIL,http://opendatacommunities.org/id/unitary-authority/warrington ,FWB,Care Purchase - PD,54440,CP-LongStayExternal,441150,14-Dec-15,1900188690,2540.00,Spinal Unit Action Group,110574
WARRINGTON BOROUGH COUNCIL,http://opendatacommunities.org/id/unitary-authority/warrington ,FWB,Care Purchase - PD,54440,CP-LongStayExternal,441150,16-Dec-15,1900188909,2540.00,Spinal Unit Action Group,110574
WARRINGTON BOROUGH COUNCIL,http://opendatacommunities.org/id/unitary-authority/warrington ,FWB,Contracts - SM Commissioning Team 2,55920,Public Health Contract Payments,540000,21-Dec-15,1900189533,2193.00,Springfields Medical Centre,111972
WARRINGTON BOROUGH COUNCIL,http://opendatacommunities.org/id/unitary-authority/warrington ,FWB,Contracts - SM Commissioning Team 2,55920,Public Health Contract Payments,540000,21-Dec-15,1900189533,936.00,Springfields Medical Centre,111972
WARRINGTON BOROUGH COUNCIL,http://opendatacommunities.org/id/unitary-authority/warrington ,FWB,DSG Early Years PVI Settings,32417,Private & Voluntary 3 Year Olds,470100,18-Dec-15,1900189215,2261.00,Springwood Nursery,400167
WARRINGTON BOROUGH COUNCIL,http://opendatacommunities.org/id/unitary-authority/warrington ,FWB,DSG Early Years PVI Settings,32417,Private & Voluntary 4 Year Olds,470150,18-Dec-15,1900189305,904.00,Springwood Nursery,400167
WARRINGTON BOROUGH COUNCIL,http://opendatacommunities.org/id/unitary-authority/warrington ,FWB,DSG Early Years PVI Settings,32417,Payment of Grants,470050,21-Dec-15,1900189448,1500.00,Springwood Nursery,400167
WARRINGTON BOROUGH COUNCIL,http://opendatacommunities.org/id/unitary-authority/warrington ,FWB,Older Peoples North Team,54422,CP-LongStayExternal,441150,16-Dec-15,1900188910,2012.00,St Georges Residential Care Home,110495
WARRINGTON BOROUGH COUNCIL,http://opendatacommunities.org/id/unitary-authority/warrington ,FWB,Older Peoples North Team,54422,CP-LongStayExternal,441150,14-Dec-15,1900188668,2012.00,St Georges Residential Care Home,110495
WARRINGTON BOROUGH COUNCIL,http://opendatacommunities.org/id/unitary-authority/warrington ,FWB,Older Peoples North Team,54422,CP-LongStayExternal,441150,14-Dec-15,1900188667,2012.00,St Georges Residential Care Home,110495
WARRINGTON BOROUGH COUNCIL,http://opendatacommunities.org/id/unitary-authority/warrington ,FWB,Care Purchase - ABI,54260,CP-Nursing Care-External,441200,16-Dec-15,1900188912,5075.00,St Marys Care Centre,101503
WARRINGTON BOROUGH COUNCIL,http://opendatacommunities.org/id/unitary-authority/warrington ,FWB,Care Purchase Budget,54490,CP ExternalOther Exp,440800,07-Dec-15,1900187924,40000.00,St Marys Care Centre,101503
WARRINGTON BOROUGH COUNCIL,http://opendatacommunities.org/id/unitary-authority/warrington ,FWB,Care Purchase Budget,54490,CP ExternalOther Exp,440800,02-Dec-15,1900187764,9809.00,St Marys Care Centre,101503
WARRINGTON BOROUGH COUNCIL,http://opendatacommunities.org/id/unitary-authority/warrington ,FWB,DSG Early Years PVI Settings,32417,Private & Voluntary 3 Year Olds,470100,18-Dec-15,1900189216,1799.00,St Mary's Pre School,400159
WARRINGTON BOROUGH COUNCIL,http://opendatacommunities.org/id/unitary-authority/warrington ,FWB,DSG Early Years PVI Settings,32417,Private & Voluntary 4 Year Olds,470150,18-Dec-15,1900189306,2033.00,St Mary's Pre School,400159
WARRINGTON BOROUGH COUNCIL,http://opendatacommunities.org/id/unitary-authority/warrington ,FWB,DSG Early Years PVI Settings,32417,Payment of Grants,470050,21-Dec-15,1900189449,1500.00,St Mary's Pre School,400159
WARRINGTON BOROUGH COUNCIL,http://opendatacommunities.org/id/unitary-authority/warrington ,FWB,DSG Early Years PVI Settings,32417,Private & Voluntary 3 Year Olds,470100,18-Dec-15,1900189217,4503.00,St Matthews Pre-School Group,400160
WARRINGTON BOROUGH COUNCIL,http://opendatacommunities.org/id/unitary-authority/warrington ,FWB,DSG Early Years PVI Settings,32417,Private & Voluntary 4 Year Olds,470150,18-Dec-15,1900189307,2511.00,St Matthews Pre-School Group,400160
WARRINGTON BOROUGH COUNCIL,http://opendatacommunities.org/id/unitary-authority/warrington ,FWB,DSG Early Years PVI Settings,32417,Payment of Grants,470050,21-Dec-15,1900189450,1500.00,St Matthews Pre-School Group,400160
WARRINGTON BOROUGH COUNCIL,http://opendatacommunities.org/id/unitary-authority/warrington ,FWB,Older Peoples South Team,54421,CP-Nursing Care-External,441200,16-Dec-15,1900188922,2064.00,St Monica Trust,104021
WARRINGTON BOROUGH COUNCIL,http://opendatacommunities.org/id/unitary-authority/warrington ,FWB,Older Peoples South Team,54421,CP-Nursing Care-External,441200,16-Dec-15,1900188918,2064.00,St Monica Trust,104021
WARRINGTON BOROUGH COUNCIL,http://opendatacommunities.org/id/unitary-authority/warrington ,FWB,Older Peoples South Team,54421,CP-Domicil.External,440950,16-Dec-15,1900188919,3654.00,St Monica Trust,104021
WARRINGTON BOROUGH COUNCIL,http://opendatacommunities.org/id/unitary-authority/warrington ,FWB,Older Peoples South Team,54421,CP-Domicil.External,440950,16-Dec-15,1900188920,3654.00,St Monica Trust,104021
WARRINGTON BOROUGH COUNCIL,http://opendatacommunities.org/id/unitary-authority/warrington ,FWB,DSG Early Years PVI Settings,32417,Private & Voluntary 3 Year Olds,470100,18-Dec-15,1900189218,10583.00,St Monica's Pre School,103081
WARRINGTON BOROUGH COUNCIL,http://opendatacommunities.org/id/unitary-authority/warrington ,FWB,DSG Early Years PVI Settings,32417,Private & Voluntary 4 Year Olds,470150,18-Dec-15,1900189308,3528.00,St Monica's Pre School,103081
WARRINGTON BOROUGH COUNCIL,http://opendatacommunities.org/id/unitary-authority/warrington ,FWB,Older Peoples North Team,54422,CP-Nursing Care-External,441200,02-Dec-15,1900187646,1712.00,St Nicholas Nursing Home,110287
WARRINGTON BOROUGH COUNCIL,http://opendatacommunities.org/id/unitary-authority/warrington ,FWB,Older Peoples North Team,54422,CP-Nursing Care-External,441200,24-Dec-15,1900189709,1712.00,St Nicholas Nursing Home,110287
WARRINGTON BOROUGH COUNCIL,http://opendatacommunities.org/id/unitary-authority/warrington ,FWB,DSG Early Years PVI Settings,32417,Private & Voluntary 3 Year Olds,470100,18-Dec-15,1900189219,7020.00,St Oswald's Pre -School Nursery,400162
WARRINGTON BOROUGH COUNCIL,http://opendatacommunities.org/id/unitary-authority/warrington ,FWB,DSG Early Years PVI Settings,32417,Private & Voluntary 4 Year Olds,470150,18-Dec-15,1900189309,3422.00,St Oswald's Pre -School Nursery,400162
WARRINGTON BOROUGH COUNCIL,http://opendatacommunities.org/id/unitary-authority/warrington ,FWB,DSG Early Years PVI Settings,32417,Private & Voluntary 3 Year Olds,470100,18-Dec-15,1900189220,6406.00,St Philips Pre School,400163
WARRINGTON BOROUGH COUNCIL,http://opendatacommunities.org/id/unitary-authority/warrington ,FWB,DSG Early Years PVI Settings,32417,Private & Voluntary 4 Year Olds,470150,18-Dec-15,1900189310,4388.00,St Philips Pre School,400163
WARRINGTON BOROUGH COUNCIL,http://opendatacommunities.org/id/unitary-authority/warrington ,FWB,DSG 2 Year Old Fund,31601,Payment of Grants,470050,18-Dec-15,1900189389,1528.00,Statham Little Foxes Pre-School & L,400079
WARRINGTON BOROUGH COUNCIL,http://opendatacommunities.org/id/unitary-authority/warrington ,FWB,DSG Early Years PVI Settings,32417,Private & Voluntary 3 Year Olds,470100,18-Dec-15,1900189221,6566.00,Statham Little Foxes Pre-School & L,400079
WARRINGTON BOROUGH COUNCIL,http://opendatacommunities.org/id/unitary-authority/warrington ,FWB,DSG Early Years PVI Settings,32417,Private & Voluntary 4 Year Olds,470150,18-Dec-15,1900189311,3159.00,Statham Little Foxes Pre-School & L,400079
WARRINGTON BOROUGH COUNCIL,http://opendatacommunities.org/id/unitary-authority/warrington ,FWB,DSG 2 Year Old Fund,31601,Payment of Grants,470050,18-Dec-15,1900189391,655.00,Stepping Stone Day Nurse Stockton H,400043
WARRINGTON BOROUGH COUNCIL,http://opendatacommunities.org/id/unitary-authority/warrington ,FWB,DSG Early Years PVI Settings,32417,Private & Voluntary 3 Year Olds,470100,18-Dec-15,1900189224,3618.00,Stepping Stone Day Nurse Stockton H,400043
WARRINGTON BOROUGH COUNCIL,http://opendatacommunities.org/id/unitary-authority/warrington ,FWB,DSG Early Years PVI Settings,32417,Private & Voluntary 4 Year Olds,470150,18-Dec-15,1900189314,904.00,Stepping Stone Day Nurse Stockton H,400043
WARRINGTON BOROUGH COUNCIL,http://opendatacommunities.org/id/unitary-authority/warrington ,FWB,DSG 2 Year Old Fund,31601,Payment of Grants,470050,18-Dec-15,1900189390,873.00,Stepping Stones Child Care,400103
